{"text_format":"1","workbook":"xlsx","n_sheets":6,"sheets":["Project Overview","Information","Combined Checklist","All Strategies","makeup","Expandable List"],"not_rendered":{"charts":0,"images":5,"macros":1,"external_links":8,"defined_names":481,"comments":4,"pivot_tables":0},"unopened":[],"bounds":{"document_bytes":16777216,"sheet_cells":100000,"rows_first":2000,"rows_last":500,"rows_between":2000,"halvings":0,"cell_chars":16384,"cell_head_chars":4096},"cells_cut":0,"cells_raw":0,"read":"whole","date_system":"1900"}

{"sheet":"Project Overview","index":0,"n_rows":34,"n_cols":10,"rows_kept":34,"cut":false,"hidden":false,"merged":[[7,3,7,6],[8,3,8,6],[10,1,13,6]]}
[null,{"$f":"CONCATENATE(\"project\",G6)","v":"project"}]
[null,"Capital GREEN "]
[null,"Project Overview",null,null,null,"Date Entered:",{"$f":"TODAY()","v":"2017-06-09"}]
[null,{"$f":"CONCATENATE(\"toolkit\",G6)","v":"toolkit"}]
[]
[null,"Project Name:",null,"Seattle Project",null,"Project No.:"]
[null,"Department:",null,null,null,"Project Manager:"]
[null,"Brief Description:"]
[null,"Address:"]
[]
[null,"Step One:  Capture the scope of your project below\nStep Two:  On the Abbreviated Checklist remove strategies that don't apply by selecting NA\nStep Three:  Use the Expanded Checklist as your ongoing project checklist throughout design and construction\nStep Four:  Use separate toolkit file calculators for relevant strategies \nStep Five:  Tally results on the Final Checklist and make PDF with the Final Summary for reporting\n"]
[]
[]
[]
[]
[null,"Design Team:"]
[null,"Architect:",null,null,null,"Other Consultant:"]
[null,"Mechanical Engineer:",null,null,null,"Other Consultant:"]
[null,"General Contractor:",null,null,null,"Other Consultant:"]
[]
[]
[null,"SCOPE OF WORK:","(select as many of the elements below as apply to your scope of work)",null,null,null,null,null,null,false]
[null,null,null,null,null,null,null,null,null,false]
[null,null,null,null,"More information",null,null,null,null,false]
[null,null,null,null,null,null,null,null,null,false]
[null,null,null,null,null,null,null,null,null,false]
[null,null,null,null,null,null,null,null,null,false]
[null,null,null,null,null,null,null,null,null,false]
[null,null,null,null,null,null,null,null,null,false]
[null,null,null,null,null,null,null,null,null,false]
[null,null,null,null,null,null,null,null,null,false]
[null,null,null,null,null,null,null,null,null,false]
[null,null,null,null,null,null,null,null,null,false]
[null,null,null,null,null,null,null,null,null,false]

{"sheet":"Information","index":1,"n_rows":65,"n_cols":2,"rows_kept":65,"cut":false,"hidden":false,"merged":[]}
[]
[null,"How to use the Capital GREEN Toolkit"]
[null,"The Capital GREEN Toolkit consists of a folder with two Excel files – the capital green form.xls and toolkit.xls. These two files must stay together in the folder, and the toolkit must be open for macros to run. These two source files should never be changed or overwritten. You can save as and rename a toolkit file to keep calculators. "]
[null,"Step One – The Project Overview Form  "]
[null,"1.       Open both files"]
[null,"2.       In the capital green form.xls file Enable Macros by clicking the Options button next to Security Warning on your navigation bar."]
[null,"3.       Enter basic project information."]
[null,"4.       Check boxes for as many categories as necessary to reflect the scope of work of the project. (See Information Tab for more on work category definitions.)"]
[null,"5.       Click Generate Checklist button to create new tab called Simple Checklist."]
[null,"Step Two – The Simple Checklist"]
[null,"1.       You are now on a tab called Simple Checklist in a NEW file called Project#.xls with a list of potential sustainable strategies for your project."]
[null,"2.       Select “NA” in the right column to remove any sustainable strategies that do not apply to your project scope.  "]
[null,"3.       Click Generate Expanded Checklist to open a new tab."]
[null,"4.       If you already have a Toolkit file from a previous run, you must rename it now and click Okay to continue."]
[null,"5.       Go to the Summary tab and explain each NA.  Then return to the Expanded Checklist tab."]
[null,"Step Three – The Expanded Checklist"]
[null,"1.       Each strategy is now presented in more detail with links to relevant resources and calculators."]
[null,"2.       Mark strategies Y or N for pursuit as they are incorporated or rejected. This Expanded Checklist serves as your project checklist throughout the process and can be distributed to consultants and subcontractors. This Checklist is about pursuit, not achievement."]
[null,"Step Four – The Toolkit File Calculators"]
[null,"1.       Use Toolkit file calculators to track progress of materials, heat island, flushout and sound absorption strategies."]
[null,"2.       Add project detail on Final Report tab."]
[null,"Step Five – Final Checklist and Reporting"]
[null,"1.       When the project is substantially complete and you are ready to make your final report, click Generate Final Checklist."]
[null,"2.       You are now on the Final Checklist tab, and a tally has appeared in the upper right corner showing how many sustainable strategies are available to your project scope."]
[null,"3.       For each strategy achieved, select the baseline or target level attained. The tally above will change to reflect your selections."]
[null,"4.       Make sure any calculators in Toolkit file are complete. Metrics will feed the Final Report tab."]
[null,"5.       Output both the Expanded Checklist and the Final Summary from the Toolkit file as your Final Report."]
[null,"6.       Send to Sandra Mallory."]
[null,"  Additional Scope and Do Overs"]
[null,"1.       If you find yourself on the Simple Checklist and didn't include a scope of work category you need, delete the Simple Checklist tab and start over."]
[null,"2.       If you have already generated an Expanded Checklist and the scope of the project changes, delete all tabs (excepting Project Overview) and start again."]
[null,"3.       Or simply close out of the project#.xls file and then delete it. If you have already filled in calculators, be sure to rename the toolkit.xls file. Then see Step One."]
[]
[]
[null,"Understanding Scope Categories"]
[null,"The Scope of Work categories filter the more than 100 possible sustainable strategies to reflect only strategies associated with specific project scopes. Filters are major building elements and systems. There is no distinction made between new construction, additions, alterations or tenant improvement projects. Some categories have significant overlap to ensure all possible work scopes are accommodated. Choose all categories that apply."]
[null,"Demolition:  Removal of existing buildings; portions of buildings or site improvements.  Includes destructive work to remediate building or site contamination."]
[null,"Sitework:  Exterior site improvements which may or may not be associated with a building. Includes grading, utilities, landscape, irrigation, paving, parking areas, roads, drives and pedestrian plazas."]
[null,"Building Structure:  New building structural elements or modifications to a building’s structural elements.  Includes, foundations, bearing walls, below grade walls, columns, floors and floor/ceiling structures and roof structure."]
[null,"Building Envelope:  Elements which create the building’s weather tight enclosure.  May, or may not be structural.  Includes roofing, roof sheathing, exterior walls and cladding, fenestration, insulation, slab on grade and floors over crawlspaces or unheated space."]
[null,"Interior Construction: Permanently installed interior partition walls, ceiling systems, doors and relites."]
[null,"Interior Finishes:  Permanently installed casework, flooring, trim  and/or other finishes."]
[null,"Specialties & Equipment:  Appliances, commercial kitchen equipment or other specialty refrigeration or fuel systems."]
[null,"Furnishings:  Systems furniture, ancillary furnishings.  Includes non-permanently installed partitions, desks, file storage, conference tables, task chairs, conference chairs, side tables and coffee tables."]
[null,"HVAC:  Heating, ventilating and air conditioning systems  or portions of thereof and water heating systems.  Includes, space heating and cooling equipment, water heating equipment, ductwork, controls, and airflow devices. May also include renewable energy systems."]
[null,"Plumbing:  Domestic water systems and fixtures, storm water systems, sanitary systems and fluid distribution systems for space conditioning."]
[null,"Electrical:  Interior and exterior lighting and associated controls, power distribution and metering systems, renewable energy systems and vehicle charging stations."]
[null,"Fire Suppression:  Fire detection, sprinkler systems, and warning systems."]
[null,"Parks Project: A project which includes, but may not be limited to work on a City of Seattle park."]
[]
[null,"Each sustainable strategy contained in the Data_Source file is coded to reflect the one or more scope categories it relates to. (For example, while a low flow water fixtures strategy may only apply to Plumbing, a low emitting adhesives and sealants strategy might apply to Interior Finishes for flooring but also to HVAC for duct sealant and to Plumbing for pipe cement. If any of these scope categories are checked, the low emitting adhesives and sealants strategy will appear.)"]
[]
[null,"Understanding Toolkit Calculators"]
[null,"The separate Toolkit file contains a variety of calculators that are linked to strategies that require calculations to demonstrate compliance. Along with a link to the City's Construction Waste Diversion calculator, the following are included:"]
[null,"·         Recycled Material"]
[null,"·         Regional Materials"]
[null,"·         Sustainably Harvested Wood and Rapidly Renewables"]
[null,"·         Building Reuse"]
[null,"·         Heat Island"]
[null,"·         Room Sound Absorption"]
[null,"·         Building Flushout"]
[null,"Each calculator has its own Tab, while the linked Project Summary information will be reflected on the first tab. These calculators can be accessed via a calculator hyperlink provided adjacent to each strategy or directly through the toolkit file. The results of each calculator used will feed to the Project Summary page on the first tab of the Toolkit.xls file."]
[]
[]
[null,"ArchEcology LLC is a Seattle-based sustainable consulting firm that specializes in practical solutions for incorporating environmentally responsible practices into design and construction projects. Our projects range from civic and municipal buildings to mixed use housing and from commercial office buildings to recreational facilities and retail. We partner with non-profit organizations, building owners, public agencies, private developers, and design consultants to offer a breadth of sustainable consulting services for new and existing buildings. See www.archecology.com."]

{"sheet":"Combined Checklist","index":2,"n_rows":115,"n_cols":9,"rows_kept":115,"cut":false,"hidden":true,"merged":[[110,2,110,5],[111,2,111,5],[112,2,112,5],[113,2,113,5],[114,2,114,5],[104,2,104,5],[105,2,105,5],[106,2,106,5],[107,2,107,5],[108,2,108,5],[109,2,109,5],[98,2,98,5],[99,2,99,5],[100,2,100,5],[101,2,101,5],[102,2,102,5],[103,2,103,5],[92,2,92,5],[93,2,93,5],[94,2,94,5],[95,2,95,5],[96,2,96,5],[97,2,97,5],[86,2,86,5],[87,2,87,5],[88,2,88,5],[89,2,89,5],[90,2,90,5],[91,2,91,5],[80,2,80,5],[81,2,81,5],[82,2,82,5],[83,2,83,5],[84,2,84,5],[85,2,85,5],[74,2,74,5],[75,2,75,5],[76,2,76,5],[77,2,77,5],[78,2,78,5],[79,2,79,5],[68,2,68,5],[69,2,69,5],[70,2,70,5],[71,2,71,5],[72,2,72,5],[73,2,73,5],[62,2,62,5],[63,2,63,5],[64,2,64,5],[65,2,65,5],[66,2,66,5],[67,2,67,5],[56,2,56,5],[57,2,57,5],[58,2,58,5],[59,2,59,5],[60,2,60,5],[61,2,61,5],[50,2,50,5],[51,2,51,5],[52,2,52,5],[53,2,53,5],[54,2,54,5],[55,2,55,5],[44,2,44,5],[45,2,45,5],[46,2,46,5],[47,2,47,5],[48,2,48,5],[49,2,49,5],[38,2,38,5],[39,2,39,5],[40,2,40,5],[41,2,41,5],[42,2,42,5],[43,2,43,5],[32,2,32,5],[33,2,33,5],[34,2,34,5],[35,2,35,5],[36,2,36,5],[37,2,37,5],[29,2,29,5],[30,2,30,5],[31,2,31,5],[20,2,20,5],[21,2,21,5],[22,2,22,5],[23,2,23,5],[24,2,24,5],[25,2,25,5],[0,2,0,5],[15,2,15,5],[16,2,16,5],[17,2,17,5],[18,2,18,5],[19,2,19,5],[26,2,26,5],[27,2,27,5],[28,2,28,5]]}
["Y - ? - N","Number","Strategies",null,null,null,"Scope","Select"]
["^",null,null,null,null,null,{"$f":"IF(I2,H2,A2)","v":"^"},"*Demo*",false]
["^^",null,null,null,null,null,"^^","*Site*",false]
["^^^",null,null,null,null,"?","^^^","*Struct*",false]
["^ ^",null,null,null,null,null,"^ ^","*Env*",false]
["^^ ^^",null,null,null,null,"   N/A","^^ ^^","*Constr*",false]
["^^^ ^^^",null,null,null,null,null,"^^^ ^^^","*Finish*",false]
["^ ^ ^",null,null,null,null,null,"^ ^ ^","*S&E*",false]
["^ ^^ ^",null,null,null,null,null,"^ ^^ ^","*Furnish*",false]
["^ ^^^ ^",null,null,null,null,null,"^ ^^^ ^","*HVAC*",false]
["^^ ^ ^^",null,null,null,null,null,"^^ ^ ^^","*Plumb*",false]
["^^ ^^ ^^",null,null,null,null,null,"^^ ^^ ^^","*Elec*",false]
["^^ ^^^ ^^",null,null,null,null,null,"^^ ^^^ ^^","*FireSuppr*",false]
["^~^",null,null,null,null,null,"^~^","*Park*",false]
[null,null,null,null,null,null," "]
["Y - ? - N","Number","Strategies",null,null,null,"Scope","Select"]
[null,"S.1.1.A"," Clearly define construction limits from building perimeter, roads, utilities and stormwater detention facilities.",null,null,null,"Demo, Site ","?"]
[null,"S.1.1.B","Avoid construction on land within a wildlife corridor such as a wetland or stream buffer",null,null,null,"Site","?"]
[null,"S.1.1.C","Maximize vegetated open space on site including pedestrian hardscape and/or recreational amenities that are vegetated",null,null,null,"Site","?"]
[null,"S.1.1.D"," Limit use of turf grass to areas where required for programmatic reasons like playfields",null,null,null,"Site","?"]
[null,"S.1.1.E"," Do not disturb slopes greater than 15% ",null,null,null,"Site","?"]
[null,"S.1.1.F","Protect existing or restore native or adapted vegetation on previously disturbed sites",null,null,null,"Site","?"]
[null,"S.1.1.G","Remediate environmentally hazardous material in soil and/or building",null,null,null,"Demo, Site","?"]
[null,"S.2.1.A","Design to avoid bird collisions by using fritted glass, an auto shutoff of night time lighting, or by avoiding highly reflective glass",null,null,null,"Env","?"]
[null,"S.2.1.B","Select light colored or open grid paving for pedestrian hardscape",null,null,null,"Site","?"]
[null,"S.2.1.C","Provide shade for parking areas using trees, canopies, solar panels, vegetated roof areas or by locating parking underground",null,null,null,"Site","?"]
[null,"S.2.2.A","Limit trespass of exterior lighting over site boundary and upward into night sky by using shielded fixtures",null,null,null,"Elec","?"]
[null,"S.2.3.A","Align buildings so that major elevations face north and south",null,null,null,"Struct","?"]
[null,"S.2.4.A","Avoid construction within environmentally critical areas",null,null,null,"Site, Struct","?"]
[null,"S.2.4.B","Avoid construction within 100 ft of a lake, river, stream or wetland buffers",null,null,null,"Site, Struct","?"]
[null,"S.3.1.A","Protect existing trees by providing temporary fence",null,null,null,"Site, Struct","?"]
[null,"S.3.1.B","Select native or adapted vegetation for landscape",null,null,null,"Site","?"]
[null,"W.1.1.A","Provide a green roof ",null,null,null,"Struct, Env","?"]
[null,"W.1.1.B","Maintain no net increase or decrease quantity of stormwater discharge leaving the site",null,null,null,"Site","?"]
[null,"W.2.1.A","Reduce potable water for cooling tower make-up water",null,null,null,"HVAC","?"]
[null,"W.2.2.A","Install low flow plumbing fixtures",null,null,null,"Plumb","?"]
[null,"W.2.2.B","Install low volume flush fixtures ",null,null,null,"Plumb","?"]
[null,"W.2.2.C","Install water efficient commercial food service equipment. ",null,null,null,"S&E","?"]
[null,"W.2.3.A","Submeter high water use operations like irrigation or domestic hot water",null,null,null,"Plumb","?"]
[null,"W.3.1.A","Direct stormwater to pervious areas to remove 80% of total suspended solids",null,null,null,"Site","?"]
[null,"W.3.2.A","Implement erosion control measures prior to land disturbance",null,null,null,"Site","?"]
[null,"W.3.2.B","Enforce temporary erosion control measures for duration of construction",null,null,null,"Site","?"]
[null,"W.3.2.C","Install permanent vegetation or cover site areas prior to removal of temporary erosion control measures",null,null,null,"Site","?"]
[null,"W.3.2.D","Do not use construction materials in roofing or site areas that contribute to waterway contamination via stormwater runoff",null,null,null,"Site, Env","?"]
[null,"W.3.3.A","Provide above ground fuel tanks with secondary containment",null,null,null,"Plumb, S&E","?"]
[null,"W.3.3.B","Provide leak detection system for tanks and piping",null,null,null,"Plumb, Elec","?"]
[null,"W.3.3.C","Place parking under structure",null,null,null,"Struct","?"]
[null,"W.4.1.A","Provide high efficiency irrigation",null,null,null,"Site","?"]
[null,"W.4.1.B","Collect rainwater or graywater for irrigation",null,null,null,"Site, Plumb","?"]
[null,"W.4.1.C","Select plants that are native or adapted to minimize irrigation requirements",null,null,null,"Site","?"]
[null,"W.5.1.A","Provide on-site wastewater treatment infrastructure",null,null,null,"Site, Plumb","?"]
[null,"E.1.1.A","Commission building energy systems",null,null,null,"HVAC, Elec","?"]
[null,"E.1.2.A","Provide demand control ventilation (DCV) to respond to variable occupancy loads ",null,null,null,"HVAC","?"]
[null,"E.1.2.B","Provide building automation system",null,null,null,"HVAC","?"]
[null,"E.1.3.A","Submeter all major energy end uses",null,null,null,"Elec, HVAC","?"]
[null,"E.1.4.A","Reduce carbon emissions from heating equipment.",null,null,null,"HVAC","?"]
[null,"E.1.4.B","Increase motor efficiency for fans and pumps",null,null,null,"HVAC","?"]
[null,"E.1.4.C","Use Energy Star equipment & appliances",null,null,null,"S&E","?"]
[null,"E.1.4.D","Use efficient cooling equipment",null,null,null,"HVAC","?"]
[null,"E.1.4.E","Use efficient domestic water heating equipment ",null,null,null,"HVAC","?"]
[null,"E.1.4.F","Use efficient boiler equipment",null,null,null,"HVAC","?"]
[null,"E.2.1.A","Upgrade envelope elements as work allows (windows, insulation, wall cavities)",null,null,null,"Env, Struct","?"]
[null,"E2.1.B","Provide horizontal exterior shading devices for south windows",null,null,null,"Env","?"]
[null,"E2.1.C","Select light-colored roofing materials.",null,null,null,"Env, Struct","?"]
[null,"E.2.2.A","Size lighting control zones as small as feasible",null,null,null,"Elec","?"]
[null,"E.2.2.B","Reduce lighting energy use through use of automatic lighting controls",null,null,null,"Elec","?"]
[null,"E.2.2.C","Reduce lighting power density ",null,null,null,"Elec","?"]
[null,"E.2.2.D","Use efficient lighting fixtures",null,null,null,"Elec","?"]
[null,"C.1.1.A","Use low-emission boilers and furnaces",null,null,null,"HVAC","?"]
[null,"C.1.2.A","Phase out CFCs in existing buildings and replace with new equipment or refrigerants",null,null,null,"HVAC, FireSuppr","?"]
[null,"C.1.2.B","Provide leak detection and remote alarm where refrigerants are used",null,null,null,"HVAC","?"]
[null,"C.1.2.C","Select equipment with refrigerants that have low ozone depleting potential & low global warming potential",null,null,null,"S&E, HVAC, FireSuppr","?"]
[null,"C.2.1.A","Provide on-site renewable energy",null,null,null,"Elec, HVAC","?"]
[null,"C.3.1.A","Limit parking capacity to code minimum",null,null,null,"Site, Struct","?"]
[null,"C.3.1.B","Provide secure bike parking and shower/changing rooms",null,null,null,"Site, Constr","?"]
[null,"C.3.1.C","Provide preferred carpool/vanpool parking",null,null,null,"Site, Struct","?"]
[null,"C.3.2.A","Provide preferred parking for low-emitting/fuel efficient vehicles",null,null,null,"Site, Struct","?"]
[null,"C.3.2.B","Provide Level 2 electric vehicle charging stations (240v).",null,null,null,"Struct, Elec","?"]
[null,"M.1.1.A","Use materials manufactured within 500 miles of site",null,null,null,"Struct, Env, Constr, Finish, Furnish","?"]
[null,"M.1.1.B","Use materials harvested or extracted within 500 miles of site",null,null,null,"Struct, Env, Constr, Finish, Furnish","?"]
[null,"M.1.2.A","Use wood from Forest Stewardship Council (FSC) sources",null,null,null,"Struct, Env, Constr, Finish, Furnish","?"]
[null,"M.1.2.B","Use rapidly renewable materials, i.e., materials that are harvested within a 10 year or shorter timeframe",null,null,null," Finish, Furnish","?"]
[null,"M.2.1.A","Implement a construction waste management plan to divert recyclable waste from the landfill",null,null,null,"Demo, Site, Struct, Env, Constr, Finish, S&E, Furnish, HVAC, Plumb, Elec, FireSuppr, Park","?"]
[null,"M.2.2.A","Provide convenient and appropriately sized recycling collection and storage",null,null,null,"Constr, Finish, S&E, Furnish","?"]
[null,"M.3.1.A","Retain non-structural interior elements of existing building ",null,null,null,"Struct, Constr, Finish","?"]
[null,"M.3.1.B","Retain structural components of existing building",null,null,null,"Struct, Env, Constr","?"]
[null,"M.3.2.A","Use demountable floor-to-ceiling partitions and non-demising walls",null,null,null,"Struct, Constr","?"]
[null,"M.3.2.B","Select building assemblies based on life-cycle cost analysis",null,null,null,"Struct, Env, Constr, Finish","?"]
[null,"M.3.2.C"," Select building assemblies based on life-cycle assessment",null,null,null,"Struct, Env, Constr, Finish","?"]
[null,"M.3.2.D","Use building materials that contain recycled content",null,null,null,"Site, Struct, Env, Constr, Finish, Furnish","?"]
[null,"M.3.2.E","Re-use furniture and furnishings",null,null,null,"Furnish","?"]
[null,"M.3.2.F","Select well built furnishings for durability",null,null,null,"Furnish","?"]
[null,"IE.1.1.A","Use low-emitting interior adhesives and sealants",null,null,null,"Struct, Env, Constr, Finish. Plumb","?"]
[null,"IE.1.1.B","Use low-emitting interior paints and coatings",null,null,null,"Struct, Constr, Finish","?"]
[null,"IE.1.1.C","Use low-emitting systems furniture and seating",null,null,null,"Furnish","?"]
[null,"IE.1.1.D","Use wood and agrifiber products that contain no added urea-formaldehyde",null,null,null,"Struct, Constr, Finish, Furnish","?"]
[null,"IE.1.1.E","Use low-emitting flooring systems",null,null,null,"Finish","?"]
[null,"IE.1.1.F","Locate outdoor air intakes away from outdoor pollution sources",null,null,null,"HVAC","?"]
[null,"IE.1.1.G","Use envelope consultant to incorporate design measures to minimize water intrusion",null,null,null,"Env","?"]
[null,"IE.1.2.A","Provide thermal comfort controls to occupants",null,null,null,"HVAC","?"]
[null,"IE.1.2.B","Implement thermal comfort survey",null,null,null,"HVAC","?"]
[null,"IE.1.3.A","Provide appropriate daylight levels",null,null,null,"Env, Constr","?"]
[null,"IE.1.3.B","Install automatic daylight controls",null,null,null,"Elec","?"]
[null,"IE.1.3.C","Maximize occupied floor area with access to daylight",null,null,null,"Struct, Constr","?"]
[null,"IE.1.3.D","Provide efficient task lighting at individual workstations in open office areas with limited lighting controls",null,null,null,"Elec, Constr","?"]
[null,"IE.1.4.A","Meet the reverberation time requirements for the room type(s)",null,null,null,"Constr, Finish","?"]
[null,"IE.1.4.B","Provide speech privacy between enclosed spaces",null,null,null,"Struct, Constr","?"]
[null,"IE.1.4.C","Mitigate noise from HVAC equipment & plumbing",null,null,null,"Struct, Constr, HVAC, Plumb","?"]
[null,"IE.1.5.A","Implement job-site indoor air quality plan during construction",null,null,null," Struct, Env, Constr, Finish, S&E, Furnish, HVAC, Plumb, Elec, FireSuppr","?"]
[null,"IE.1.5.B","Perform building flush out prior to occupancy",null,null,null,"Constr, Finish","?"]
[null,"IE.1.6.A","Use a raised floor system or provide flexible ducts for air diffusers",null,null,null,"Struct, HVAC, Constr","?"]
[null,"IE.1.6.B","Provide sufficient volume of outside air",null,null,null,"HVAC","?"]
[null,"IE.1.6.C","Provide effective zone ventilation distribution",null,null,null,"HVAC","?"]
[null,"IE.1.6.D","Meet code ventilation requirements with natural ventilation or a combination of both mechanical and natural ventilation, regardless of project size.",null,null,null,"Env, HVAC","?"]
[null,"Parks","Parks Link",null,null,null,"Park","?"]

{"sheet":"All Strategies","index":3,"n_rows":398,"n_cols":7,"rows_kept":398,"cut":false,"hidden":true,"merged":[[395,2,395,4],[1,2,1,4],[386,2,386,4],[387,2,387,4],[390,2,390,4],[391,2,391,4],[378,2,378,4],[379,2,379,4],[382,2,382,4],[359,2,359,4],[346,2,346,4],[347,2,347,4],[350,2,350,4],[351,2,351,4],[383,2,383,4],[370,2,370,4],[371,2,371,4],[374,2,374,4],[338,2,338,4],[339,2,339,4],[342,2,342,4],[375,2,375,4],[362,2,362,4],[363,2,363,4],[330,2,330,4],[331,2,331,4],[334,2,334,4],[335,2,335,4],[322,2,322,4],[323,2,323,4],[394,2,394,4],[326,2,326,4],[327,2,327,4],[366,2,366,4],[367,2,367,4],[343,2,343,4],[354,2,354,4],[355,2,355,4],[358,2,358,4],[290,2,290,4],[291,2,291,4],[294,2,294,4],[295,2,295,4],[314,2,314,4],[315,2,315,4],[318,2,318,4],[319,2,319,4],[306,2,306,4],[298,2,298,4],[299,2,299,4],[302,2,302,4],[303,2,303,4],[307,2,307,4],[310,2,310,4],[311,2,311,4],[282,2,282,4],[283,2,283,4],[286,2,286,4],[287,2,287,4],[242,2,242,4],[243,2,243,4],[246,2,246,4],[263,2,263,4],[250,2,250,4],[251,2,251,4],[254,2,254,4],[255,2,255,4],[274,2,274,4],[275,2,275,4],[278,2,278,4],[279,2,279,4],[266,2,266,4],[267,2,267,4],[270,2,270,4],[271,2,271,4],[258,2,258,4],[259,2,259,4],[262,2,262,4],[247,2,247,4],[234,2,234,4],[235,2,235,4],[238,2,238,4],[239,2,239,4],[226,2,226,4],[227,2,227,4],[230,2,230,4],[231,2,231,4],[194,2,194,4],[195,2,195,4],[198,2,198,4],[199,2,199,4],[218,2,218,4],[219,2,219,4],[222,2,222,4],[223,2,223,4],[211,2,211,4],[214,2,214,4],[215,2,215,4],[186,2,186,4],[187,2,187,4],[190,2,190,4],[191,2,191,4],[210,2,210,4],[202,2,202,4],[203,2,203,4],[206,2,206,4],[207,2,207,4],[167,2,167,4],[154,2,154,4],[155,2,155,4],[158,2,158,4],[159,2,159,4],[178,2,178,4],[179,2,179,4],[182,2,182,4],[183,2,183,4],[170,2,170,4],[171,2,171,4],[174,2,174,4],[175,2,175,4],[150,2,150,4],[151,2,151,4],[138,2,138,4],[139,2,139,4],[142,2,142,4],[143,2,143,4],[162,2,162,4],[163,2,163,4],[166,2,166,4],[131,2,131,4],[134,2,134,4],[135,2,135,4],[122,2,122,4],[123,2,123,4],[126,2,126,4],[127,2,127,4],[146,2,146,4],[147,2,147,4],[114,2,114,4],[115,2,115,4],[118,2,118,4],[119,2,119,4],[106,2,106,4],[107,2,107,4],[110,2,110,4],[111,2,111,4],[130,2,130,4],[87,2,87,4],[74,2,74,4],[75,2,75,4],[78,2,78,4],[79,2,79,4],[98,2,98,4],[99,2,99,4],[102,2,102,4],[103,2,103,4],[90,2,90,4],[91,2,91,4],[94,2,94,4],[95,2,95,4],[70,2,70,4],[71,2,71,4],[58,2,58,4],[59,2,59,4],[62,2,62,4],[63,2,63,4],[82,2,82,4],[83,2,83,4],[86,2,86,4],[51,2,51,4],[54,2,54,4],[55,2,55,4],[42,2,42,4],[43,2,43,4],[46,2,46,4],[47,2,47,4],[66,2,66,4],[67,2,67,4],[34,2,34,4],[35,2,35,4],[38,2,38,4],[39,2,39,4],[26,2,26,4],[27,2,27,4],[30,2,30,4],[31,2,31,4],[50,2,50,4],[2,2,2,4],[3,2,3,4],[6,2,6,4],[7,2,7,4],[18,2,18,4],[19,2,19,4],[22,2,22,4],[23,2,23,4],[10,2,10,4],[11,2,11,4],[14,2,14,4],[15,2,15,4]]}
["More information can be found in the associated text"]
["Number","Links","Description"]
[null,"simp"," Clearly define construction limits from building perimeter, roads, utilities and stormwater detention facilities."]
["S.1.1.A",null,"A.  Within 40 feet of building perimeter, 5 feet from roads, walks and utility trenches; and 25 feet beyond storm water detention facilities and playing fields."]
["S.1.1.A+",null,"Baseline:","√"]
["S.1.1.A+",null,"Target:","n/a"]
["S.1.1.B","simp","Avoid construction on land within a wildlife corridor such as a wetland or stream buffer"]
["S.1.1.B","Seattle Municipal Code Title 25","B. See Seattle Municipal Code for specific requirements on allowable distance and buffer relative to project size."]
["S.1.1.B+",null,"Baseline:","meet code regardless of project size"]
["S.1.1.B+",null,"Target:","Do not disturb"]
["S.1.1.C","simp","Maximize vegetated open space on site including pedestrian hardscape and/or recreational amenities that are vegetated"]
["S.1.1.C",null,"C. Native/adapted or drought tolerant plants are encouraged."]
["S.1.1.C+",null,"Baseline:","25% of site area (excluding bldg footprint)"]
["S.1.1.C+",null,"Target:","50% of site area (excluding bldg footprint)"]
["S.1.1.D","simp"," Limit use of turf grass to areas where required for programmatic reasons like playfields"]
["S.1.1.D",null,"D.  Where turf is required, use a drought tolerant and low maintenance seed mix."]
["S.1.1.D+",null,"Baseline:","√"]
["S.1.1.D+",null,"Target:","n/a"]
["S.1.1.E","simp","Do not disturb slopes greater than 15%."]
["S.1.1.E",null,"E.  Do not disturb slopes greater than 15%. "]
["S.1.1.E+",null,"Baseline:","√"]
["S.1.1.E+",null,"Target:","n/a"]
["S.1.1.F","simp","Protect existing or restore native or adapted vegetation on previously disturbed sites"]
["S.1.1.F",null,"   F.  Vegetated roof areas may be included. Similar to S.3.1.B. which focuses on plant selection for new landscape work and W.4.1.C. which focuses on irrigation water reduction."]
["S.1.1.F+",null,"Baseline:","25% of site area (excluding bldg footprint)"]
["S.1.1.F+",null,"Target:","30% of site area (excluding bldg footprint)"]
["S.1.1.G","simp","Remediate environmentally hazardous material in soil and/or building"]
["S.1.1.G","Asbestos NESHAP","G. Remediate whether or not required by code.",null,null,null,"region 10 notification info  https://yosemite.epa.gov/R10/OWCM.NSF/webpage/Asbestos+in+Demolition+and+Renovation"]
["S.1.1.G+","EPA Asbestos Overview","Baseline:","Per NESHAP (National Emission Standard for Hazardous Air Pollutants) and AHERA (Asbestos Hazard Emergency Response Act) "]
["S.1.1.G+","AHERA","Target:","n/a"]
["S.2.1.A","simp","Design to avoid bird collisions by using fritted glass, an auto shutoff of night time lighting, or by avoiding highly reflective glass"]
["S.2.1.A",null,"A. Also consider temporary measures, such as netting, bird decals and streamers, in problem areas during migration season."]
["S.2.1.A+",null,"Baseline:","n/a"]
["S.2.1.A+",null,"Target:","√"]
["S.2.1.B","simp","Select light colored or open grid paving for pedestrian hardscape"]
["S.2.1.B",null,"B.  Select paving with an SRI of 29 or higher to reduce heat island effect."]
["S.2.1.B+",null,"Baseline:","30% of hardscape"]
["S.2.1.B+",null,"Target:","50% of hardscape"]
["S.2.1.C","simp","Provide shade for parking areas using trees, canopies, solar panels, vegetated roof areas or by locating parking underground"]
["S.2.1.C",null,"C.  Shade through the use of tree canopies that are established within 5 years, light colored canopies with an SRI of 29 or higher, structures covered by solar panels, vegetated roof areas, or by locating parking areas underground. The effective shade coverage on the parking area shall be the arithmetic mean of the shade coverage calculated at 10am, noon, and 3pm on the summer solstice."]
["S.2.1.C+","Seattle Master Tree List","Baseline:","50% of total parking area"]
["S.2.1.C+",null,"Target:","80% of total parking area"]
["S.2.2.A","simp","Limit trespass of exterior lighting over site boundary and upward into night sky by using shielded fixtures"]
["S.2.2.A",null,"A. Only light areas as required for safety and comfort, suitable for that lighting zone (LZ)"]
["S.2.2.A+","Dark Sky Friendly Lighting Directory ","Baseline:","Sites in residential areas (LZ1): Design exterior lighting to produce a maximum initial illuminance value no greater than 0.10 horizontal and vertical foot-candles at the site boundary and no greater than 0.01 horizontal foot-candles 10 feet beyond the site boundary. No more than 2% of total initial designed fixture lumens are emitted at an angle of 90 degrees or higher from nadir (straight down).\nSites in neighborhood and commercial areas (LZ2) :Design exterior lighting to produce a maximum initial illuminance value no greater than 0.20 horizontal and vertical foot-candles at the site boundary and no greater than 0.01 horizontal foot-candles 15 feet beyond the site boundary. No more than 5% of total initial designed fixture lumens are emitted at an angle of 90 degrees or higher from nadir (straight down).\nSite in downtown areas (LZ3):Design exterior lighting to produce a maximum initial illuminance value no greater than 0.60 horizontal and vertical foot-candles at the site boundary and no greater than 0.01 horizontal foot-candles 15 feet beyond the site boundary. \nAlternately - source fixtures with the appropriate BUG (Backlight Uplight Glare) rating for the project Light Zone and placement"]
["S.2.2.A+",null,"Target:","n/a"]
["S.2.3.A","simp","Align buildings so that major elevations face north and south"]
["S.2.3.A",null,"A.  Limit east and west exposures."]
["S.2.3.A+",null,"Baseline:","North and south facing glazing is at least 50% greater than east and west facing glazing"]
["S.2.3.A+",null,"Target:","East-west axis of building is within 15 degrees of due east-west"]
["S.2.4.A","simp","Avoid construction within environmentally critical areas"]
["S.2.4.A",null,"A. Develop on appropriate sites. "]
["S.2.4.A+",null,"Baseline:","Develop on a greenfield site, parkland or agricultural land ONLY when the building's purpose is related to the use of the land.  Examples - park shelter on parkland, or agricultural building on agricultural land."]
["S.2.4.A+",null,"Target:","Develop only 1) in an existing building envelope 2) on a greyfield or 3) on a brownfield."]
["S.2.4.B","simp","Avoid construction within 100 ft of a lake, river, stream or wetland buffers"]
["S.2.4.B","Municipal Code 25.06 Floodplain Development","B. See Seattle Municipal Code (SMC) for specific buffer requirements which vary for wetlands and water ways.  The Land use code may require more than 100 foot buffer in some cases.  However while the SMC allows averaging of the buffer, this strategy requires no development within 100 feet, and does not allow averaging of the buffer."]
["S.2.4.B+","Municipal Code 25.09 Environmentally Critical Areas","Baseline:","Regardless of code exemption"]
["S.2.4.B+",null,"Target:","Do not disturb"]
["S.3.1.A","simp","Protect existing trees intended to remain by providing temporary fence"]
["S.3.1.A",null,"A.  Provide temporary fence around drip line prior to start of construction."]
["S.3.1.A+",null,"Baseline:","√"]
["S.3.1.A+",null,"Target:","n/a"]
["S.3.1.B","simp","Select native or adapted vegetation for landscape"]
["S.3.1.B",null," B.  Similar to   S.1.1.F. which is focused on site restoration of existing vegetation and W.4.1.C. which focuses on irrigation water reduction. "]
["S.3.1.B+",null,"Baseline:","50% of landscape area"]
["S.3.1.B+",null,"Target:","100% of landscape area"]
["W.1.1.A","simp"," Provide a green roof."]
["W.1.1.A",null,"A. Provide a vegetated roof."]
["W.1.1.A+",null,"Baseline:","50% of roof area"]
["W.1.1.A+",null,"Target:","75% of roof area"]
["W.1.1.B","simp","Maintain no net increase, or decrease quantity of stormwater discharge leaving the site"]
["W.1.1.B","Stormwater Code","B. Achieve no net increase of quantity of storm water discharge leaving the site.  Use an 90th percentile rain event as basis for analysis and design. Use rain infiltration features, capture and reuse as suitable for site conditions and use."]
["W.1.1.B+","Green Stormwater Infrastructure (SPU)","Baseline:","No increase in storm water."]
["W.1.1.B+",null,"Target:","Reduce quantity of storm water leaving the site by 25%."]
["W.2.1.A","simp","Reduce potable water use for cooling tower make-up water."]
["W.2.1.A","Dept of Energy Cooling Tower BMPs","A. Reduce potable water use for cooling tower make-up water through improved chemical management and use of nonpotable water (e.g. air handler condensate, single pass cooling system water, properly treated greywater or rainwater)."]
["W.2.1.A+",null,"Baseline:","Install conductivity meter to monitor and manage chemical concentrations to reduce losses due to blowdown/makeup water."]
["W.2.1.A+",null,"Target:","More than 25% of make-up water from nonpotable sources"]
["W.2.2.A","simp"," Install low flow plumbing fixtures"]
["W.2.2.A",null,"A. Install low flow plumbing fixtures including lavatory faucets, showerheads and kitchen sink faucets. "]
["W.2.2.A+",null,"Baseline:","Exceed Seattle Plumbing Code with 2.0 gpm kitchen sink and showerhead"]
["W.2.2.A+",null,"Target:","Exceed Seattle Plumbing Code with 1.75 gpm kitchen sink and showerhead plus 0.5 gpm lavatory w/auto sensor"]
["W.2.2.B","simp"," Install low volume flush fixtures"]
["W.2.2.B",null,"B. Install low volume flush fixtures for water closets and urinals."]
["W.2.2.B+",null,"Baseline:","Exceed Seattle Plumbing Code with dual flush or low flush WC: 1.28 gpf and urinal: 0.5 gpf."]
["W.2.2.B+",null,"Target:","Exceed Seattle Plumbing Code with dual flush or low flush WC: 1.28/ and urinal: 0.125 gpf"]
["W.2.2.C","simp","Install water efficient commercial food service equipment. "]
["W.2.2.C",null,"C. Specify water efficient commercial food service equipment including low flow pre-rinse spray valves and Energy Star rated equipment. "]
["W.2.2.C+",null,"Baseline:","Use pre-rinse spray valves which operate at 1.3 gpm or less; Provide hands free controls for all faucets in the food prep area (including hand wash sinks, pot fillers and washing sinks); Provide Energy Star Rated Commercial Dishwashers and Steam Cookers as required by SEC."]
["W.2.2.C+",null,"Target:","In addition to baseline if in scope of work: 100% of eligible water using commercial equipment shall be Energy Star Rated (includes Combination Ovens, Ice Machines, and commercial clothes washers)."]
["W.2.3.A","simp","Submeter high water use operations like irrigation or domestic hot water"]
["W.2.3.A",null,"A. Provide submeters for high water use operations per code regardless of project size."]
["W.2.3.A+",null,"Baseline:","Irrigation"]
["W.2.3.A+",null,"Target:","Wet cooling towers, commercial kitchens, laundries, Domestic Hot Water (DHW) boilers"]
["W.3.1.A","simp","Direct stormwater to pervious areas to remove 80% of total suspended solids"]
["W.3.1.A",null,"A. Capture and treat stormwater run-off with biofiltration swales, rain gardens or a water quality vault."]
["W.3.1.A+",null,"Baseline:","√"]
["W.3.1.A+",null,"Target:","n/a"]
["W.3.2.A","simp","Implement erosion control measures prior to land disturbance"]
["W.3.2.A",null,"A. Implement measures per code regardless of project size, including temporary seeding, mulching, earth dike, silt fence, sediment trap or sediment basin . Similar to W.3.2.B. which focuses on maintenance rather than implementation."]
["W.3.2.A+",null,"Baseline:","√"]
["W.3.2.A+",null,"Target:","n/a"]
["W.3.2.B","simp"," Enforce temporary erosion control measures for duration of construction."]
["W.3.2.B",null,"B. Enforce temporary erosion control measures for duration of construction. Similar to W.3.2.A. which focuses on implementation rather than maintenance."]
["W.3.2.B+",null,"Baseline:","√"]
["W.3.2.B+",null,"Target:"]
["W.3.2.C","simp","Install permanent vegetation or cover site areas prior to removal of temporary erosion control measures"]
["W.3.2.C",null,"C. Prior to removal of temporary erosion control measures, install permanent vegetation or cover site areas per code regardless of project size."]
["W.3.2.C+",null,"Baseline:","√"]
["W.3.2.C+",null,"Target:","n/a"]
["W.3.2.D","simp","Do not use construction materials in roofing or site areas that contribute to waterway contamination via stormwater runoff"]
["W.3.2.D",null,"D. Avoid using construction materials such as copper and zinc roof appurtenances, galvanized materials, treated lumber, parking lot coal tar, and pesticides."]
["W.3.2.D+",null,"Baseline:","√"]
["W.3.2.D+",null,"Target:","n/a"]
["W.3.3.A","simp"," Provide above ground fuel tanks with secondary containment. "]
["W.3.3.A",null,"A. Provide above ground tanks with secondary containment. "]
["W.3.3.A+",null,"Baseline:","√"]
["W.3.3.A+",null,"Target:","n/a"]
["W.3.3.B","simp","Provide leak detection system for tanks and piping"]
["W.3.3.B",null,"B. Provide leak detection system with monitors and alarms for tanks and piping (includes fuel tanks)."]
["W.3.3.B+",null,"Baseline:","√"]
["W.3.3.B+",null,"Target:","n/a"]
["W.3.3.C","simp","Place parking under structure"]
["W.3.3.C",null,"C. Place parking under structure with oil/grease separator."]
["W.3.3.C+",null,"Baseline:","50% of parking"]
["W.3.3.C+",null,"Target:","100% of parking"]
["W.4.1.A","simp","Provide high efficiency irrigation"]
["W.4.1.A",null,"A. Provide high efficiency irrigation systems such as high efficiency head or drip irrigation to limit water evaporation."]
["W.4.1.A+",null,"Baseline:","√"]
["W.4.1.A+",null,"Target:","n/a"]
["W.4.1.B","simp"," Collect rainwater or graywater for irrigation."]
["W.4.1.B",null,"B. Use nonpotable water for irrigation, including onsite rainwater or graywater or municipally supplied nonpotable water. "]
["W.4.1.B+",null,"Baseline:","50% of irrigation water"]
["W.4.1.B+",null,"Target:","100% of irrigation water"]
["W.4.1.C","simp","Select plants that are native or adapted to minimize irrigation requirements"]
["W.4.1.C",null,"C. Similar to S.1.1.F. which is focused on site restoration of existing vegetation and S.3.1.B. which is intended to promote natural habitat."]
["W.4.1.C+",null,"Baseline:","50% of landscape area"]
["W.4.1.C+",null,"Target:","100% of landscape area"]
["W.5.1.A","simp","Provide on-site wastewater treatment infrastructure"]
["W.5.1.A",null,"A. Provide on-site wastewater treatment infrastructure such as a living machine for wastewater treatment or graywater system for wastewater reuse."]
["W.5.1.A+",null,"Baseline:","Below grade piping for graywater"]
["W.5.1.A+",null,"Target:","Living machine"]
["E.1.1.A","simp","Commission building energy systems."]
["E.1.1.A","Seattle Energy Code ","A. Seattle Energy Code requires all mechanical work and lighting controls be commissioned.  This strategy expands the requirement to include electrical systems.    "]
["E.1.1.A+",null,"Baseline:","Commission all mechanical and electrical work, regardless of project size, to meet the Seattle Energy Code.  "]
["E.1.1.A+",null,"Target:","Increase Cx scope to include peer review of design and construction documents, specifications and submittals.  Cx to participate in operator training and provide post occupancy review between 6-18 months after occupancy."]
["E.1.2.A","simp","Provide demand control ventilation (DCV) to respond to variable occupancy loads."]
["E.1.2.A",null,"A. Provide demand control ventilation (DCV) to respond to varying occupancy loads."]
["E.1.2.A+",null,"Baseline:","Ventilation controls respond to occupancy levels in densely occupied spaces (25 people/1000 SF - i.e. conference rooms, training rooms, break rooms)."]
["E.1.2.A+",null,"Target:","Ventilation controls respond to occupancy in any space with varying occupancy (i.e. open and private offices)."]
["E.1.2.B","simp","Provide building automation system"]
["E.1.2.B","Seattle Energy Code ","B. Seattle Energy Codes requires a 7-day programmable thermostat as a minimum.  For buildings with a cooling load over 65 tons more complex control systems are required.  The system must be capable of trending and demand response setpoint adjustment.  This strategy requires a building automation system regardless of system complexity.  Controls can be expanded to include lighting and hot water."]
["E.1.2.B+",null,"Baseline:","Direct Digital Controls (DDC) for building HVAC."]
["E.1.2.B+",null,"Target:","Expand DDC system to control lighting, and domestic hot water."]
["E.1.3.A","simp","Submeter all major energy end uses"]
["E.1.3.A","Seattle Energy Code ","A. SEC requires all buildings over 20,000 SF to have energy metering for all major end uses. There are special provisions for existing buildings (see Sect. C506). This strategy encourages existing buildings to upgrade and for buildings below the 20,000 SF threshold to meet the requirements of the code."]
["E.1.3.A+",null,"Baseline:","Install measurement devices with remote communication capability for each energy source regardless of project size.   "]
["E.1.3.A+",null,"Target:","Install measurement devices with remote communication capability for each energy source AND end use regardless of project size.   See SEC Sect. C409.3.1-6 for end use definitions."]
["E.1.4.A","simp","Reduce carbon emissions from heating equipment."]
["E.1.4.A","Seattle Energy Code ","A. Use efficient warm air furnaces (includes the heating side of combination warm-air furnaces/air-condition units; duct furnaces and unit heaters). Consult Energy Star and AHRI for most efficient units available. "]
["E.1.4.A+",null,"Baseline:","Opt. 1 - Capacities less than 225,000 btu/h: Install natural gas fired heating equipment with an AFUE of 98% and/or oil fired heating equipment with and AFUE of 87% .                                                                                      Opt. 2 - Capacities of 225,000 btu/h or greater: Provide heating equipment with a minimum thermal efficiency of 82%. Note: New rating criteria is being developed for larger gas unitary equipment.  Consult Energy Star and AHRI for most efficient units available."]
["E.1.4.A+",null,"Target:","Use electric heat pump equipment, no gas."]
["E.1.4.B","simp","Increase motor efficiency for fans and pumps"]
["E.1.4.B","Seattle Energy Code ","B. Increase motor efficiency using variable speed drives and equipment choices."]
["E.1.4.B+",null,"Baseline:","Choose appropriate size and use variable speed drives for fans and pumps with a motor horsepower of 5 hp or larger.  Use electronically commutated motor on motors under 1 hp. Baseline is to comply with latest code even where exempt."]
["E.1.4.B+",null,"Target:","n/a"]
["E.1.4.C","simp","Use Energy Star equipment & appliances "]
["E.1.4.C",null,"C. Use Energy Star equipment & appliances (includes commercial food service equipment) for eligible equipment."]
["E.1.4.C+",null,"Baseline:","100% of Eligible Appliances; 50% of Eligible Equipment."]
["E.1.4.C+",null,"Target:","100% Eligible Appliances; 75% Eligible Equipment."]
["E.1.4.D","simp","Use efficient cooling equipment"]
["E.1.4.D","CEE","D. Use efficient cooling equipment per the most recent CEE specifications."]
["E.1.4.D+","CEE Appendix A","Baseline:","Unitary Equipment:  Meet lowest Tier (1 or 2) of CEE Specification for Unitary AC;\nHeat Pumps: meet Tier 1 of CEE Specification;\nVariable Refrigerant Flow systems:  Meet Tier 1 of CEE Specification for VRF Multi-split AC or Heat Pump. For any equipment not listed in CEE specifications, use efficiency requirements of SEC."]
["E.1.4.D+",null,"Target:","All equipment:  Meet highest applicable Tier of CEE Specification."]
["E.1.4.E","simp","Use efficient domestic water heating equipment "]
["E.1.4.E","Seattle Energy Code ","E. This strategy only applies to units that provide hot potable water.  Units which also provide space heat are categorized as boilers."]
["E.1.4.E+","Energy Star Commercial WH Criteria","Baseline:","Install Energy Star rated equipment for water heaters which are Energy Star eligible. All others meet most restrictive requirements either ASHRAE 90.1-2010 or latest SEC. "]
["E.1.4.E+","Energy Star Residential WH Criteria","Target:","Use Heat Pump water heater with EF ≥ 2.0"]
["E.1.4.F","simp","Use efficient boiler equipment"]
["E.1.4.F","Seattle Energy Code ","F. A boiler supplies hot water  for space heating or a combination of space heating and domestic hot water. "]
["E.1.4.F+",null,"Baseline:","Opt. 1 -  Capacities less than 300,000 Btu/h: Gas fired boilers to have a min. efficiency of 89% AFUE; oil fired boilers to have a minimum efficiency of 87% AFUE\nOpt. 2 -  Capacities of 300,000 Btu/h or higher: Gas fired boilers to have a minimum thermal efficiency (TE or Et) of 89%;  oil fired boilers to have a thermal efficiency of 85%"]
["E.1.4.F+",null,"Target:","Opt. 1 -  Capacities less than 300,000 Btu/h: Gas and oil fired boilers to have a min. efficiency of 90% AFUE\nOpt. 2 -  Capacities of 300,000 Btu/h or higher: Gas and oil fired boilers to have a minimum thermal efficiency (TE or Et) of 94% and a turndown ratio ≥ 5:1"]
["E.2.1.A","simp","Upgrade envelope elements as work allows (windows, insulation, wall cavities)"]
["E.2.1.A","Seattle Energy Code ","A. Upgrade windows, insulation and wall cavities per Seattle Energy Code as work allows."]
["E.2.1.A+",null,"Baseline:","For additions and alterations comply with Chapter 5 of latest SEC as applicable. \nFor new buildings comply with latest SEC envelope requirements."]
["E.2.1.A+",null,"Target:","For new buildings, improve envelope components UA by 10% over new code."]
["E2.1.B","simp","Provide horizontal exterior shading devices for south windows."]
["E2.1.B",null,"B. Provide horizontal exterior shading devices for south windows."]
["E2.1.B+",null,"Baseline:","30% of windows shaded"]
["E2.1.B+",null,"Target:","60% of windows shaded"]
["E2.1.C","simp","Select light-colored roofing materials"]
["E2.1.C",null,"C. Select light-colored roofing materials: For low slope roofs provide Solar Reflectance Index (SRI) of 78 or higher. For slopes greater than 2:12, select roofing materials with SRI of 29 or higher."]
["E2.1.C+",null,"Baseline:","75% of roof area (excluding equipment area)."]
["E2.1.C+",null,"Target:","100% of roof area (excluding equipment area)."]
["E.2.2.A","simp","Size lighting control zones as small as feasible."]
["E.2.2.A",null,"A. Size lighting control zones as small as feasible."]
["E.2.2.A+",null,"Baseline:","Regardless of project size or scope"]
["E.2.2.A+",null,"Target:","n/a"]
["E.2.2.B","simp","Reduce lighting energy use through use of automatic lighting controls"]
["E.2.2.B","Seattle Energy Code ","B. Reduce lighting energy use via daylight controls and occupancy sensors in spaces with intermittent use. "]
["E.2.2.B+",null,"Baseline:","Provide occupancy and daylight controls according to latest Energy Code."]
["E.2.2.B+",null,"Target:","n/a"]
["E.2.2.C","simp","Reduce lighting power density"]
["E.2.2.C","Seattle Energy Code ","C. Reduce lighting power density  and supplement w/task lighting or daylighting."]
["E.2.2.C+",null,"Baseline:","Reduce lighting power density by 5%"]
["E.2.2.C+",null,"Target:","Comply with Jan 2018 standards listed in SEC"]
["E.2.2.D","simp","Use efficient lighting fixtures"]
["E.2.2.D",null,"D. Use efficient electric lighting."]
["E.2.2.D+",null,"Baseline:","Use lamps with high efficacy (Lumen/Watt) such as T8 or T5, or LED.  Use Energy Star CFL's and LEDs"]
["E.2.2.D+",null,"Target:","n/a"]
["C.1.1.A","simp","Use low emission boilers and furnaces "]
["C.1.1.A","SCAQMD - 1146","A. Use low nitrogen oxides boilers and low carbon monoxide furnaces. Comply with current standard of South Coast Air Quality Management District Rule 1146 "]
["C.1.1.A+",null,"Baseline:","All capacities gaseous fuels: Emissions of Knox do not exceed 30 ppm\nAll capacities, non-gaseous fuels: Emissions of Knox do not exceed 40 ppm"]
["C.1.1.A+",null,"Target:","≤ 2 million Btu/h: NOx limit - 20 ppm\n> 2 million Btu/h: NOx limit -  9 ppm  "]
["C.1.2.A","simp","Phase out CFCs in existing buildings and replace with new equipment or refrigerants"]
["C.1.2.A",null,"A. Replace CFCs in existing equipment with new refrigerants regardless of code or scope of work requirement."]
["C.1.2.A+",null,"Baseline:","Ozone Depletion Potential (ODP) ≤ 0.02 and Global Warming Potential (GWP) ≤ 1900 (R-407C, R-410A, R134A)"]
["C.1.2.A+",null,"Target:","Ozone Depletion Potential (ODP) = 0.02 and Global Warming Potential (GWP) < 150 (R-123, CO2, NH3, Propane)"]
["C.1.2.B","simp","Provide leak detection and remote alarm where refrigerants are used"]
["C.1.2.B","Seattle Mechanical Code ","B. Excludes appliances with less than 0.5 pounds of refrigerant. Seattle Mechanical Codes  limits the amount of refrigerant equipment can contain without being located either outside or in an enclosed machine room.  Machinery rooms are required to have refrigerant leak detection and alarms.  The primary intent of the code is to protect occupants from refrigerant leaks.  "]
["C.1.2.B+",null,"Baseline:","Regardless of project size"]
["C.1.2.B+",null,"Target:","n/a"]
["C.1.2.C","simp","Select equipment with refrigerants that have low ozone depleting potential & low global warming potential"]
["C.1.2.C",null,"C. Select new HVAC and refrigeration and fire suppression equipment with refrigerants that have low ozone depleting potential (ODP) & low global warming potential (GWP)."]
["C.1.2.C+",null,"Baseline:","Ozone Depletion Potential (ODP) = 0.02 and Global Warming Potential (GWP) < 150 (R-123, CO2, NH3, Propane)"]
["C.1.2.C+",null,"Target:","No refrigerants"]
["C.2.1.A","simp","Provide on-site renewable energy"]
["C.2.1.A","Seattle Energy Code ","A. Use on-site renewable energy, including photovoltaics, solar thermal, and wind."]
["C.2.1.A+",null,"Baseline:","Provide minimum watts per s.f. of conditioned space as indicated in code"]
["C.2.1.A+",null,"Target:","25% capacity increase over code requirement"]
["C.3.1.A","simp","Limit parking capacity to code minimum"]
["C.3.1.A",null,"A. Limit parking capacity to code. Where there is a minimum and maximum requirement, provide no more than the minimum. "]
["C.3.1.A+",null,"Baseline:","√"]
["C.3.1.A+",null,"Target:","n/a"]
["C.3.1.B","simp","Provide secure bike parking and shower/changing rooms"]
["C.3.1.B",null,"B. Provide secure bike parking for peak occupancy (FTEs + maximum visitors) and shower/changing rooms for FTEs. "]
["C.3.1.B+",null,"Baseline:","Bike parking for 5% of peak and showers for 0.5% of FTEs"]
["C.3.1.B+",null,"Target:","Bike parking for 10% of peak and showers for 1% of FTEs"]
["C.3.1.C","simp","Provide preferred carpool/vanpool parking"]
["C.3.1.C",null,"C. Provide preferred carpool/vanpool parking spaces based on total parking spaces."]
["C.3.1.C+",null,"Baseline:","5% of total parking spaces"]
["C.3.1.C+",null,"Target:","10% of total parking spaces"]
["C.3.2.A","simp","Provide preferred parking for low emitting/fuel efficient vehicles "]
["C.3.2.A","ACEEE","A. Locate preferred parking for low emitting/fuel efficient vehicles closest to the entrance exclusive of ADA. Eligible vehicles are classified as Zero Emission Vehicles by the California Air Resources Board or have achieved a minimum score of 45 on the American Council for an Energy Efficient Economy (ACEEE) annual vehicle rating guide."]
["C.3.2.A+",null,"Baseline:","5% of total parking spaces"]
["C.3.2.A+",null,"Target:","10% of total parking spaces"]
["C.3.2.B","simp","Provide Level 2 electric vehicle charging stations (240v)."]
["C.3.2.B",null,"B. Provide Level 2 electric vehicle charging stations (240v)."]
["C.3.2.B+",null,"Baseline:","1 per 100 spaces"]
["C.3.2.B+",null,"Target:","2 per 100 spaces"]
["M.1.1.A","simp","Use materials manufactured within 500 miles of site."]
["M.1.1.A",null,"A. Source materials manufactured within 500 miles of the project site."]
["M.1.1.A+",null,"Baseline:","20% cost of materials"]
["M.1.1.A+",null,"Target:","40% cost of materials"]
["M.1.1.B","simp","Use materials harvested or extracted within 500 miles of site."]
["M.1.1.B",null,"B. Source materials harvested or extracted within 500 miles of the project site."]
["M.1.1.B+",null,"Baseline:","5% cost of materials"]
["M.1.1.B+",null,"Target:","10% cost of materials"]
["M.1.2.A","simp","Use wood from Forest Stewardship Council (FSC) sources"]
["M.1.2.A","FSC  ","A.  Use wood from Forestry Stewardship Council (FSC) sources"]
["M.1.2.A+",null,"Baseline:","20% cost of wood products"]
["M.1.2.A+",null,"Target:","50% cost of wood products"]
["M.1.2.B","simp","Use bio-based products that meet the Sustainable Agriculture Network standard."]
["M.1.2.B","Sustainable Agriculture Network","B. Materials include cork, linoleum, wheatgrass, bamboo, cellulose insulation, etc."]
["M.1.2.B+",null,"Baseline:","1% cost of materials"]
["M.1.2.B+",null,"Target:","2.5% cost of materials"]
["M.2.1.A","simp","Implement a construction waste management plan as to divert recyclable waste from the landfill"]
["M.2.1.A","Waste Diversion Plan and Assessment permit form","A. Implement Construction Waste Management Plan. See SPU page regarding mandatory reporting requirements.  The SDCI Permit Form directory has a form for the required Plan. Materials must be taken to a Seattle certified facility. (List on SPU page)."]
["M.2.1.A+","SPU C&D Waste","Baseline:","75% waste diverted"]
["M.2.1.A+","King County C&D Recycling ","Target:","85% waste diverted"]
["M.2.2.A","simp","Provide convenient and appropriately sized recycling and composting collection and storage"]
["M.2.2.A",null,"A. Provide conveniently located and appropriately sized recycle collection & storage for paper, metal, cardboard, plastic and glass, and compost."]
["M.2.2.A+",null,"Baseline:","√"]
["M.2.2.A+",null,"Target:","Add collection for batteries, fluorescent lamps and e-waste."]
["M.3.1.A","simp","Retain non-structural interior elements of existing building "]
["M.3.1.A",null,"A. Retain non-structural interior elements of existing building . Including finished flooring, finished ceiling, walls, casework and doors."]
["M.3.1.A+",null,"Baseline:","40% of surface area"]
["M.3.1.A+",null,"Target:","60% of surface area"]
["M.3.1.B","simp","Retain structural components of existing building"]
["M.3.1.B",null,"B. Retain structural components of existing building, including roof, wall and floors but excluding windows."]
["M.3.1.B+",null,"Baseline:","50% of existing walls, floors and roof by surface area"]
["M.3.1.B+",null,"Target:","75% of existing walls, floors and roof by surface area"]
["M.3.2.A","simp","Use demountable floor-to-ceiling partitions and non-demising walls"]
["M.3.2.A",null,"A. Use demountable floor-to-ceiling partitions for interior non structural and non-demising walls in lieu of standard wall construction (GWB)."]
["M.3.2.A+",null,"Baseline:","30% of interior non-structural walls"]
["M.3.2.A+",null,"Target:","60% of interior non-structural walls"]
["M.3.2.B","simp","Select building assemblies based on life-cycle cost analysis"]
["M.3.2.B","LCCA Technical Resources at King County Green Tools","B. Select building assemblies based on life-cycle cost analysis and 15 year payback periods."]
["M.3.2.B+",null,"Baseline:","Use life cycle cost analysis to select major building components"]
["M.3.2.B+",null,"Target:","Use life cycle cost analysis to select foundation & floor, structural systems & walls, roof, envelope"]
["M.3.2.C","simp","Select building assemblies based on life-cycle assessment"]
["M.3.2.C","ASMI-Impact Estimator ","C. Use software to perform life cycle assessment.  Athena Sustainable Materials Institute (ASMI) and Solidworks CAD Sustainability Xpress add-on can help analyze buildings and assemblies.  US National Institute for Standards and Technology (NIST) Building for Environmental and Economic Sustainability (BEEs) offers analysis at the product level. "]
["M.3.2.C+","BEES","Baseline:","Use life cycle assessment software to select major building components"]
["M.3.2.C+",null,"Target:","Use life cycle assessment software to select foundation and floor, structural systems and walls, roof, envelope","90-bnm "]
["M.3.2.D","simp","Use building materials that contain recycled content."]
["M.3.2.D",null,"D. Calculation is based on total cost of building materials only, excluding labor and MEP. Post consumer content, already used by consumers and discarded, to be valued at 100% of proportionate cost. Pre-consumer content, waste from manufacturing reintroduced into the process, to be valued at 50% of proportionate cost."]
["M.3.2.D+",null,"Baseline:","5% total cost of bldg materials"]
["M.3.2.D+",null,"Target:","20% total cost of bldg materials"]
["M.3.2.E","simp"," Re-use furniture and furnishings"]
["M.3.2.E",null,"E. Use current replacement value to establish cost of re-used items."]
["M.3.2.E+",null,"Baseline:","30% of furniture and furnishings budget"]
["M.3.2.E+",null,"Target:","60% of furniture and furnishings budget"]
["M.3.2.F","simp","Select well built furnishings for durability."]
["M.3.2.F",null,"F. Select well built furnishings for durability."]
["M.3.2.F+",null,"Baseline:","10 years"]
["M.3.2.F+",null,"Target:","20 years"]
["IE.1.1.A","simp","Use low-emitting interior adhesives and sealants"]
["IE.1.1.A","SCAQMD - 1168","A. Use low-emitting interior adhesives & sealants, i.e., inside the weather barrier."]
["IE.1.1.A+",null,"Baseline:","Meet South Coast Air Quality Management District Rule #1168, dated 1/7/2005"]
["IE.1.1.A+",null,"Target:","na"]
["IE.1.1.B","simp","Use low-emitting interior paints and coatings"]
["IE.1.1.B","SCAQMD - 1113","B. Use low-emitting interior paints & coatings, i.e., inside the weather barrier."]
["IE.1.1.B+","Green Seal 11","Baseline:","Meet 2010 Green Seal GS-11 Third Edition or South Coast Air Quality Management District Rule 1113, dated 2/5/16"]
["IE.1.1.B+","UL GreenGuard Gold\n\n","Target:","Use products that are emissions tested and compliant with the California Department of Public Health (CDPH) Standard Method V1.1-2010. Examples of testing certifications that are compliant include:\nUL Greenguard Gold; \nSCS Indoor Advantage Gold;\nClearChem Declared (Berkeley Analytical);\nIntertek ETL Environmental VOC+;\nMaterials Analytical Services (MAS) Certified Green"]
["IE.1.1.C","simp","Use low-emitting  systems furniture and seating"]
["IE.1.1.C","Healthier Products & Building Materials ","C. Use low-emitting  systems furniture & seating certified by large chamber emissions protocols for all new purchases."]
["IE.1.1.C+","Scientific Certification Systems Indoor Advantage Gold ","Baseline:","Green Guard or Indoor Advantage Gold  Certified"]
["IE.1.1.C+",null,"Target:","n/a"]
["IE.1.1.D","simp","Use wood and agrifiber products that contain no added urea formaldehyde"]
["IE.1.1.D",null,"D. Use wood and agrifiber products that contain no added urea formaldehyde such as plywood, MDF, OSB."]
["IE.1.1.D+","CARB Composite Wood","Baseline:","CARB compliant for Ultra Low Emitting Formaldehyde"]
["IE.1.1.D+",null,"Target:","Labeled as containing No Added Urea Formaldehyde."]
["IE.1.1.E","simp","Use low-emitting flooring systems"]
["IE.1.1.E","CRI","E. Use low-emitting carpet, cushion and hard surface flooring. Flooring adhesives to meet low emitting adhesives requirements. "]
["IE.1.1.E+","NSF/ANSI 140 ","Baseline:","Carpet, Pad and Adhesive: Carpet and Rug Institute's (CRI) Green Label Plus;                                                                                                 Hard surface Flooring:  Floorscore Certified (except for solid wood and mineral based flooring)"]
["IE.1.1.E+",null,"Target:","Carpet: NSF/ANSI 140 Gold"]
["IE.1.1.F","simp","Locate outdoor air intakes away from outdoor pollution sources"]
["IE.1.1.F","Seattle Mechanical Code ","F. Seattle Mechanical Codes requires a minimum of 10 ft. horizontal separation between air intakes and any hazardous or noxious contaminant source. Contaminant sources are considered to be vents, streets, alleys, parking areas, and loading docks. (Exhaust from residential bathroom, kitchen and laundries are not considered hazardous and therefore smaller separations are required). This strategy increases the separation distance."]
["IE.1.1.F+",null,"Baseline:","10' from plumbing vents; 40' from parking areas and loading docks; no smoking within 25' of openings"]
["IE.1.1.F+",null,"Target:","Increase distance to 60' from parking areas and loading docks.  Do not allow smoking anywhere on the site."]
["IE.1.1.G","simp","Use envelope consultant to incorporate design measures to minimize water intrusion."]
["IE.1.1.G",null,"G. Use envelope consultant to incorporate design measures to minimize water intrusion."]
["IE.1.1.G+",null,"Baseline:","Member of design team"]
["IE.1.1.G+",null,"Target:","3rd party consultant"]
["IE.1.2.A","simp","Provide thermal comfort controls to occupants"]
["IE.1.2.A",null,"A.  Provide thermal comfort controls to occupants."]
["IE.1.2.A+",null,"Baseline:","1 control zone per orientation and for each multi-occupant space, and \nAdjustable window coverings"]
["IE.1.2.A+",null,"Target:","In addition, provide operable windows"]
["IE.1.2.B","simp","Implement thermal comfort survey"]
["IE.1.2.B",null,"B. If project includes HVAC modifications, conduct thermal comfort survey. Survey to be based on 7pt scale format of  agree strongly, agree, agree somewhat, neutral, disagree somewhat, disagree, disagree strongly."]
["IE.1.2.B+",null,"Baseline:","Conduct survey. Implement corrective action plan if more than 20% of respondents provide negative feedback"]
["IE.1.2.B+",null,"Target:","Conduct comfort survey annually"]
["IE.1.3.A","simp","Provide appropriate daylight levels."]
["IE.1.3.A","Seattle Energy Code ","A.  Provide appropriate daylight levels."]
["IE.1.3.A+",null,"Baseline:","Baseline: For all interior opaque surfaces in the daylight zones provide a visible light reflectance value (LRV) of 80% for ceilings, 65% for walls over 56” in height. (LRV is readily available information from paint and ceiling tile manufacturers)"]
["IE.1.3.A+",null,"Target:","Target:  In addition to baseline requirements, meet an Effective Aperature criteria of at least 0.15 (Effective Aperature is the window to wall ratio multiplied by visible light transmittance)"]
["IE.1.3.B","simp","Install automatic daylight controls"]
["IE.1.3.B","Seattle Energy Code ","B. Similarly to E2.2.B- Install automatic daylight controls within 15' of all perimeter glazing, regardless of code compliance threshold."]
["IE.1.3.B+",null,"Baseline:","Multi-Step Dimming"]
["IE.1.3.B+",null,"Target:","Continuous Dimming"]
["IE.1.3.C","simp","Maximize occupied floor area w/ access to daylight. "]
["IE.1.3.C",null,"C. Build full height walls at interior of floor and not at the perimeter so as to not obscure line of sight to windows. Minimum of 10 footcandles and maximum of 500 footcandles."]
["IE.1.3.C+",null,"Baseline:","50% of regularly occupied spaces are located within daylight zones and <=30% full height walls at perimeter"]
["IE.1.3.C+",null,"Target:","75% or more of regularly occupied spaces are located within daylight zones and 0 full height walls at perimeter"]
["IE.1.3.D","simp","Provide efficient task lighting at individual workstations in open office areas with limited lighting controls"]
["IE.1.3.D",null,"D. Provide efficient LED task lighting fixtures.  Permanently mounted occupant sensing fixtures preferred, but not required."]
["IE.1.3.D+",null,"Baseline:","75% of workstations"]
["IE.1.3.D+",null,"Target:","90% of work stations"]
["IE.1.4.A","simp","Meet the reverberation time requirements for the room type(s)"]
["IE.1.4.A",null,"A.  Offices, conference rooms, teleconference rooms <0.6; open plan office without sound masking <0.8; open plan office with sound masking 0.8; courtroom unamplified <0.7; amplified <1; library <1. (Requirements are in T60 (sec) at 500Hz, 1000Hz and 2000 Hz)"]
["IE.1.4.A+",null,"Baseline:","Meet recommended requirements."]
["IE.1.4.A+",null,"Target:","Implement recommendations of acoustical engineer for specific space configurations and needs"]
["IE.1.4.B","simp","Provide speech privacy between enclosed spaces.   "]
["IE.1.4.B",null,"B. Floor /ceiling assemblies shall meet the Barrier STC rating for the application -STC 45 between standard offices; STC 50 between executive offices, offices and conference rooms; STC 60 between mechanical equipment rooms and other occupied spaces."]
["IE.1.4.B+",null,"Baseline:","Design interior floor and ceiling assemblies to meet the above criteria when Seattle Building Code does not have a requirement for STC between spaces."]
["IE.1.4.B+",null,"Target:","Conduct acoustic comfort survey after completion. Take corrective action if significant speech privacy issues exist."]
["IE.1.4.C","simp","Mitigate noise from HVAC equipment & plumbing"]
["IE.1.4.C",null,"C. Background noise levels (from equipment) should not exceed guidelines in ASHRAE 2011 HVAC Applications Chapter 48, Table 1 for applicable space types,  See guide book for additional details. Calculate or measure sound levels."]
["IE.1.4.C+",null,"Baseline:","√"]
["IE.1.4.C+",null,"Target:","n/a"]
["IE.1.5.A","simp","Implement job-site indoor air quality plan during construction"]
["IE.1.5.A",null,"A.  Implement job-site indoor air quality (IAQ) plan during construction, regardless of code threshold."]
["IE.1.5.A+",null,"Baseline:","√"]
["IE.1.5.A+",null,"Target:","n/a"]
["IE.1.5.B","simp","Perform building flush out prior to occupancy."]
["IE.1.5.B",null,"B. Flush out building with outside air prior to occupancy."]
["IE.1.5.B+",null,"Baseline:","3500 CFM/SF at 60 degrees F and 60% humidity"]
["IE.1.5.B+",null,"Target:","14000 CFM/SF at 60 degrees F and 60% humidity"]
["IE.1.6.A","simp","Design duct work and electric/cable runs for accessibility and flexibility"]
["IE.1.6.A",null,"A. Use interstitial floors, raised floors or careful dropped ceiling or exposed ceiling design to allow for changes in room configurations"]
["IE.1.6.A+",null,"Baseline:","Carefully planned drop or exposed ceilings"]
["IE.1.6.A+",null,"Target:","Raised floor or interstitial floor system"]
["IE.1.6.B","simp","Provide sufficient volume of outside air"]
["IE.1.6.B","Seattle Mechanical Code ","B. Provide sufficient volume of outside air in accordance with current Seattle Mechanical Code and ASHRAE 62.1-2007"]
["IE.1.6.B+",null,"Baseline:","For new buildings, use ASHRAE 62.1-2007 VRP calculation or Seattle Mechanical Code to determine minimum outside air to each occupied space."]
["IE.1.6.B+",null,"Target:","Provide permanently mounted outdoor air flow measurement device.  OR for Constant Volume air supply systems; provide a damper position feedback system. See guidebook for details.  "]
["IE.1.6.C","simp","Provide effective zone ventilation distribution."]
["IE.1.6.C","Seattle Mechanical Code ","C. The effectiveness of the ventilation distribution is based on the configuration:  i.e.  Ceiling supply of warm air with a ceiling return is less effective than a ceiling supply  of warm air with a floor return.  In addition, the distribution effectiveness change on the operating condition of the system (heating or cooling).  The Seattle Mechanical Code and ASHRAE 62.1 take this into account in the minimum outside air requirement by applying a factor to less effective configurations. The less effective configurations require a higher volume of outside air which in turn increases energy use."]
["IE.1.6.C+",null,"Baseline:","Provide a system with a worst case operating condition ventilation distribution effectiveness (Ez) of at least 0.8 as determined by SMC Table 403.3.1.2."]
["IE.1.6.C+",null,"Target:","Provide a system with a worst case operating condition ventilation distribution effectiveness (Ez) of at 1.0 as determined by SMC Table 403.3.1.2."]
["IE.1.6.D","simp","Meet code ventilation requirements with natural ventilation or a combination of both mechanical and natural ventilation, regardless of project size."]
["IE.1.6.D",null,"D. Meet code ventilation requirements with natural ventilation or a combination of both mechanical and natural ventilation, regardless of project size."]
["IE.1.6.D+",null,"Baseline:","Incorporate operable windows to provide ventilation for areas within 25 feet of perimeter.  (Minimum requirement of 4% net open area of floor area within 25 feet of window)."]
["IE.1.6.D+",null,"Target:","n/a"]
[]
[]
[]
["Parks+"]

{"sheet":"makeup","index":4,"n_rows":511,"n_cols":10,"rows_kept":511,"cut":false,"hidden":true,"merged":[[496,2,496,5],[497,2,497,5],[500,3,500,5],[501,2,501,5],[502,2,502,5],[505,3,505,5],[486,2,486,5],[487,2,487,5],[490,3,490,5],[491,2,491,5],[492,2,492,5],[495,3,495,5],[476,2,476,5],[477,2,477,5],[480,3,480,5],[481,2,481,5],[482,2,482,5],[485,3,485,5],[466,2,466,5],[467,2,467,5],[470,3,470,5],[471,2,471,5],[472,2,472,5],[475,3,475,5],[456,2,456,5],[457,2,457,5],[460,3,460,5],[461,2,461,5],[462,2,462,5],[465,3,465,5],[446,2,446,5],[447,2,447,5],[450,3,450,5],[451,2,451,5],[452,2,452,5],[455,3,455,5],[436,2,436,5],[437,2,437,5],[440,3,440,5],[441,2,441,5],[442,2,442,5],[445,3,445,5],[426,2,426,5],[427,2,427,5],[430,3,430,5],[431,2,431,5],[432,2,432,5],[435,3,435,5],[416,2,416,5],[417,2,417,5],[420,3,420,5],[421,2,421,5],[422,2,422,5],[425,3,425,5],[406,2,406,5],[407,2,407,5],[410,3,410,5],[411,2,411,5],[412,2,412,5],[415,3,415,5],[396,2,396,5],[397,2,397,5],[400,3,400,5],[401,2,401,5],[402,2,402,5],[405,3,405,5],[386,2,386,5],[387,2,387,5],[390,3,390,5],[391,2,391,5],[392,2,392,5],[395,3,395,5],[376,2,376,5],[377,2,377,5],[380,3,380,5],[381,2,381,5],[382,2,382,5],[385,3,385,5],[366,2,366,5],[367,2,367,5],[370,3,370,5],[371,2,371,5],[372,2,372,5],[375,3,375,5],[356,2,356,5],[357,2,357,5],[360,3,360,5],[361,2,361,5],[362,2,362,5],[365,3,365,5],[346,2,346,5],[347,2,347,5],[350,3,350,5],[351,2,351,5],[352,2,352,5],[355,3,355,5],[336,2,336,5],[337,2,337,5],[340,3,340,5],[341,2,341,5],[342,2,342,5],[345,3,345,5],[326,2,326,5],[327,2,327,5],[330,3,330,5],[331,2,331,5],[332,2,332,5],[335,3,335,5],[316,2,316,5],[317,2,317,5],[320,3,320,5],[321,2,321,5],[322,2,322,5],[325,3,325,5],[306,2,306,5],[307,2,307,5],[310,3,310,5],[311,2,311,5],[312,2,312,5],[315,3,315,5],[296,2,296,5],[297,2,297,5],[300,3,300,5],[301,2,301,5],[302,2,302,5],[305,3,305,5],[286,2,286,5],[287,2,287,5],[290,3,290,5],[291,2,291,5],[292,2,292,5],[295,3,295,5],[276,2,276,5],[277,2,277,5],[280,3,280,5],[281,2,281,5],[282,2,282,5],[285,3,285,5],[266,2,266,5],[267,2,267,5],[270,3,270,5],[271,2,271,5],[272,2,272,5],[275,3,275,5],[256,2,256,5],[257,2,257,5],[260,3,260,5],[261,2,261,5],[262,2,262,5],[265,3,265,5],[246,2,246,5],[247,2,247,5],[250,3,250,5],[251,2,251,5],[252,2,252,5],[255,3,255,5],[236,2,236,5],[237,2,237,5],[240,3,240,5],[241,2,241,5],[242,2,242,5],[245,3,245,5],[226,2,226,5],[227,2,227,5],[230,3,230,5],[231,2,231,5],[232,2,232,5],[235,3,235,5],[216,2,216,5],[217,2,217,5],[220,3,220,5],[221,2,221,5],[222,2,222,5],[225,3,225,5],[206,2,206,5],[207,2,207,5],[210,3,210,5],[211,2,211,5],[212,2,212,5],[215,3,215,5],[196,2,196,5],[197,2,197,5],[200,3,200,5],[201,2,201,5],[202,2,202,5],[205,3,205,5],[186,2,186,5],[187,2,187,5],[190,3,190,5],[191,2,191,5],[192,2,192,5],[195,3,195,5],[176,2,176,5],[177,2,177,5],[180,3,180,5],[181,2,181,5],[182,2,182,5],[185,3,185,5],[166,2,166,5],[167,2,167,5],[170,3,170,5],[171,2,171,5],[172,2,172,5],[175,3,175,5],[156,2,156,5],[157,2,157,5],[160,3,160,5],[161,2,161,5],[162,2,162,5],[165,3,165,5],[146,2,146,5],[147,2,147,5],[150,3,150,5],[151,2,151,5],[152,2,152,5],[155,3,155,5],[136,2,136,5],[137,2,137,5],[140,3,140,5],[141,2,141,5],[142,2,142,5],[145,3,145,5],[126,2,126,5],[127,2,127,5],[130,3,130,5],[131,2,131,5],[132,2,132,5],[135,3,135,5],[116,2,116,5],[117,2,117,5],[120,3,120,5],[121,2,121,5],[122,2,122,5],[125,3,125,5],[106,2,106,5],[107,2,107,5],[110,3,110,5],[111,2,111,5],[112,2,112,5],[115,3,115,5],[96,2,96,5],[97,2,97,5],[100,3,100,5],[101,2,101,5],[102,2,102,5],[105,3,105,5],[86,2,86,5],[87,2,87,5],[90,3,90,5],[91,2,91,5],[92,2,92,5],[95,3,95,5],[76,2,76,5],[77,2,77,5],[80,3,80,5],[81,2,81,5],[82,2,82,5],[85,3,85,5],[66,2,66,5],[67,2,67,5],[70,3,70,5],[71,2,71,5],[72,2,72,5],[75,3,75,5],[56,2,56,5],[57,2,57,5],[60,3,60,5],[61,2,61,5],[62,2,62,5],[65,3,65,5],[46,2,46,5],[47,2,47,5],[50,3,50,5],[51,2,51,5],[52,2,52,5],[55,3,55,5],[41,2,41,5],[42,2,42,5],[45,3,45,5],[26,2,26,5],[27,2,27,5],[30,3,30,5],[31,2,31,5],[32,2,32,5],[35,3,35,5],[16,2,16,5],[17,2,17,5],[20,3,20,5],[21,2,21,5],[22,2,22,5],[25,3,25,5],[36,2,36,5],[37,2,37,5],[40,3,40,5]]}
["Number","Links","Description","Goal","Standards","Outcome","Selection","Scope","Selection"]
["^",null,"n/a",null,null,null,null,{"$f":"IF(J2,I2,A2)","v":"^"},"*Demo*",false]
["^^",null,null,null,null,null,null,"^^","*Site*",false]
["^^^",null,null,null,null,null,null,"^^^","*Struct*",false]
["^ ^",null,null,null,null,null,null,"^ ^","*Env*",false]
["^^ ^^",null,null,null,null,null,null,"^^ ^^","*Constr*",false]
["^^^ ^^^",null,null,null,null,null,null,"^^^ ^^^","*Finish*",false]
["^ ^ ^",null,null,null,null,null,null,"^ ^ ^","*S&E*",false]
["^ ^^ ^",null,null,null,null,null,null,"^ ^^ ^","*Furnish*",false]
["^ ^^^ ^",null,null,null,null,null,null,"^ ^^^ ^","*HVAC*",false]
["^^ ^ ^^",null,null,null,null,null,null,"^^ ^ ^^","*Plumb*",false]
["^^ ^^ ^^",null,null,null,null,null,null,"^^ ^^ ^^","*Elec*",false]
["^^ ^^^ ^^",null,null,null,null,null,null,"^^ ^^^ ^^","*FireSuppr*",false]
["^~^",null,null,null,null,null,null,"^~^","*Park*",false]
[null,null,null," "]
["Number","Links","Description","Goal","Standards","Outcome","Selection","Scope","Selection"]
["S.1.1.A","simp"," Clearly define construction limits from building perimeter, roads, utilities and stormwater detention facilities.",null,null,null,"n/a","Demo, Site "]
["S.1.1.A",null,"A.  Within 40 feet of building perimeter, 5 feet from roads, walks and utility trenches; and 25 feet beyond storm water detention facilities and playing fields.",null,null,null,null,"Demo, Site "]
["S.1.1.A+",null,"Baseline:","√","Baseline Achieved ?:","N",null,"Demo, Site "]
["S.1.1.A+",null,"Target:","n/a","Target Achieved ?:","n/a",null,"Demo, Site "]
["S.1.1.A+",null,"Comments:","<Please provide explanation if strategy was not achieved or other comments as desired>",null,null,null,"Demo, Site "]
["S.1.1.B","simp","Avoid construction on land within a wildlife corridor such as a wetland or stream buffer",null,null,null,"n/a","Site"]
["S.1.1.B","Seattle Municipal Code Title 25","B. See Seattle Municipal Code for specific requirements on allowable distance and buffer relative to project size.",null,null,null,null,"Site"]
["S.1.1.B+",null,"Baseline:","meet code regardless of project size","Baseline Achieved ?:","N",null,"Site"]
["S.1.1.B+",null,"Target:","Do not disturb","Target Achieved ?:","N",null,"Site"]
["S.1.1.B+",null,"Comments:","<Please provide explanation if strategy was not achieved or other comments as desired>",null,null,null,"Site"]
["S.1.1.C","simp","Maximize vegetated open space on site including pedestrian hardscape and/or recreational amenities that are vegetated",null,null,null,"n/a","Site"]
["S.1.1.C",null,"C. Native/adapted or drought tolerant plants are encouraged.",null,null,null,null,"Site"]
["S.1.1.C+",null,"Baseline:","25% of site area (excluding bldg footprint)","Baseline Achieved ?:","N",null,"Site"]
["S.1.1.C+",null,"Target:","50% of site area (excluding bldg footprint)","Target Achieved ?:","N",null,"Site"]
["S.1.1.C+",null,"Comments:","<Please provide explanation if strategy was not achieved or other comments as desired>",null,null,null,"Site"]
["S.1.1.D","simp"," Limit use of turf grass to areas where required for programmatic reasons like playfields",null,null,null,"n/a","Site"]
["S.1.1.D",null,"D.  Where turf is required, use a drought tolerant and low maintenance seed mix.",null,null,null,null,"Site"]
["S.1.1.D+",null,"Baseline:","√","Baseline Achieved ?:","N",null,"Site"]
["S.1.1.D+",null,"Target:","n/a","Target Achieved ?:","n/a",null,"Site"]
["S.1.1.D+",null,"Comments:","<Please provide explanation if strategy was not achieved or other comments as desired>",null,null,null,"Site"]
["S.1.1.E","simp","Do not disturb slopes greater than 15%.",null,null,null,"n/a","Site"]
["S.1.1.E",null,"E.  Do not disturb slopes greater than 15%. ",null,null,null,null,"Site"]
["S.1.1.E+",null,"Baseline:","√","Baseline Achieved ?:","N",null,"Site"]
["S.1.1.E+",null,"Target:","n/a","Target Achieved ?:","n/a",null,"Site"]
["S.1.1.E+",null,"Comments:","<Please provide explanation if strategy was not achieved or other comments as desired>",null,null,null,"Site"]
["S.1.1.F","simp","Protect existing or restore native or adapted vegetation on previously disturbed sites",null,null,null,"n/a","Site"]
["S.1.1.F",null,"   F.  Vegetated roof areas may be included. Similar to S.3.1.B. which focuses on plant selection for new landscape work and W.4.1.C. which focuses on irrigation water reduction.",null,null,null,null,"Site"]
["S.1.1.F+",null,"Baseline:","25% of site area (excluding bldg footprint)","Baseline Achieved ?:","N",null,"Site"]
["S.1.1.F+",null,"Target:","30% of site area (excluding bldg footprint)","Target Achieved ?:","N",null,"Site"]
["S.1.1.F+",null,"Comments:","<Please provide explanation if strategy was not achieved or other comments as desired>",null,null,null,"Site"]
["S.1.1.G","simp","Remediate environmentally hazardous material in soil and/or building",null,null,null,"n/a","Demo, Site"]
["S.1.1.G","Asbestos NESHAP","G. Remediate whether or not required by code.",null,null,null,null,"Demo, Site"]
["S.1.1.G+","EPA Asbestos Overview","Baseline:","Per NESHAP (National Emission Standard for Hazardous Air Pollutants) and AHERA (Asbestos Hazard Emergency Response Act) ","Baseline Achieved ?:","N",null,"Demo, Site"]
["S.1.1.G+","AHERA","Target:","n/a","Target Achieved ?:","n/a",null,"Demo, Site"]
["S.1.1.G+",null,"Comments:","<Please provide explanation if strategy was not achieved or other comments as desired>",null,null,null,"Demo, Site"]
["S.2.1.A","simp","Design to avoid bird collisions by using fritted glass, an auto shutoff of night time lighting, or by avoiding highly reflective glass",null,null,null,"n/a","Env"]
["S.2.1.A",null,"A. Also consider temporary measures, such as netting, bird decals and streamers, in problem areas during migration season.",null,null,null,null,"Env"]
["S.2.1.A+",null,"Baseline:","n/a","Baseline Achieved ?:","n/a",null,"Env"]
["S.2.1.A+",null,"Target:","√","Target Achieved ?:","N",null,"Env"]
["S.2.1.A+",null,"Comments:","<Please provide explanation if strategy was not achieved or other comments as desired>",null,null,null,"Env"]
["S.2.1.B","simp","Select light colored or open grid paving for pedestrian hardscape",null,null,null,"n/a","Site"]
["S.2.1.B","Calculator","B.  Select paving with an SRI of 29 or higher to reduce heat island effect.",null,null,null,null,"Site"]
["S.2.1.B+",null,"Baseline:","30% of hardscape","Baseline Achieved ?:","N",null,"Site"]
["S.2.1.B+",null,"Target:","50% of hardscape","Target Achieved ?:","N",null,"Site"]
["S.2.1.B+",null,"Comments:","<Please provide explanation if strategy was not achieved or other comments as desired>",null,null,null,"Site"]
["S.2.1.C","simp","Provide shade for parking areas using trees, canopies, solar panels, vegetated roof areas or by locating parking underground",null,null,null,"n/a","Site"]
["S.2.1.C","Calculator","C.  Shade through the use of tree canopies that are established within 5 years, light colored canopies with an SRI of 29 or higher, structures covered by solar panels, vegetated roof areas, or by locating parking areas underground. The effective shade coverage on the parking area shall be the arithmetic mean of the shade coverage calculated at 10am, noon, and 3pm on the summer solstice.",null,null,null,null,"Site"]
["S.2.1.C+",null,"Baseline:","50% of total parking area","Baseline Achieved ?:","N",null,"Site"]
["S.2.1.C+",null,"Target:","80% of total parking area","Target Achieved ?:","N",null,"Site"]
["S.2.1.C+","Seattle Master Tree List","Comments:","<Please provide explanation if strategy was not achieved or other comments as desired>",null,null,null,"Site"]
["S.2.2.A","simp","Limit trespass of exterior lighting over site boundary and upward into night sky by using shielded fixtures",null,null,null,"n/a","Elec"]
["S.2.2.A",null,"A. Only light areas as required for safety and comfort, suitable for that lighting zone (LZ)",null,null,null,null,"Elec"]
["S.2.2.A+","Dark Sky Friendly Lighting Directory ","Baseline:","Sites in residential areas (LZ1): Design exterior lighting to produce a maximum initial illuminance value no greater than 0.10 horizontal and vertical foot-candles at the site boundary and no greater than 0.01 horizontal foot-candles 10 feet beyond the site boundary. No more than 2% of total initial designed fixture lumens are emitted at an angle of 90 degrees or higher from nadir (straight down).\nSites in neighborhood and commercial areas (LZ2) :Design exterior lighting to produce a maximum initial illuminance value no greater than 0.20 horizontal and vertical foot-candles at the site boundary and no greater than 0.01 horizontal foot-candles 15 feet beyond the site boundary. No more than 5% of total initial designed fixture lumens are emitted at an angle of 90 degrees or higher from nadir (straight down).\nSite in downtown areas (LZ3):Design exterior lighting to produce a maximum initial illuminance value no greater than 0.60 horizontal and vertical foot-candles at the site boundary and no greater than 0.01 horizontal foot-candles 15 feet beyond the site boundary. \nAlternately - source fixtures with the appropriate BUG (Backlight Uplight Glare) rating for the project Light Zone and placement","Baseline Achieved ?:","N",null,"Elec"]
["S.2.2.A+",null,"Target:","n/a","Target Achieved ?:","n/a",null,"Elec"]
["S.2.2.A+",null,"Comments:","<Please provide explanation if strategy was not achieved or other comments as desired>",null,null,null,"Elec"]
["S.2.3.A","simp","Align buildings so that major elevations face north and south",null,null,null,"n/a","Struct"]
["S.2.3.A",null,"A.  Limit east and west exposures.",null,null,null,null,"Struct"]
["S.2.3.A+",null,"Baseline:","North and south facing glazing is at least 50% greater than east and west facing glazing","Baseline Achieved ?:","N",null,"Struct"]
["S.2.3.A+",null,"Target:","East-west axis of building is within 15 degrees of due east-west","Target Achieved ?:","N",null,"Struct"]
["S.2.3.A+",null,"Comments:","<Please provide explanation if strategy was not achieved or other comments as desired>",null,null,null,"Struct"]
["S.2.4.A","simp","Avoid construction within environmentally critical areas",null,null,null,"n/a","Site, Struct"]
["S.2.4.A",null,"A. Develop on appropriate sites. ",null,null,null,null,"Site, Struct"]
["S.2.4.A+",null,"Baseline:","Develop on a greenfield site, parkland or agricultural land ONLY when the building's purpose is related to the use of the land.  Examples - park shelter on parkland, or agricultural building on agricultural land.","Baseline Achieved ?:","N",null,"Site, Struct"]
["S.2.4.A+",null,"Target:","Develop only 1) in an existing building envelope 2) on a greyfield or 3) on a brownfield.","Target Achieved ?:","N",null,"Site, Struct"]
["S.2.4.A+",null,"Comments:","<Please provide explanation if strategy was not achieved or other comments as desired>",null,null,null,"Site, Struct"]
["S.2.4.B","simp","Avoid construction within 100 ft of a lake, river, stream or wetland buffers",null,null,null,"n/a","Site, Struct"]
["S.2.4.B","Municipal Code 25.06 Floodplain Development","B. See Seattle Municipal Code (SMC) for specific buffer requirements which vary for wetlands and water ways.  The Land use code may require more than 100 foot buffer in some cases.  However while the SMC allows averaging of the buffer, this strategy requires no development within 100 feet, and does not allow averaging of the buffer.",null,null,null,null,"Site, Struct"]
["S.2.4.B+","Municipal Code 25.09 Environmentally Critical Areas","Baseline:","Regardless of code exemption","Baseline Achieved ?:","N",null,"Site, Struct"]
["S.2.4.B+",null,"Target:","Do not disturb","Target Achieved ?:","N",null,"Site, Struct"]
["S.2.4.B+",null,"Comments:","<Please provide explanation if strategy was not achieved or other comments as desired>",null,null,null,"Site, Struct"]
["S.3.1.A","simp","Protect existing trees intended to remain by providing temporary fence",null,null,null,"n/a","Site, Struct"]
["S.3.1.A",null,"A.  Provide temporary fence around drip line prior to start of construction.",null,null,null,null,"Site, Struct"]
["S.3.1.A+",null,"Baseline:","√","Baseline Achieved ?:","N",null,"Site, Struct"]
["S.3.1.A+",null,"Target:","n/a","Target Achieved ?:","n/a",null,"Site, Struct"]
["S.3.1.A+",null,"Comments:","<Please provide explanation if strategy was not achieved or other comments as desired>",null,null,null,"Site, Struct"]
["S.3.1.B","simp","Select native or adapted vegetation for landscape",null,null,null,"n/a","Site"]
["S.3.1.B",null," B.  Similar to   S.1.1.F. which is focused on site restoration of existing vegetation and W.4.1.C. which focuses on irrigation water reduction. ",null,null,null,null,"Site"]
["S.3.1.B+",null,"Baseline:","50% of landscape area","Baseline Achieved ?:","N",null,"Site"]
["S.3.1.B+",null,"Target:","100% of landscape area","Target Achieved ?:","N",null,"Site"]
["S.3.1.B+",null,"Comments:","<Please provide explanation if strategy was not achieved or other comments as desired>",null,null,null,"Site"]
["W.1.1.A","simp"," Provide a green roof.",null,null,null,"n/a","Struct, Env"]
["W.1.1.A",null,"A. Provide a vegetated roof.",null,null,null,null,"Struct, Env"]
["W.1.1.A+",null,"Baseline:","50% of roof area","Baseline Achieved ?:","N",null,"Struct, Env"]
["W.1.1.A+",null,"Target:","75% of roof area","Target Achieved ?:","N",null,"Struct, Env"]
["W.1.1.A+",null,"Comments:","<Please provide explanation if strategy was not achieved or other comments as desired>",null,null,null,"Struct, Env"]
["W.1.1.B","simp","Maintain no net increase or decrease quantity of stormwater discharge leaving the site",null,null,null,"n/a","Site"]
["W.1.1.B","Stormwater Code","B. Achieve no net increase of quantity of storm water discharge leaving the site.   Use an 90th percentile rain event as basis for analysis and design. Use rain infiltration features, capture and reuse as suitable for site conditions and use.",null,null,null,null,"Site"]
["W.1.1.B+","Green Stormwater Infrastructure (SPU)","Baseline:","No increase in storm water.","Baseline Achieved ?:","N",null,"Site"]
["W.1.1.B+",null,"Target:","Reduce quantity of storm water leaving the site by 25%.","Target Achieved ?:","N",null,"Site"]
["W.1.1.B+",null,"Comments:","<Please provide explanation if strategy was not achieved or other comments as desired>",null,null,null,"Site"]
["W.2.1.A","simp","Reduce potable water use for cooling tower make-up water.",null,null,null,"n/a","HVAC"]
["W.2.1.A","Dept of Energy Cooling Tower BMPs","A. Reduce potable water use for cooling tower make-up water through improved chemical management and use of nonpotable water (e.g. air handler condensate, single pass cooling system water, properly treated greywater or rainwater).",null,null,null,null,"HVAC"]
["W.2.1.A+",null,"Baseline:","Install conductivity meter to monitor and manage chemical concentrations to reduce losses due to blowdown/makeup water.","Baseline Achieved ?:","N",null,"HVAC"]
["W.2.1.A+",null,"Target:","More than 25% of make-up water from nonpotable sources","Target Achieved ?:","N",null,"HVAC"]
["W.2.1.A+",null,"Comments:","<Please provide explanation if strategy was not achieved or other comments as desired>",null,null,null,"HVAC"]
["W.2.2.A","simp"," Install low flow plumbing fixtures",null,null,null,"n/a","Plumb"]
["W.2.2.A",null,"A. Install low flow plumbing fixtures including lavatory faucets, showerheads and kitchen sink faucets. ",null,null,null,null,"Plumb"]
["W.2.2.A+",null,"Baseline:","Exceed Seattle Plumbing Code with 2.0 gpm kitchen sink and showerhead","Baseline Achieved ?:","N",null,"Plumb"]
["W.2.2.A+",null,"Target:","Exceed Seattle Plumbing Code with 1.75 gpm kitchen sink and showerhead plus 0.5 gpm lavatory w/auto sensor","Target Achieved ?:","N",null,"Plumb"]
["W.2.2.A+",null,"Comments:","<Please provide explanation if strategy was not achieved or other comments as desired>",null,null,null,"Plumb"]
["W.2.2.B","simp"," Install low volume flush fixtures",null,null,null,"n/a","Plumb"]
["W.2.2.B",null,"B. Install low volume flush fixtures for water closets and urinals.",null,null,null,null,"Plumb"]
["W.2.2.B+",null,"Baseline:","Exceed Seattle Plumbing Code with dual flush or low flush WC: 1.28 gpf and urinal: 0.5 gpf.","Baseline Achieved ?:","N",null,"Plumb"]
["W.2.2.B+",null,"Target:","Exceed Seattle Plumbing Code with dual flush or low flush WC: 1.28/ and urinal: 0.125 gpf","Target Achieved ?:","N",null,"Plumb"]
["W.2.2.B+",null,"Comments:","<Please provide explanation if strategy was not achieved or other comments as desired>",null,null,null,"Plumb"]
["W.2.2.C","simp","Install water efficient commercial food service equipment. ",null,null,null,"n/a","S&E"]
["W.2.2.C",null,"C. Specify water efficient commercial food service equipment including low flow pre-rinse spray valves and Energy Star rated equipment. ",null,null,null,null,"S&E"]
["W.2.2.C+",null,"Baseline:","Use pre-rinse spray valves which operate at 1.3 gpm or less; Provide hands free controls for all faucets in the food prep area (including hand wash sinks, pot fillers and washing sinks); Provide Energy Star Rated Commercial Dishwashers and Steam Cookers as required by SEC.","Baseline Achieved ?:","N",null,"S&E"]
["W.2.2.C+",null,"Target:","In addition to baseline if in scope of work: 100% of eligible water using commercial equipment shall be Energy Star Rated (includes Combination Ovens, Ice Machines, and commercial clothes washers).","Target Achieved ?:","N",null,"S&E"]
["W.2.2.C+",null,"Comments:","<Please provide explanation if strategy was not achieved or other comments as desired>",null,null,null,"S&E"]
["W.2.3.A","simp","Submeter high water use operations like irrigation or domestic hot water",null,null,null,"n/a","Plumb"]
["W.2.3.A",null,"A. Provide submeters for high water use operations per code regardless of project size.",null,null,null,null,"Plumb"]
["W.2.3.A+",null,"Baseline:","Irrigation","Baseline Achieved ?:","N",null,"Plumb"]
["W.2.3.A+",null,"Target:","Wet cooling towers, commercial kitchens, laundries, Domestic Hot Water (DHW) boilers","Target Achieved ?:","N",null,"Plumb"]
["W.2.3.A+",null,"Comments:","<Please provide explanation if strategy was not achieved or other comments as desired>",null,null,null,"Plumb"]
["W.3.1.A","simp","Direct stormwater to pervious areas to remove 80% of total suspended solids",null,null,null,"n/a","Site"]
["W.3.1.A",null,"A. Capture and treat stormwater run-off with biofiltration swales, rain gardens or a water quality vault.",null,null,null,null,"Site"]
["W.3.1.A+",null,"Baseline:","√","Baseline Achieved ?:","N",null,"Site"]
["W.3.1.A+",null,"Target:","n/a","Target Achieved ?:","n/a",null,"Site"]
["W.3.1.A+",null,"Comments:","<Please provide explanation if strategy was not achieved or other comments as desired>",null,null,null,"Site"]
["W.3.2.A","simp","Implement erosion control measures prior to land disturbance",null,null,null,"n/a","Site"]
["W.3.2.A",null,"A. Implement measures per code regardless of project size, including temporary seeding, mulching, earth dike, silt fence, sediment trap or sediment basin . Similar to W.3.2.B. which focuses on maintenance rather than implementation.",null,null,null,null,"Site"]
["W.3.2.A+",null,"Baseline:","√","Baseline Achieved ?:","N",null,"Site"]
["W.3.2.A+",null,"Target:","n/a","Target Achieved ?:","n/a",null,"Site"]
["W.3.2.A+",null,"Comments:","<Please provide explanation if strategy was not achieved or other comments as desired>",null,null,null,"Site"]
["W.3.2.B","simp"," Enforce temporary erosion control measures for duration of construction.",null,null,null,"n/a","Site"]
["W.3.2.B",null,"B. Enforce temporary erosion control measures for duration of construction. Similar to W.3.2.A. which focuses on implementation rather than maintenance.",null,null,null,null,"Site"]
["W.3.2.B+",null,"Baseline:","√","Baseline Achieved ?:","N",null,"Site"]
["W.3.2.B+",null,"Target:","n/a","Target Achieved ?:","n/a",null,"Site"]
["W.3.2.B+",null,"Comments:","<Please provide explanation if strategy was not achieved or other comments as desired>",null,null,null,"Site"]
["W.3.2.C","simp","Install permanent vegetation or cover site areas prior to removal of temporary erosion control measures",null,null,null,"n/a","Site"]
["W.3.2.C",null,"C. Prior to removal of temporary erosion control measures, install permanent vegetation or cover site areas per code regardless of project size.",null,null,null,null,"Site"]
["W.3.2.C+",null,"Baseline:","√","Baseline Achieved ?:","N",null,"Site"]
["W.3.2.C+",null,"Target:","n/a","Target Achieved ?:","n/a",null,"Site"]
["W.3.2.C+",null,"Comments:","<Please provide explanation if strategy was not achieved or other comments as desired>",null,null,null,"Site"]
["W.3.2.D","simp","Do not use construction materials in roofing or site areas that contribute to waterway contamination via stormwater runoff",null,null,null,"n/a","Site, Env"]
["W.3.2.D",null,"D. Avoid using construction materials such as copper and zinc roof appurtenances, galvanized materials, treated lumber, parking lot coal tar, and pesticides.",null,null,null,null,"Site, Env"]
["W.3.2.D+",null,"Baseline:","√","Baseline Achieved ?:","N",null,"Site, Env"]
["W.3.2.D+",null,"Target:","n/a","Target Achieved ?:","n/a",null,"Site, Env"]
["W.3.2.D+",null,"Comments:","<Please provide explanation if strategy was not achieved or other comments as desired>",null,null,null,"Site, Env"]
["W.3.3.A","simp"," Provide above ground fuel tanks with secondary containment. ",null,null,null,"n/a","Plumb, S&E"]
["W.3.3.A",null,"A. Provide above ground tanks with secondary containment. ",null,null,null,null,"Plumb, S&E"]
["W.3.3.A+",null,"Baseline:","√","Baseline Achieved ?:","N",null,"Plumb, S&E"]
["W.3.3.A+",null,"Target:","n/a","Target Achieved ?:","n/a",null,"Plumb, S&E"]
["W.3.3.A+",null,"Comments:","<Please provide explanation if strategy was not achieved or other comments as desired>",null,null,null,"Plumb, S&E"]
["W.3.3.B","simp","Provide leak detection system for tanks and piping",null,null,null,"n/a","Plumb, Elec"]
["W.3.3.B",null,"B. Provide leak detection system with monitors and alarms for tanks and piping (includes fuel tanks).",null,null,null,null,"Plumb, Elec"]
["W.3.3.B+",null,"Baseline:","√","Baseline Achieved ?:","N",null,"Plumb, Elec"]
["W.3.3.B+",null,"Target:","n/a","Target Achieved ?:","n/a",null,"Plumb, Elec"]
["W.3.3.B+",null,"Comments:","<Please provide explanation if strategy was not achieved or other comments as desired>",null,null,null,"Plumb, Elec"]
["W.3.3.C","simp","Place parking under structure",null,null,null,"n/a","Struct"]
["W.3.3.C",null,"C. Place parking under structure with oil/grease separator.",null,null,null,null,"Struct"]
["W.3.3.C+",null,"Baseline:","50% of parking","Baseline Achieved ?:","N",null,"Struct"]
["W.3.3.C+",null,"Target:","100% of parking","Target Achieved ?:","N",null,"Struct"]
["W.3.3.C+",null,"Comments:","<Please provide explanation if strategy was not achieved or other comments as desired>",null,null,null,"Struct"]
["W.4.1.A","simp","Provide high efficiency irrigation",null,null,null,"n/a","Site"]
["W.4.1.A",null,"A. Provide high efficiency irrigation systems such as high efficiency head or drip irrigation to limit water evaporation.",null,null,null,null,"Site"]
["W.4.1.A+",null,"Baseline:","√","Baseline Achieved ?:","N",null,"Site"]
["W.4.1.A+",null,"Target:","n/a","Target Achieved ?:","n/a",null,"Site"]
["W.4.1.A+",null,"Comments:","<Please provide explanation if strategy was not achieved or other comments as desired>",null,null,null,"Site"]
["W.4.1.B","simp"," Collect rainwater or graywater for irrigation.",null,null,null,"n/a","Site, Plumb"]
["W.4.1.B",null,"B. Use nonpotable water for irrigation, including onsite rainwater or graywater or municipally supplied nonpotable water. ",null,null,null,null,"Site, Plumb"]
["W.4.1.B+",null,"Baseline:","50% of irrigation water","Baseline Achieved ?:","N",null,"Site, Plumb"]
["W.4.1.B+",null,"Target:","100% of irrigation water","Target Achieved ?:","N",null,"Site, Plumb"]
["W.4.1.B+",null,"Comments:","<Please provide explanation if strategy was not achieved or other comments as desired>",null,null,null,"Site, Plumb"]
["W.4.1.C","simp","Select plants that are native or adapted to minimize irrigation requirements",null,null,null,"n/a","Site"]
["W.4.1.C",null,"C. Similar to S.1.1.F. which is focused on site restoration of existing vegetation and S.3.1.B. which is intended to promote natural habitat.",null,null,null,null,"Site"]
["W.4.1.C+",null,"Baseline:","50% of landscape area","Baseline Achieved ?:","N",null,"Site"]
["W.4.1.C+",null,"Target:","100% of landscape area","Target Achieved ?:","N",null,"Site"]
["W.4.1.C+",null,"Comments:","<Please provide explanation if strategy was not achieved or other comments as desired>",null,null,null,"Site"]
["W.5.1.A","simp","Provide on-site wastewater treatment infrastructure",null,null,null,"n/a","Site, Plumb"]
["W.5.1.A",null,"A. Provide on-site wastewater treatment infrastructure such as a living machine for wastewater treatment or graywater system for wastewater reuse.",null,null,null,null,"Site, Plumb"]
["W.5.1.A+",null,"Baseline:","Below grade piping for graywater","Baseline Achieved ?:","N",null,"Site, Plumb"]
["W.5.1.A+",null,"Target:","Living machine","Target Achieved ?:","N",null,"Site, Plumb"]
["W.5.1.A+",null,"Comments:","<Please provide explanation if strategy was not achieved or other comments as desired>",null,null,null,"Site, Plumb"]
["E.1.1.A","simp","Commission building energy systems.",null,null,null,"n/a","HVAC, Elec"]
["E.1.1.A","Seattle Energy Code ","A. Seattle Energy Code requires all mechanical work and lighting controls be commissioned.  This strategy expands the requirement to include electrical systems.    ",null,null,null,null,"HVAC, Elec"]
["E.1.1.A+",null,"Baseline:","Commission all mechanical and electrical work, regardless of project size, to meet the Seattle Energy Code.  ","Baseline Achieved ?:","N",null,"HVAC, Elec"]
["E.1.1.A+",null,"Target:","Increase Cx scope to include peer review of design and construction documents, specifications and submittals.  Cx to participate in operator training and provide post occupancy review between 6-18 months after occupancy.","Target Achieved ?:","N",null,"HVAC, Elec"]
["E.1.1.A+",null,"Comments:","<Please provide explanation if strategy was not achieved or other comments as desired>",null,null,null,"HVAC, Elec"]
["E.1.2.A","simp","Provide demand control ventilation (DCV) to respond to variable occupancy loads.",null,null,null,"n/a","HVAC"]
["E.1.2.A",null,"A. Provide demand control ventilation (DCV) to respond to varying occupancy loads.",null,null,null,null,"HVAC"]
["E.1.2.A+",null,"Baseline:","Ventilation controls respond to occupancy levels in densely occupied spaces (25 people/1000 SF - i.e. conference rooms, training rooms, break rooms).","Baseline Achieved ?:","N",null,"HVAC"]
["E.1.2.A+",null,"Target:","Ventilation controls respond to occupancy in any space with varying occupancy (i.e. open and private offices).","Target Achieved ?:","N",null,"HVAC"]
["E.1.2.A+",null,"Comments:","<Please provide explanation if strategy was not achieved or other comments as desired>",null,null,null,"HVAC"]
["E.1.2.B","simp","Provide building automation system",null,null,null,"n/a","HVAC"]
["E.1.2.B","Seattle Energy Code ","B. Seattle Energy Codes requires a 7-day programmable thermostat as a minimum.  For buildings with a cooling load over 65 tons more complex control systems are required.  The system must be capable of trending and demand response setpoint adjustment.  This strategy requires a building automation system regardless of system complexity.  Controls can be expanded to include lighting and hot water.",null,null,null,null,"HVAC"]
["E.1.2.B+",null,"Baseline:","Direct Digital Controls (DDC) for building HVAC.","Baseline Achieved ?:","N",null,"HVAC"]
["E.1.2.B+",null,"Target:","Expand DDC system to control lighting, and domestic hot water.","Target Achieved ?:","N",null,"HVAC"]
["E.1.2.B+",null,"Comments:","<Please provide explanation if strategy was not achieved or other comments as desired>",null,null,null,"HVAC"]
["E.1.3.A","simp","Submeter all major energy end uses",null,null,null,"n/a","Elec, HVAC"]
["E.1.3.A","Seattle Energy Code ","A. SEC requires all buildings over 20,000 SF to have energy metering for all major end uses. There are exceptions for existing buildings. This strategy encourages existing buildings to upgrade and for  buildings below the 20,000 SF threshold to meet the requirements of the code.",null,null,null,null,"Elec, HVAC"]
["E.1.3.A+",null,"Baseline:","Install measurement devices with remote communication capability for each energy source regardless of project size.   ","Baseline Achieved ?:","N",null,"Elec, HVAC"]
["E.1.3.A+",null,"Target:","Install measurement devices with remote communication capability for each energy source AND end use regardless of project size.   See SEC Ch. 12 for end use definitions.","Target Achieved ?:","N",null,"Elec, HVAC"]
["E.1.3.A+",null,"Comments:","<Please provide explanation if strategy was not achieved or other comments as desired>",null,null,null,"Elec, HVAC"]
["E.1.4.A","simp","Reduce carbon emissions from heating equipment.",null,null,null,"n/a","HVAC"]
["E.1.4.A","Seattle Energy Code ","A. Use efficient warm air furnaces (includes the heating side of combination warm-air furnaces/air-condition units; duct furnaces and unit heaters). Consult Energy Star and AHRI for most efficient units available. ",null,null,null,null,"HVAC"]
["E.1.4.A+",null,"Baseline:","Opt. 1 - Capacities less than 225,000 btu/h: Install natural gas fired heating equipment with an AFUE of 98% and/or oil fired heating equipment with and AFUE of 87% .                                                                                      Opt. 2 - Capacities of 225,000 btu/h or greater: Provide heating equipment with a minimum thermal efficiency of 82%. Note: New rating criteria is being developed for larger gas unitary equipment.  Consult Energy Star and AHRI for most efficient units available.","Baseline Achieved ?:","N",null,"HVAC"]
["E.1.4.A+",null,"Target:","Use electric heat pump equipment, no gas.","Target Achieved ?:","N",null,"HVAC"]
["E.1.4.A+",null,"Comments:","<Please provide explanation if strategy was not achieved or other comments as desired>",null,null,null,"HVAC"]
["E.1.4.B","simp","Increase motor efficiency for fans and pumps",null,null,null,"n/a","HVAC"]
["E.1.4.B","Seattle Energy Code ","B. Increase motor efficiency using variable speed drives",null,null,null,null,"HVAC"]
["E.1.4.B+",null,"Baseline:","Choose appropriate size and use variable speed drives for fans and pumps with a motor horsepower of 5 hp or larger.  Use electronically commutated motor on motors under 1 hp. Baseline is to comply with latest code even where exempt.","Baseline Achieved ?:","N",null,"HVAC"]
["E.1.4.B+",null,"Target:","n/a","Target Achieved ?:","n/a",null,"HVAC"]
["E.1.4.B+",null,"Comments:","<Please provide explanation if strategy was not achieved or other comments as desired>",null,null,null,"HVAC"]
["E.1.4.C","simp","Use Energy Star equipment & appliances ",null,null,null,"n/a","S&E"]
["E.1.4.C",null,"C. Use Energy Star equipment & appliances (includes commercial food service equipment) for eligible equipment.",null,null,null,null,"S&E"]
["E.1.4.C+",null,"Baseline:","100% of Eligible Appliances; 50% of Eligible Equipment.","Baseline Achieved ?:","N",null,"S&E"]
["E.1.4.C+",null,"Target:","100% Eligible Appliances; 75% Eligible Equipment.","Target Achieved ?:","N",null,"S&E"]
["E.1.4.C+",null,"Comments:","<Please provide explanation if strategy was not achieved or other comments as desired>",null,null,null,"S&E"]
["E.1.4.D","simp","Use efficient cooling equipment",null,null,null,"n/a","HVAC"]
["E.1.4.D","CEE","D. Use efficient cooling equipment per the most recent CEE specifications..",null,null,null,null,"HVAC"]
["E.1.4.D+","CEE Appendix A","Baseline:","Unitary Equipment:  Meet lowest Tier (1 or 2) of CEE Specification for Unitary AC;\nHeat Pumps: meet Tier 1 of CEE Specification;\nVariable Refrigerant Flow systems:  Meet Tier 1 of CEE Specification for VRF Multi-split AC or Heat Pump. For any equipment not listed in CEE specifications, use efficiency requirements of SEC.","Baseline Achieved ?:","N",null,"HVAC"]
["E.1.4.D+",null,"Target:","All equipment:  Meet highest applicable Tier of CEE Specification.","Target Achieved ?:","N",null,"HVAC"]
["E.1.4.D+",null,"Comments:","<Please provide explanation if strategy was not achieved or other comments as desired>",null,null,null,"HVAC"]
["E.1.4.E","simp","Use efficient domestic water heating equipment ",null,null,null,"n/a","HVAC"]
["E.1.4.E","Seattle Energy Code ","E. This strategy only applies to units that provide hot potable water.  Units which also provide space heat are categorized as boilers.",null,null,null,null,"HVAC"]
["E.1.4.E+","Energy Star Commercial WH Criteria","Baseline:","Install Energy Star rated equipment for water heaters which are Energy Star eligible. All others meet most restrictive requirements either ASHRAE 90.1-2010 or latest SEC. ","Baseline Achieved ?:","N",null,"HVAC"]
["E.1.4.E+","Energy Star Residential WH Criteria","Target:","Use Heat Pump water heater with EF ≥ 2.0","Target Achieved ?:","N",null,"HVAC"]
["E.1.4.E+",null,"Comments:","<Please provide explanation if strategy was not achieved or other comments as desired>",null,null,null,"HVAC"]
["E.1.4.F","simp","Use efficient boiler equipment",null,null,null,"n/a","HVAC, Plumb"]
["E.1.4.F","Seattle Energy Code ","F. A boiler supplies hot water or steam for space heating or a combination of space heating and domestic hot water.",null,null,null,null,"HVAC, Plumb"]
["E.1.4.F+",null,"Baseline:","Opt. 1 -  Capacities less than 300,000 Btu/h: Gas fired boilers to have a min. efficiency of 89% AFUE; oil fired boilers to have a minimum efficiency of 87% AFUE\nOpt. 2 -  Capacities of 300,000 Btu/h or higher: Gas fired boilers to have a minimum thermal efficiency (TE or Et) of 89%;  oil fired boilers to have a thermal efficiency of 85%","Baseline Achieved ?:","N",null,"HVAC, Plumb"]
["E.1.4.F+",null,"Target:","Opt. 1 -  Capacities less than 300,000 Btu/h: Gas and oil fired boilers to have a min. efficiency of 90% AFUE\nOpt. 2 -  Capacities of 300,000 Btu/h or higher: Gas and oil fired boilers to have a minimum thermal efficiency (TE or Et) of 94% and a turndown ratio ≥ 5:1","Target Achieved ?:","N",null,"HVAC, Plumb"]
["E.1.4.F+",null,"Comments:","<Please provide explanation if strategy was not achieved or other comments as desired>",null,null,null,"HVAC, Plumb"]
["E.2.1.A","simp","Upgrade envelope elements as work allows (windows, insulation, wall cavities)",null,null,null,"n/a","Env, Struct"]
["E.2.1.A","Seattle Energy Code ","A. Upgrade windows, insulation and wall cavities per Seattle Energy Code as work allows.",null,null,null,null,"Env, Struct"]
["E.2.1.A+",null,"Baseline:","For additions and alterations comply with Chapter 5 of latest SEC as applicable. \nFor new buildings comply with latest SEC envelope requirements.","Baseline Achieved ?:","N",null,"Env, Struct"]
["E.2.1.A+",null,"Target:","For new buildings, improve envelope components UA by 10% over new code.","Target Achieved ?:","N",null,"Env, Struct"]
["E.2.1.A+",null,"Comments:","<Please provide explanation if strategy was not achieved or other comments as desired>",null,null,null,"Env, Struct"]
["E2.1.B","simp","Provide horizontal exterior shading devices for south windows.",null,null,null,"n/a","Env"]
["E2.1.B",null,"B. Provide horizontal exterior shading devices for south windows.",null,null,null,null,"Env"]
["E2.1.B+",null,"Baseline:","30% of windows shaded","Baseline Achieved ?:","N",null,"Env"]
["E2.1.B+",null,"Target:","60% of windows shaded","Target Achieved ?:","N",null,"Env"]
["E2.1.B+",null,"Comments:","<Please provide explanation if strategy was not achieved or other comments as desired>",null,null,null,"Env"]
["E2.1.C","simp","Select light-colored roofing materials",null,null,null,"n/a","Env"]
["E2.1.C","Calculator","C. Select light-colored roofing materials: For low slope roofs provide Solar Reflectance Index (SRI) of 78 or higher. For slopes greater than 2:12, select roofing materials with SRI of 29 or higher.",null,null,null,null,"Env"]
["E2.1.C+",null,"Baseline:","75% of roof area (excluding equipment area).","Baseline Achieved ?:","N",null,"Env"]
["E2.1.C+",null,"Target:","100% of roof area (excluding equipment area).","Target Achieved ?:","N",null,"Env"]
["E2.1.C+",null,"Comments:","<Please provide explanation if strategy was not achieved or other comments as desired>",null,null,null,"Env"]
["E.2.2.A","simp","Size lighting control zones as small as feasible.",null,null,null,"n/a","Elec"]
["E.2.2.A",null,"A. Size lighting control zones as small as feasible.",null,null,null,null,"Elec"]
["E.2.2.A+",null,"Baseline:","Regardless of project size or scope","Baseline Achieved ?:","N",null,"Elec"]
["E.2.2.A+",null,"Target:","n/a","Target Achieved ?:","n/a",null,"Elec"]
["E.2.2.A+",null,"Comments:","<Please provide explanation if strategy was not achieved or other comments as desired>",null,null,null,"Elec"]
["E.2.2.B","simp","Reduce lighting energy use through use of automatic lighting controls",null,null,null,"n/a","Elec"]
["E.2.2.B","Seattle Energy Code ","B. Reduce lighting energy use via daylight controls and occupancy sensors in spaces with intermittent use. ",null,null,null,null,"Elec"]
["E.2.2.B+",null,"Baseline:","Provide occupancy and daylight controls according to latest Energy Code.","Baseline Achieved ?:","N",null,"Elec"]
["E.2.2.B+",null,"Target:","n/a","Target Achieved ?:","N",null,"Elec"]
["E.2.2.B+",null,"Comments:","<Please provide explanation if strategy was not achieved or other comments as desired>",null,null,null,"Elec"]
["E.2.2.C","simp","Reduce lighting power density",null,null,null,"n/a","Elec"]
["E.2.2.C","Seattle Energy Code ","C. Reduce lighting power density  and supplement w/task lighting or daylighting.",null,null,null,null,"Elec"]
["E.2.2.C+",null,"Baseline:","Reduce lighting power density by 5%","Baseline Achieved ?:","N",null,"Elec"]
["E.2.2.C+",null,"Target:","Comply with Jan 2018 standards listed in SEC","Target Achieved ?:","N",null,"Elec"]
["E.2.2.C+",null,"Comments:","<Please provide explanation if strategy was not achieved or other comments as desired>",null,null,null,"Elec"]
["E.2.2.D","simp","Use efficient lighting fixtures",null,null,null,"n/a","Elec"]
["E.2.2.D",null,"D. Use efficient electric lighting.",null,null,null,null,"Elec"]
["E.2.2.D+",null,"Baseline:","Use lamps with high efficacy (Lumen/Watt) such as T8 or T5, or LED.  Use Energy Star CFL's and LEDs","Baseline Achieved ?:","N",null,"Elec"]
["E.2.2.D+",null,"Target:","n/a","Target Achieved ?:","n/a",null,"Elec"]
["E.2.2.D+",null,"Comments:","<Please provide explanation if strategy was not achieved or other comments as desired>",null,null,null,"Elec"]
["C.1.1.A","simp","Use low emission boilers and furnaces ",null,null,null,"n/a","HVAC, Plumb"]
["C.1.1.A","SCAQMD - 1146","A. Use low nitrogen oxides boilers and low carbon monoxide furnaces. Comply with current standard of South Coast Air Quality Management District Rule 1146 ",null,null,null,null,"HVAC, Plumb"]
["C.1.1.A+",null,"Baseline:","All capacities gaseous fuels: Emissions of Knox do not exceed 30 ppm\nAll capacities, non-gaseous fuels: Emissions of Knox do not exceed 40 ppm","Baseline Achieved ?:","N",null,"HVAC, Plumb"]
["C.1.1.A+",null,"Target:","≤ 2 million Btu/h: NOx limit - 20 ppm\n> 2 million Btu/h: NOx limit -  9 ppm  ","Target Achieved ?:","N",null,"HVAC, Plumb"]
["C.1.1.A+",null,"Comments:","<Please provide explanation if strategy was not achieved or other comments as desired>",null,null,null,"HVAC, Plumb"]
["C.1.2.A","simp","Phase out CFCs in existing buildings and replace with new equipment or refrigerants",null,null,null,"n/a","HVAC, FireSuppr"]
["C.1.2.A",null,"A. Replace CFCs in existing equipment with new refrigerants regardless of code or scope of work requirement.",null,null,null,null,"HVAC, FireSuppr"]
["C.1.2.A+",null,"Baseline:","Ozone Depletion Potential (ODP) ≤ 0.02 and Global Warming Potential (GWP) ≤ 1900 (R-407C, R-410A, R134A)","Baseline Achieved ?:","N",null,"HVAC, FireSuppr"]
["C.1.2.A+",null,"Target:","Ozone Depletion Potential (ODP) = 0.02 and Global Warming Potential (GWP) < 150 (R-123, CO2, NH3, Propane)","Target Achieved ?:","N",null,"HVAC, FireSuppr"]
["C.1.2.A+",null,"Comments:","<Please provide explanation if strategy was not achieved or other comments as desired>",null,null,null,"HVAC, FireSuppr"]
["C.1.2.B","simp","Provide leak detection and remote alarm where refrigerants are used",null,null,null,"n/a","HVAC, S&E"]
["C.1.2.B","Seattle Mechanical Code ","B. Excludes appliances with less than 0.5 pounds of refrigerant. Seattle Mechanical Codes  limits the amount of refrigerant equipment can contain without being located either outside or in an enclosed machine room.  Machinery rooms are required to have refrigerant leak detection and alarms.  The primary intent of the code is to protect occupants from refrigerant leaks.  ",null,null,null,null,"HVAC, S&E"]
["C.1.2.B+",null,"Baseline:","Regardless of project size","Baseline Achieved ?:","N",null,"HVAC, S&E"]
["C.1.2.B+",null,"Target:","n/a","Target Achieved ?:","n/a",null,"HVAC, S&E"]
["C.1.2.B+",null,"Comments:","<Please provide explanation if strategy was not achieved or other comments as desired>",null,null,null,"HVAC, S&E"]
["C.1.2.C","simp","Select equipment with refrigerants that have low ozone depleting potential & low global warming potential",null,null,null,"n/a","S&E, HVAC, FireSuppr"]
["C.1.2.C",null,"C. Select new HVAC and refrigeration and fire suppression equipment with refrigerants that have low ozone depleting potential (ODP) & low global warming potential (GWP).",null,null,null,null,"S&E, HVAC, FireSuppr"]
["C.1.2.C+",null,"Baseline:","Ozone Depletion Potential (ODP) = 0.02 and Global Warming Potential (GWP) < 150 (R-123, CO2, NH3, Propane)","Baseline Achieved ?:","N",null,"S&E, HVAC, FireSuppr"]
["C.1.2.C+",null,"Target:","No refrigerants","Target Achieved ?:","N",null,"S&E, HVAC, FireSuppr"]
["C.1.2.C+",null,"Comments:","<Please provide explanation if strategy was not achieved or other comments as desired>",null,null,null,"S&E, HVAC, FireSuppr"]
["C.2.1.A","simp","Provide on-site renewable energy",null,null,null,"n/a","Elec, HVAC"]
["C.2.1.A","Seattle Energy Code ","A. Use on-site renewable energy, including photovoltaics, solar thermal, and wind.",null,null,null,null,"Elec, HVAC"]
["C.2.1.A+",null,"Baseline:","Provide minimum watts per s.f. of conditioned space as indicated in code","Baseline Achieved ?:","N",null,"Elec, HVAC"]
["C.2.1.A+",null,"Target:","25% capacity increase over code requirement","Target Achieved ?:","N",null,"Elec, HVAC"]
["C.2.1.A+",null,"Comments:","<Please provide explanation if strategy was not achieved or other comments as desired>",null,null,null,"Elec, HVAC"]
["C.3.1.A","simp","Limit parking capacity to code minimum",null,null,null,"n/a","Site, Struct"]
["C.3.1.A",null,"A. Limit parking capacity to code. Where there is a minimum and maximum requirement, provide no more than the minimum. ",null,null,null,null,"Site, Struct"]
["C.3.1.A+",null,"Baseline:","√","Baseline Achieved ?:","N",null,"Site, Struct"]
["C.3.1.A+",null,"Target:","n/a","Target Achieved ?:","n/a",null,"Site, Struct"]
["C.3.1.A+",null,"Comments:","<Please provide explanation if strategy was not achieved or other comments as desired>",null,null,null,"Site, Struct"]
["C.3.1.B","simp","Provide secure bike parking and shower/changing rooms",null,null,null,"n/a","Site, Constr"]
["C.3.1.B",null,"B. Provide secure bike parking for peak occupancy (FTEs + maximum visitors) and shower/changing rooms for FTEs. ",null,null,null,null,"Site, Constr"]
["C.3.1.B+",null,"Baseline:"," bike parking for 5% of peak and showers for 0.5% of FTEs","Baseline Achieved ?:","N",null,"Site, Constr"]
["C.3.1.B+",null,"Target:","bike parking for 10% of peak and showers for 1% of FTEs","Target Achieved ?:","N",null,"Site, Constr"]
["C.3.1.B+",null,"Comments:","<Please provide explanation if strategy was not achieved or other comments as desired>",null,null,null,"Site, Constr"]
["C.3.1.C","simp","Provide preferred carpool/vanpool parking",null,null,null,"n/a","Site, Struct"]
["C.3.1.C",null,"C. Provide preferred carpool/vanpool parking spaces based on total parking spaces.",null,null,null,null,"Site, Struct"]
["C.3.1.C+",null,"Baseline:","5% of total parking spaces","Baseline Achieved ?:","N",null,"Site, Struct"]
["C.3.1.C+",null,"Target:","10% of total parking spaces","Target Achieved ?:","N",null,"Site, Struct"]
["C.3.1.C+",null,"Comments:","<Please provide explanation if strategy was not achieved or other comments as desired>",null,null,null,"Site, Struct"]
["C.3.2.A","simp","Provide preferred parking for low emitting/fuel efficient vehicles ",null,null,null,"n/a","Site, Struct"]
["C.3.2.A","ACEEE","A. Locate preferred parking for low emitting/fuel efficient vehicles closest to the entrance exclusive of ADA. Eligible vehicles are classified as Zero Emission Vehicles by the California Air Resources Board or have achieved a minimum score of 45 on the American Council for an Energy Efficient Economy (ACEEE) annual vehicle rating guide.",null,null,null,null,"Site, Struct"]
["C.3.2.A+",null,"Baseline:","5% of total parking spaces","Baseline Achieved ?:","N",null,"Site, Struct"]
["C.3.2.A+",null,"Target:","10% of total parking spaces","Target Achieved ?:","N",null,"Site, Struct"]
["C.3.2.A+",null,"Comments:","<Please provide explanation if strategy was not achieved or other comments as desired>",null,null,null,"Site, Struct"]
["C.3.2.B","simp","Provide Level 2 electric vehicle charging stations (240v).",null,null,null,"n/a","Elec"]
["C.3.2.B",null,"B. Provide Level 2 electric vehicle charging stations (240v).",null,null,null,null,"Elec"]
["C.3.2.B+",null,"Baseline:","1 per 100 spaces","Baseline Achieved ?:","N",null,"Elec"]
["C.3.2.B+",null,"Target:","2 per 100 spaces","Target Achieved ?:","N",null,"Elec"]
["C.3.2.B+",null,"Comments:","<Please provide explanation if strategy was not achieved or other comments as desired>",null,null,null,"Elec"]
["M.1.1.A","simp","Use materials manufactured within 500 miles of site.",null,null,null,"n/a","Struct, Env, Constr, Finish, Furnish"]
["M.1.1.A","calculator","A. Source materials manufactured within 500 miles of the project site.",null,null,null,null,"Struct, Env, Constr, Finish, Furnish"]
["M.1.1.A+",null,"Baseline:","20% cost of materials","Baseline Achieved ?:","N",null,"Struct, Env, Constr, Finish, Furnish"]
["M.1.1.A+",null,"Target:","40% cost of materials","Target Achieved ?:","N",null,"Struct, Env, Constr, Finish, Furnish"]
["M.1.1.A+",null,"Comments:","<Please provide explanation if strategy was not achieved or other comments as desired>",null,null,null,"Struct, Env, Constr, Finish, Furnish"]
["M.1.1.B","simp","Use materials harvested or extracted within 500 miles of site.",null,null,null,"n/a","Struct, Env, Constr, Finish, Furnish"]
["M.1.1.B","calculator","B. Source materials harvested or extracted within 500 miles of the project site.",null,null,null,null,"Struct, Env, Constr, Finish, Furnish"]
["M.1.1.B+",null,"Baseline:","5% cost of materials","Baseline Achieved ?:","N",null,"Struct, Env, Constr, Finish, Furnish"]
["M.1.1.B+",null,"Target:","10% cost of materials","Target Achieved ?:","N",null,"Struct, Env, Constr, Finish, Furnish"]
["M.1.1.B+",null,"Comments:","<Please provide explanation if strategy was not achieved or other comments as desired>",null,null,null,"Struct, Env, Constr, Finish, Furnish"]
["M.1.2.A","simp","Use wood from Forest Stewardship Council (FSC) sources",null,null,null,"n/a","Struct, Env, Constr, Finish, Furnish"]
["M.1.2.A","calculator","A.  Use wood from Forestry Stewardship Council (FSC) sources",null,null,null,null,"Struct, Env, Constr, Finish, Furnish"]
["M.1.2.A+","FSC  ","Baseline:","20% cost of wood products","Baseline Achieved ?:","N",null,"Struct, Env, Constr, Finish, Furnish"]
["M.1.2.A+",null,"Target:","50% cost of wood products","Target Achieved ?:","N",null,"Struct, Env, Constr, Finish, Furnish"]
["M.1.2.A+",null,"Comments:","<Please provide explanation if strategy was not achieved or other comments as desired>",null,null,null,"Struct, Env, Constr, Finish, Furnish"]
["M.1.2.B","simp","Use bio-based products that meet the Sustainable Agriculture Network standard.",null,null,null,"n/a"," Finish, Furnish"]
["M.1.2.B","calculator","B. Materials include cork, linoleum, wheatgrass, bamboo, cellulose insulation, etc.",null,null,null,null," Finish, Furnish"]
["M.1.2.B+","Sustainable Agriculture Network","Baseline:","1% cost of materials","Baseline Achieved ?:","N",null," Finish, Furnish"]
["M.1.2.B+",null,"Target:","2.5% cost of materials","Target Achieved ?:","N",null," Finish, Furnish"]
["M.1.2.B+",null,"Comments:","<Please provide explanation if strategy was not achieved or other comments as desired>",null,null,null," Finish, Furnish"]
["M.2.1.A","simp","Implement a construction waste management plan to divert recyclable waste from the landfill",null,null,null,"n/a","Demo, Site, Struct, Env, Constr, Finish, S&E, Furnish, HVAC, Plumb, Elec, FireSuppr, Park"]
["M.2.1.A","Waste Diversion Plan and Assessment permit form","A. Implement Construction Waste Management Plan. See SPU page regarding mandatory reporting requirements.  The SDCI Permit Form directory has a form for the required Plan. Materials must be taken to a Seattle certified facility. (List on SPU page).",null,null,null,null,"Demo, Site, Struct, Env, Constr, Finish, S&E, Furnish, HVAC, Plumb, Elec, FireSuppr, Park"]
["M.2.1.A+","SPU C&D Waste","Baseline:","75% waste diverted","Baseline Achieved ?:","N",null,"Demo, Site, Struct, Env, Constr, Finish, S&E, Furnish, HVAC, Plumb, Elec, FireSuppr, Park"]
["M.2.1.A+","King County C&D Recycling ","Target:","85% waste diverted","Target Achieved ?:","N",null,"Demo, Site, Struct, Env, Constr, Finish, S&E, Furnish, HVAC, Plumb, Elec, FireSuppr, Park"]
["M.2.1.A+",null,"Comments:","<Please provide explanation if strategy was not achieved or other comments as desired>",null,null,null,"Demo, Site, Struct, Env, Constr, Finish, S&E, Furnish, HVAC, Plumb, Elec, FireSuppr, Park"]
["M.2.2.A","simp","Provide convenient and appropriately sized recycling and composting collection and storage",null,null,null,"n/a","Constr, Finish"]
["M.2.2.A",null,"A. Provide conveniently located and appropriately sized recycle collection & storage for paper, metal, cardboard, plastic and glass, and compost.",null,null,null,null,"Constr, Finish"]
["M.2.2.A+",null,"Baseline:","√","Baseline Achieved ?:","N",null,"Constr, Finish"]
["M.2.2.A+",null,"Target:","Add collection for batteries, fluorescent lamps and e-waste.","Target Achieved ?:","N",null,"Constr, Finish"]
["M.2.2.A+",null,"Comments:","<Please provide explanation if strategy was not achieved or other comments as desired>",null,null,null,"Constr, Finish"]
["M.3.1.A","simp","Retain non-structural interior elements of existing building ",null,null,null,"n/a","Struct, Constr, Finish"]
["M.3.1.A","calculator","A. Retain non-structural interior elements of existing building . Including finished flooring, finished ceiling, walls, casework and doors.",null,null,null,null,"Struct, Constr, Finish"]
["M.3.1.A+",null,"Baseline:","40% of surface area","Baseline Achieved ?:","N",null,"Struct, Constr, Finish"]
["M.3.1.A+",null,"Target:","60% of surface area","Target Achieved ?:","N",null,"Struct, Constr, Finish"]
["M.3.1.A+",null,"Comments:","<Please provide explanation if strategy was not achieved or other comments as desired>",null,null,null,"Struct, Constr, Finish"]
["M.3.1.B","simp","Retain structural components of existing building",null,null,null,"n/a","Struct, Env, Constr"]
["M.3.1.B","calculator","B. Retain structural components of existing building, including roof, wall and floors but excluding windows.",null,null,null,null,"Struct, Env, Constr"]
["M.3.1.B+",null,"Baseline:","50% of existing walls, floors and roof by surface area","Baseline Achieved ?:","N",null,"Struct, Env, Constr"]
["M.3.1.B+",null,"Target:","75% of existing walls, floors and roof by surface area","Target Achieved ?:","N",null,"Struct, Env, Constr"]
["M.3.1.B+",null,"Comments:","<Please provide explanation if strategy was not achieved or other comments as desired>",null,null,null,"Struct, Env, Constr"]
["M.3.2.A","simp","Use demountable floor-to-ceiling partitions and non-demising walls",null,null,null,"n/a","Struct, Constr"]
["M.3.2.A",null,"A. Use demountable floor-to-ceiling partitions for interior non structural and non-demising walls in lieu of standard wall construction (gwb).",null,null,null,null,"Struct, Constr"]
["M.3.2.A+",null,"Baseline:","30% of interior non-structural walls","Baseline Achieved ?:","N",null,"Struct, Constr"]
["M.3.2.A+",null,"Target:","60% of interior non-structural walls","Target Achieved ?:","N",null,"Struct, Constr"]
["M.3.2.A+",null,"Comments:","<Please provide explanation if strategy was not achieved or other comments as desired>",null,null,null,"Struct, Constr"]
["M.3.2.B","simp","Select building assemblies based on life-cycle cost analysis",null,null,null,"n/a","Struct, Env, Constr, Finish"]
["M.3.2.B","LCCA Technical Resources at King County Green Tools","B. Select building assemblies based on life-cycle cost analysis and 15 year payback periods.",null,null,null,null,"Struct, Env, Constr, Finish"]
["M.3.2.B+",null,"Baseline:","Use life cycle cost analysis to select major building components","Baseline Achieved ?:","N",null,"Struct, Env, Constr, Finish"]
["M.3.2.B+",null,"Target:","Use life cycle cost analysis to select foundation & floor, structural systems & walls, roof, envelope","Target Achieved ?:","N",null,"Struct, Env, Constr, Finish"]
["M.3.2.B+",null,"Comments:","<Please provide explanation if strategy was not achieved or other comments as desired>",null,null,null,"Struct, Env, Constr, Finish"]
["M.3.2.C","simp","Select building assemblies based on life-cycle assessment",null,null,null,"n/a","Struct, Env, Constr, Finish"]
["M.3.2.C","ASMI-Impact Estimator ","C. Use software to perform life cycle assessment.  Athena Sustainable Materials Institute (ASMI) and Solidworks CAD Sustainability Xpress add-on can help analyze buildings and assemblies.  US National Institute for Standards and Technology (NIST) Building for Environmental and Economic Sustainability (BEEs) offers analysis at the product level. ",null,null,null,null,"Struct, Env, Constr, Finish"]
["M.3.2.C+","BEES","Baseline:","Use life cycle assessment software to select major building components","Baseline Achieved ?:","N",null,"Struct, Env, Constr, Finish"]
["M.3.2.C+",null,"Target:","Use life cycle assessment software to select foundation and floor, structural systems and walls, roof, envelope","Target Achieved ?:","N",null,"Struct, Env, Constr, Finish"]
["M.3.2.C+",null,"Comments:","<Please provide explanation if strategy was not achieved or other comments as desired>",null,null,null,"Struct, Env, Constr, Finish"]
["M.3.2.D","simp","Use building materials that contain recycled content.",null,null,null,"n/a","Site, Struct, Env, Constr, Finish, Furnish"]
["M.3.2.D","calculator","D. Calculation is based on total cost of building materials only, excluding labor and MEP. Post consumer content, already used by consumers and discarded, to be valued at 100% of proportionate cost. Pre-consumer content, waste from manufacturing reintroduced into the process, to be valued at 50% of proportionate cost.",null,null,null,null,"Site, Struct, Env, Constr, Finish, Furnish"]
["M.3.2.D+",null,"Baseline:","5% total cost of bldg materials","Baseline Achieved ?:","N",null,"Site, Struct, Env, Constr, Finish, Furnish"]
["M.3.2.D+",null,"Target:","20% total cost of bldg materials","Target Achieved ?:","N",null,"Site, Struct, Env, Constr, Finish, Furnish"]
["M.3.2.D+",null,"Comments:","<Please provide explanation if strategy was not achieved or other comments as desired>",null,null,null,"Site, Struct, Env, Constr, Finish, Furnish"]
["M.3.2.E","simp"," Re-use furniture and furnishings",null,null,null,"n/a","Furnish"]
["M.3.2.E",null,"E. Use current replacement value to establish cost of re-used items.",null,null,null,null,"Furnish"]
["M.3.2.E+",null,"Baseline:","30% of furniture and furnishings budget","Baseline Achieved ?:","N",null,"Furnish"]
["M.3.2.E+",null,"Target:","60% of furniture and furnishings budget","Target Achieved ?:","N",null,"Furnish"]
["M.3.2.E+",null,"Comments:","<Please provide explanation if strategy was not achieved or other comments as desired>",null,null,null,"Furnish"]
["M.3.2.F","simp","Select well built furnishings for durability.",null,null,null,"n/a","Furnish"]
["M.3.2.F",null,"F. Select well built furnishings for durability.",null,null,null,null,"Furnish"]
["M.3.2.F+",null,"Baseline:","10 years","Baseline Achieved ?:","N",null,"Furnish"]
["M.3.2.F+",null,"Target:","20 years","Target Achieved ?:","N",null,"Furnish"]
["M.3.2.F+",null,"Comments:","<Please provide explanation if strategy was not achieved or other comments as desired>",null,null,null,"Furnish"]
["IE.1.1.A","simp","Use low-emitting interior adhesives and sealants",null,null,null,"n/a","Struct, Env, Constr, Finish. Plumb"]
["IE.1.1.A","SCAQMD - 1168","A. Use low-emitting interior adhesives & sealants, i.e., inside the weather barrier.",null,null,null,null,"Struct, Env, Constr, Finish. Plumb"]
["IE.1.1.A+",null,"Baseline:","Meet South Coast Air Quality Management District Rule #1168, dated 1/7/2005","Baseline Achieved ?:","N",null,"Struct, Env, Constr, Finish. Plumb"]
["IE.1.1.A+",null,"Target:","na","Target Achieved ?:","N",null,"Struct, Env, Constr, Finish. Plumb"]
["IE.1.1.A+",null,"Comments:","<Please provide explanation if strategy was not achieved or other comments as desired>",null,null,null,"Struct, Env, Constr, Finish. Plumb"]
["IE.1.1.B","simp","Use low-emitting interior paints and coatings",null,null,null,"n/a","Struct, Constr, Finish"]
["IE.1.1.B","SCAQMD - 1113","B. Use low-emitting interior paints & coatings, i.e., inside the weather barrier.",null,null,null,null,"Struct, Constr, Finish"]
["IE.1.1.B+","Green Seal 11","Baseline:","Meet 2010 Green Seal GS-11 Third Edition or South Coast Air Quality Management District Rule 1113, dated 2/5/16","Baseline Achieved ?:","N",null,"Struct, Constr, Finish"]
["IE.1.1.B+","UL GreenGuard Gold\n","Target:","Use products that are emissions tested and compliant with the California Department of Public Health (CDPH) Standard Method V1.1-2010. Examples of testing certifications that are compliant include:\nUL Greenguard Gold; \nSCS Indoor Advantage Gold;\nClearChem Declared (Berkeley Analytical);\nIntertek ETL Environmental VOC+;\nMaterials Analytical Services (MAS) Certified Green","Target Achieved ?:","N",null,"Struct, Constr, Finish"]
["IE.1.1.B+",null,"Comments:","<Please provide explanation if strategy was not achieved or other comments as desired>",null,null,null,"Struct, Constr, Finish"]
["IE.1.1.C","simp","Use low-emitting  systems furniture and seating",null,null,null,"n/a","Furnish"]
["IE.1.1.C","Healthier Products & Building Materials ","C. Use low-emitting  systems furniture & seating certified by large chamber emissions protocols for all new purchases.",null,null,null,null,"Furnish"]
["IE.1.1.C+","Scientific Certification Systems Indoor Advantage Gold ","Baseline:","Green Guard or Indoor Advantage Gold  Certified","Baseline Achieved ?:","N",null,"Furnish"]
["IE.1.1.C+",null,"Target:","n/a","Target Achieved ?:","n/a",null,"Furnish"]
["IE.1.1.C+",null,"Comments:","<Please provide explanation if strategy was not achieved or other comments as desired>",null,null,null,"Furnish"]
["IE.1.1.D","simp","Use wood and agrifiber products that contain no added urea formaldehyde",null,null,null,"n/a","Struct, Constr, Finish, Furnish"]
["IE.1.1.D",null,"D. Use wood and agrifiber products that contain no added urea formaldehyde such as plywood, MDF, OSB.",null,null,null,null,"Struct, Constr, Finish, Furnish"]
["IE.1.1.D+","CARB Composite Wood","Baseline:","CARB compliant for Ultra Low Emitting Formaldehyde","Baseline Achieved ?:","N",null,"Struct, Constr, Finish, Furnish"]
["IE.1.1.D+",null,"Target:","Labeled as containing No Added Urea Formaldehyde.","Target Achieved ?:","n/a",null,"Struct, Constr, Finish, Furnish"]
["IE.1.1.D+",null,"Comments:","<Please provide explanation if strategy was not achieved or other comments as desired>",null,null,null,"Struct, Constr, Finish, Furnish"]
["IE.1.1.E","simp","Use low-emitting flooring systems",null,null,null,"n/a","Finish"]
["IE.1.1.E","CRI","E. Use low-emitting carpet, cushion and hardsurface flooring. Flooring adhesives to meet low emitting adhesives requirements. ",null,null,null,null,"Finish"]
["IE.1.1.E+","NSF/ANSI 140 ","Baseline:","Carpet, Pad and Adhesive: Carpet and Rug Institute's (CRI) Green Label Plus;                                                                                                 Hard surface Flooring:  Floorscore Certified (except for solid wood and mineral based flooring)","Baseline Achieved ?:","N",null,"Finish"]
["IE.1.1.E+",null,"Target:","Carpet: NSF/ANSI 140 Gold","Target Achieved ?:","N",null,"Finish"]
["IE.1.1.E+",null,"Comments:","<Please provide explanation if strategy was not achieved or other comments as desired>",null,null,null,"Finish"]
["IE.1.1.F","simp","Locate outdoor air intakes away from outdoor pollution sources",null,null,null,"n/a","HVAC"]
["IE.1.1.F","Seattle Mechanical Code ","F. Seattle Mechanical Codes requires a minimum of 10 ft. horizontal separation between air intakes and any hazardous or noxious contaminant source. Contaminant sources are considered to be vents, streets, alleys, parking areas, and loading docks. (Exhaust from residential bathroom, kitchen and laundries are not considered hazardous and therefore smaller separations are required). This strategy increases the separation distance.",null,null,null,null,"HVAC"]
["IE.1.1.F+",null,"Baseline:","10' from plumbing vents; 40' from parking areas and loading docks; no smoking within 25' of openings","Baseline Achieved ?:","N",null,"HVAC"]
["IE.1.1.F+",null,"Target:","Increase distance to 60' from parking areas and loading docks.  Do not allow smoking anywhere on the site.","Target Achieved ?:","N",null,"HVAC"]
["IE.1.1.F+",null,"Comments:","<Please provide explanation if strategy was not achieved or other comments as desired>",null,null,null,"HVAC"]
["IE.1.1.G","simp","Use envelope consultant to incorporate design measures to minimize water intrusion.",null,null,null,"n/a","Env"]
["IE.1.1.G",null,"G. Use envelope consultant to incorporate design measures to minimize water intrusion.",null,null,null,null,"Env"]
["IE.1.1.G+",null,"Baseline:","Member of design team","Baseline Achieved ?:","N",null,"Env"]
["IE.1.1.G+",null,"Target:","3rd party consultant","Target Achieved ?:","N",null,"Env"]
["IE.1.1.G+",null,"Comments:","<Please provide explanation if strategy was not achieved or other comments as desired>",null,null,null,"Env"]
["IE.1.2.A","simp","Provide thermal comfort controls to occupants",null,null,null,"n/a","HVAC"]
["IE.1.2.A",null,"A.  Provide thermal comfort controls to occupants.",null,null,null,null,"HVAC"]
["IE.1.2.A+",null,"Baseline:","1 control zone per orientation and for each multi-occupant space and provide adjustable window coverings","Baseline Achieved ?:","N",null,"HVAC"]
["IE.1.2.A+",null,"Target:","In addition, provide operable windows","Target Achieved ?:","N",null,"HVAC"]
["IE.1.2.A+",null,"Comments:","<Please provide explanation if strategy was not achieved or other comments as desired>",null,null,null,"HVAC"]
["IE.1.2.B","simp","Implement thermal comfort survey",null,null,null,"n/a","HVAC"]
["IE.1.2.B",null,"B. If project includes HVAC modifications, conduct thermal comfort survey. Survey to be based on 7pt scale format of  agree strongly, agree, agree somewhat, neutral, disagree somewhat, disagree, disagree strongly.",null,null,null,null,"HVAC"]
["IE.1.2.B+",null,"Baseline:","Conduct survey. Implement corrective action plan if more than 20% of respondents provide negative feedback","Baseline Achieved ?:","N",null,"HVAC"]
["IE.1.2.B+",null,"Target:","Conduct comfort survey annually","Target Achieved ?:","N",null,"HVAC"]
["IE.1.2.B+",null,"Comments:","<Please provide explanation if strategy was not achieved or other comments as desired>",null,null,null,"HVAC"]
["IE.1.3.A","simp","Provide appropriate daylight levels.",null,null,null,"n/a","Env, Constr"]
["IE.1.3.A","Seattle Energy Code ","A.  Provide appropriate daylight levels.",null,null,null,null,"Env, Constr"]
["IE.1.3.A+",null,"Baseline:","Baseline: For all interior opaque surfaces in the daylight zones provide a visible light reflectance value (LRV) of 80% for ceilings, 65% for walls over 56” in height. (LRV is readily available information from paint and ceiling tile manufacturers)","Baseline Achieved ?:","N",null,"Env, Constr"]
["IE.1.3.A+",null,"Target:","Target:  In addition to baseline requirements, meet an Effective Aperature criteria of at least 0.15 (Effective Aperature is the window to wall ratio multiplied by visible light transmittance)","Target Achieved ?:","N",null,"Env, Constr"]
["IE.1.3.A+",null,"Comments:","<Please provide explanation if strategy was not achieved or other comments as desired>",null,null,null,"Env, Constr"]
["IE.1.3.B","simp","Install automatic daylight controls",null,null,null,"n/a","Elec"]
["IE.1.3.B","Seattle Energy Code ","B. Similarly to E2.2.B- Install automatic daylight controls within 15' of all perimeter glazing, regardless of code compliance threshold.",null,null,null,null,"Elec"]
["IE.1.3.B+",null,"Baseline:","Multi-Step Dimming","Baseline Achieved ?:","N",null,"Elec"]
["IE.1.3.B+",null,"Target:","Continuous Dimming","Target Achieved ?:","N",null,"Elec"]
["IE.1.3.B+",null,"Comments:","<Please provide explanation if strategy was not achieved or other comments as desired>",null,null,null,"Elec"]
["IE.1.3.C","simp","Maximize occupied floor area w/ access to daylight. ",null,null,null,"n/a","Struct, Constr"]
["IE.1.3.C",null,"C. Build full height walls at interior of floor and not at the perimeter so as to not obscure line of sight to windows. Minimum of 10 footcandles and maximum of 500 footcandles.",null,null,null,null,"Struct, Constr"]
["IE.1.3.C+",null,"Baseline:","50% of regularly occupied spaces are located within daylight zones and <=30% full height walls at perimeter","Baseline Achieved ?:","N",null,"Struct, Constr"]
["IE.1.3.C+",null,"Target:","75% or more of regularly occupied spaces are located within daylight zones and 0 full height walls at perimeter","Target Achieved ?:","N",null,"Struct, Constr"]
["IE.1.3.C+",null,"Comments:","<Please provide explanation if strategy was not achieved or other comments as desired>",null,null,null,"Struct, Constr"]
["IE.1.3.D","simp","Provide efficient task lighting at individual workstations in open office areas with limited lighting controls",null,null,null,"n/a","Constr"]
["IE.1.3.D",null,"D. Provide efficient LED task lighting fixtures.  Permanently mounted occupant sensing fixtures preferred, but not required.",null,null,null,null,"Constr"]
["IE.1.3.D+",null,"Baseline:","75% of workstations","Baseline Achieved ?:","N",null,"Constr"]
["IE.1.3.D+",null,"Target:","90% of work stations","Target Achieved ?:","N",null,"Constr"]
["IE.1.3.D+",null,"Comments:","<Please provide explanation if strategy was not achieved or other comments as desired>",null,null,null,"Constr"]
["IE.1.4.A","simp","Meet the reverberation time requirements for the room type(s)",null,null,null,"n/a","Constr, Finish"]
["IE.1.4.A","calculator","A.  Offices, conference rooms, teleconference rooms <0.6; open plan office without sound masking <0.8; open plan office with sound masking 0.8; courtroom unamplified <0.7; amplified <1; library <1. (Requirements are in T60 (sec) at 500Hz, 1000Hz and 2000 Hz)",null,null,null,null,"Constr, Finish"]
["IE.1.4.A+",null,"Baseline:","Meet recommended requirements.","Baseline Achieved ?:","N",null,"Constr, Finish"]
["IE.1.4.A+",null,"Target:","Implement recommendations of acoustical engineer for specific space configurations and needs","Target Achieved ?:","N",null,"Constr, Finish"]
["IE.1.4.A+",null,"Comments:","<Please provide explanation if strategy was not achieved or other comments as desired>",null,null,null,"Constr, Finish"]
["IE.1.4.B","simp","Provide speech privacy between enclosed spaces.   ",null,null,null,"n/a","Struct, Constr"]
["IE.1.4.B",null,"B. Floor /ceiling assemblies shall meet the Barrier STC rating for the application -STC 45 between standard offices; STC 50 between executive offices, offices and conference rooms; STC 60 between mechanical equipment rooms and other occupied spaces.",null,null,null,null,"Struct, Constr"]
["IE.1.4.B+",null,"Baseline:","Design interior floor and ceiling assemblies to meet the above criteria when Seattle Building Code does not have a requirement for STC between spaces.","Baseline Achieved ?:","N",null,"Struct, Constr"]
["IE.1.4.B+",null,"Target:","Conduct acoustic comfort survey after completion. Take corrective action if significant speech privacy issues exist.","Target Achieved ?:","N",null,"Struct, Constr"]
["IE.1.4.B+",null,"Comments:","<Please provide explanation if strategy was not achieved or other comments as desired>",null,null,null,"Struct, Constr"]
["IE.1.4.C","simp","Mitigate noise from HVAC equipment & plumbing",null,null,null,"n/a","Struct, Constr, HVAC, Plumb"]
["IE.1.4.C",null,"C. Background noise levels (from equipment) should not exceed guidelines in ASHRAE 2011 HVAC Applications Chapter 48, Table 1 for applicable space types,  See guide book for additional details. Calculate or measure sound levels.",null,null,null,null,"Struct, Constr, HVAC, Plumb"]
["IE.1.4.C+",null,"Baseline:","√","Baseline Achieved ?:","N",null,"Struct, Constr, HVAC, Plumb"]
["IE.1.4.C+",null,"Target:","n/a","Target Achieved ?:","N",null,"Struct, Constr, HVAC, Plumb"]
["IE.1.4.C+",null,"Comments:","<Please provide explanation if strategy was not achieved or other comments as desired>",null,null,null,"Struct, Constr, HVAC, Plumb"]
["IE.1.5.A","simp","Implement job-site indoor air quality plan during construction",null,null,null,"n/a","Demo, Struct, Env, Constr, Finish, S&E, Furnish, HVAC, Plumb, Elec, FireSuppr"]
["IE.1.5.A",null,"A.  Implement job-site indoor air quality (IAQ) plan during construction, regardless of code threshold.",null,null,null,null,"Demo, Struct, Env, Constr, Finish, S&E, Furnish, HVAC, Plumb, Elec, FireSuppr"]
["IE.1.5.A+",null,"Baseline:","√","Baseline Achieved ?:","N",null,"Demo, Struct, Env, Constr, Finish, S&E, Furnish, HVAC, Plumb, Elec, FireSuppr"]
["IE.1.5.A+",null,"Target:","n/a","Target Achieved ?:","n/a",null,"Demo, Struct, Env, Constr, Finish, S&E, Furnish, HVAC, Plumb, Elec, FireSuppr"]
["IE.1.5.A+",null,"Comments:","<Please provide explanation if strategy was not achieved or other comments as desired>",null,null,null,"Demo, Struct, Env, Constr, Finish, S&E, Furnish, HVAC, Plumb, Elec, FireSuppr"]
["IE.1.5.B","simp","Perform building flush out prior to occupancy.",null,null,null,"n/a","Constr, Finish"]
["IE.1.5.B","calculator","B. Flush out building with outside air prior to occupancy.",null,null,null,null,"Constr, Finish"]
["IE.1.5.B+",null,"Baseline:","3,500 CFM/SF at 60 degrees F and 60% humidity","Baseline Achieved ?:","N",null,"Constr, Finish"]
["IE.1.5.B+",null,"Target:","14,000 CFM/SF at 60 degrees F and 60% humidity","Target Achieved ?:","N",null,"Constr, Finish"]
["IE.1.5.B+",null,"Comments:","<Please provide explanation if strategy was not achieved or other comments as desired>",null,null,null,"Constr, Finish"]
["IE.1.6.A","simp","Design duct work and electric/cable runs for accessibility and flexibility",null,null,null,"n/a","Struct, HVAC, Constr"]
["IE.1.6.A",null,"A. Use interstitial floors, raised floors or careful dropped ceiling or exposed ceiling design to allow for changes in room configurations",null,null,null,null,"Struct, HVAC, Constr"]
["IE.1.6.A+",null,"Baseline:","Carefully planned drop or exposed ceilings","Baseline Achieved ?:","N",null,"Struct, HVAC, Constr"]
["IE.1.6.A+",null,"Target:","Raised floor or interstitial floor system","Target Achieved ?:","N",null,"Struct, HVAC, Constr"]
["IE.1.6.A+",null,"Comments:","<Please provide explanation if strategy was not achieved or other comments as desired>",null,null,null,"Struct, HVAC, Constr"]
["IE.1.6.B","simp","Provide sufficient volume of outside air",null,null,null,"n/a","HVAC"]
["IE.1.6.B","Seattle Mechanical Code ","B. Provide sufficient volume of outside air in accordance with 2009 Seattle Mechanical Code and ASHRAE 62.1-2007",null,null,null,null,"HVAC"]
["IE.1.6.B+",null,"Baseline:","For new buildings, use ASHRAE 62.1-2007 VRP calculation or 2009 Seattle Mechanical Code to determine minimum outside air to each occupied space.","Baseline Achieved ?:","N",null,"HVAC"]
["IE.1.6.B+",null,"Target:","Provide permanently mounted outdoor air flow measurement device.  OR for Constant Volume air supply systems; provide a damper position feedback system.","Target Achieved ?:","N",null,"HVAC"]
["IE.1.6.B+",null,"Comments:","<Please provide explanation if strategy was not achieved or other comments as desired>",null,null,null,"HVAC"]
["IE.1.6.C","simp","Provide effective zone ventilation distribution.",null,null,null,"n/a","HVAC"]
["IE.1.6.C","Seattle Mechanical Code ","C. The effectiveness of the ventilation distribution is based on the configuration:  i.e.  Ceiling supply of warm air with a ceiling return is less effective than a ceiling supply  of warm air with a floor return.  In addition, the distribution effectiveness change on the operating condition of the system (heating or cooling).  The 2009 Seattle Mechanical Code and ASHRAE 62.1 take this into account in the minimum outside air requirement by applying a factor to less effective configurations. The less effective configurations require a higher volume of outside air which in turn increases energy use.",null,null,null,null,"HVAC"]
["IE.1.6.C+",null,"Baseline:","Provide a system with a worst case operating condition ventilation distribution effectiveness (Ez) of at least 0.8 as determined by SMC Table 403.3.1.2.","Baseline Achieved ?:","N",null,"HVAC"]
["IE.1.6.C+",null,"Target:","Provide a system with a worst case operating condition ventilation distribution effectiveness (Ez) of at 1.0 as determined by SMC Table 403.3.1.2.","Target Achieved ?:","N",null,"HVAC"]
["IE.1.6.C+",null,"Comments:","<Please provide explanation if strategy was not achieved or other comments as desired>",null,null,null,"HVAC"]
["IE.1.6.D","simp","Meet code ventilation requirements with natural ventilation or a combination of both mechanical and natural ventilation, regardless of project size.",null,null,null,"n/a","Env, HVAC"]
["IE.1.6.D",null,"D. Meet code ventilation requirements with natural ventilation or a combination of both mechanical and natural ventilation, regardless of project size.",null,null,null,null,"Env, HVAC"]
["IE.1.6.D+",null,"Baseline:","Incorporate operable windows to provide ventilation for areas within 25 feet of perimeter.  (Minimum requirement of 4% net open area of floor area within 25 feet  of window).","Baseline Achieved ?:","N",null,"Env, HVAC"]
["IE.1.6.D+",null,"Target:","n/a","Target Achieved ?:","N",null,"Env, HVAC"]
["IE.1.6.D+",null,"Comments:","<Please provide explanation if strategy was not achieved or other comments as desired>",null,null,null,"Env, HVAC"]
["z","*****","*****","*****","*****","*****","n/a"]
["z","*****","*****","*****","*****","*****","n/a"]
["z","*****","*****","*****","*****","*****","n/a"]
["z","*****","*****","*****","*****","*****","n/a"]
["z","*****","*****","*****","*****","*****","n/a"]

{"sheet":"Expandable List","index":5,"n_rows":602,"n_cols":11,"rows_kept":602,"cut":false,"hidden":true,"merged":[[587,2,587,5],[588,2,588,5],[591,3,591,5],[592,2,592,5],[593,2,593,5],[596,3,596,5],[577,2,577,5],[578,2,578,5],[581,3,581,5],[582,2,582,5],[583,2,583,5],[586,3,586,5],[567,2,567,5],[568,2,568,5],[571,3,571,5],[572,2,572,5],[573,2,573,5],[576,3,576,5],[557,2,557,5],[558,2,558,5],[561,3,561,5],[562,2,562,5],[563,2,563,5],[566,3,566,5],[547,2,547,5],[548,2,548,5],[551,3,551,5],[552,2,552,5],[553,2,553,5],[556,3,556,5],[537,2,537,5],[538,2,538,5],[541,3,541,5],[542,2,542,5],[543,2,543,5],[546,3,546,5],[527,2,527,5],[528,2,528,5],[531,3,531,5],[532,2,532,5],[533,2,533,5],[536,3,536,5],[517,2,517,5],[518,2,518,5],[521,3,521,5],[522,2,522,5],[523,2,523,5],[526,3,526,5],[507,2,507,5],[508,2,508,5],[511,3,511,5],[512,2,512,5],[513,2,513,5],[516,3,516,5],[497,2,497,5],[498,2,498,5],[501,3,501,5],[502,2,502,5],[503,2,503,5],[506,3,506,5],[487,2,487,5],[488,2,488,5],[491,3,491,5],[492,2,492,5],[493,2,493,5],[496,3,496,5],[477,2,477,5],[478,2,478,5],[481,3,481,5],[482,2,482,5],[483,2,483,5],[486,3,486,5],[467,2,467,5],[468,2,468,5],[471,3,471,5],[472,2,472,5],[473,2,473,5],[476,3,476,5],[457,2,457,5],[458,2,458,5],[461,3,461,5],[462,2,462,5],[463,2,463,5],[466,3,466,5],[447,2,447,5],[448,2,448,5],[451,3,451,5],[452,2,452,5],[453,2,453,5],[456,3,456,5],[437,2,437,5],[438,2,438,5],[441,3,441,5],[442,2,442,5],[443,2,443,5],[446,3,446,5],[427,2,427,5],[428,2,428,5],[431,3,431,5],[432,2,432,5],[433,2,433,5],[436,3,436,5],[417,2,417,5],[418,2,418,5],[421,3,421,5],[422,2,422,5],[423,2,423,5],[426,3,426,5],[407,2,407,5],[408,2,408,5],[411,3,411,5],[412,2,412,5],[413,2,413,5],[416,3,416,5],[397,2,397,5],[398,2,398,5],[401,3,401,5],[402,2,402,5],[403,2,403,5],[406,3,406,5],[387,2,387,5],[388,2,388,5],[391,3,391,5],[392,2,392,5],[393,2,393,5],[396,3,396,5],[377,2,377,5],[378,2,378,5],[381,3,381,5],[382,2,382,5],[383,2,383,5],[386,3,386,5],[367,2,367,5],[368,2,368,5],[371,3,371,5],[372,2,372,5],[373,2,373,5],[376,3,376,5],[357,2,357,5],[358,2,358,5],[361,3,361,5],[362,2,362,5],[363,2,363,5],[366,3,366,5],[347,2,347,5],[348,2,348,5],[351,3,351,5],[352,2,352,5],[353,2,353,5],[356,3,356,5],[337,2,337,5],[338,2,338,5],[341,3,341,5],[342,2,342,5],[343,2,343,5],[346,3,346,5],[327,2,327,5],[328,2,328,5],[331,3,331,5],[332,2,332,5],[333,2,333,5],[336,3,336,5],[317,2,317,5],[318,2,318,5],[321,3,321,5],[322,2,322,5],[323,2,323,5],[326,3,326,5],[307,2,307,5],[308,2,308,5],[311,3,311,5],[312,2,312,5],[313,2,313,5],[316,3,316,5],[297,2,297,5],[298,2,298,5],[301,3,301,5],[302,2,302,5],[303,2,303,5],[306,3,306,5],[287,2,287,5],[288,2,288,5],[291,3,291,5],[292,2,292,5],[293,2,293,5],[296,3,296,5],[277,2,277,5],[278,2,278,5],[281,3,281,5],[282,2,282,5],[283,2,283,5],[286,3,286,5],[267,2,267,5],[268,2,268,5],[271,3,271,5],[272,2,272,5],[273,2,273,5],[276,3,276,5],[257,2,257,5],[258,2,258,5],[261,3,261,5],[262,2,262,5],[263,2,263,5],[266,3,266,5],[247,2,247,5],[248,2,248,5],[251,3,251,5],[252,2,252,5],[253,2,253,5],[256,3,256,5],[237,2,237,5],[238,2,238,5],[241,3,241,5],[242,2,242,5],[243,2,243,5],[246,3,246,5],[227,2,227,5],[228,2,228,5],[231,3,231,5],[232,2,232,5],[233,2,233,5],[236,3,236,5],[217,2,217,5],[218,2,218,5],[221,3,221,5],[222,2,222,5],[223,2,223,5],[226,3,226,5],[207,2,207,5],[208,2,208,5],[211,3,211,5],[212,2,212,5],[213,2,213,5],[216,3,216,5],[197,2,197,5],[198,2,198,5],[201,3,201,5],[202,2,202,5],[203,2,203,5],[206,3,206,5],[187,2,187,5],[188,2,188,5],[191,3,191,5],[192,2,192,5],[193,2,193,5],[196,3,196,5],[177,2,177,5],[178,2,178,5],[181,3,181,5],[182,2,182,5],[183,2,183,5],[186,3,186,5],[167,2,167,5],[168,2,168,5],[171,3,171,5],[172,2,172,5],[173,2,173,5],[176,3,176,5],[157,2,157,5],[158,2,158,5],[161,3,161,5],[162,2,162,5],[163,2,163,5],[166,3,166,5],[147,2,147,5],[148,2,148,5],[151,3,151,5],[152,2,152,5],[153,2,153,5],[156,3,156,5],[137,2,137,5],[138,2,138,5],[141,3,141,5],[142,2,142,5],[143,2,143,5],[146,3,146,5],[132,2,132,5],[133,2,133,5],[136,3,136,5],[117,2,117,5],[118,2,118,5],[121,3,121,5],[122,2,122,5],[123,2,123,5],[126,3,126,5],[107,2,107,5],[108,2,108,5],[111,3,111,5],[112,2,112,5],[113,2,113,5],[116,3,116,5],[127,2,127,5],[128,2,128,5],[131,3,131,5]]}
["Number","Links","Description","Goal","Standards","Outcome","Selection"]
[{"$f":"TRIM(I2)","v":"z1"},null,"Y",1,null,null,null,"z1","z1"]
[{"$f":"TRIM(I3)","v":"z2"},null,"N",0,null,null,null,"z2","z2"]
[{"$f":"TRIM(I4)","v":"z3"},null,"n/a",null,null,null,null,"z3","z3"]
["z4",null,null,null,null,null,null,"z4","z4"]
["z5",null,null,null,null,null,null,"z5","z5"]
["z6",null,null,null,null,null,null,"z6","z6"]
["z7",null,null,null,null,null,null,"z7","z7"]
["z8",null,null,null,null,null,null,"z8","z8"]
["z9",null,null,null,null,null,null,"z9","z9"]
["z10",null,null,null,null,null,null,"z10","z10"]
["z11",null,null,null,null,null,null,"z11","z11"]
["z12",null,null,null,null,null,null,"z12","z12"]
["z13",null,null,null,null,null,null,"z13","z13"]
["z14",null,null,null,null,null,null,"z14","z14"]
["z15",null,null,null,null,null,null,"z15","z15"]
["z16",null,null,null,null,null,null,"z16","z16"]
["z17",null,null,null,null,null,null,"z17","z17"]
["z18",null,null,null,null,null,null,"z18","z18"]
["z19",null,null,null,null,null,null,"z19","z19"]
["z20",null,null,null,null,null,null,"z20","z20"]
["z21",null,null,null,null,null,null,"z21","z21"]
["z22",null,null,null,null,null,null,"z22","z22"]
["z23",null,null,null,null,null,null,"z23","z23"]
["z24",null,null,null,null,null,null,"z24","z24"]
["z25",null,null,null,null,null,null,"z25","z25"]
["z26",null,null,null,null,null,null,"z26","z26"]
["z27",null,null,null,null,null,null,"z27","z27"]
["z28",null,null,null,null,null,null,"z28","z28"]
["z29",null,null,null,null,null,null,"z29","z29"]
["z30",null,null,null,null,null,null,"z30","z30"]
["z31",null,null,null,null,null,null,"z31","z31"]
["z32",null,null,null,null,null,null,"z32","z32"]
["z33",null,null,null,null,null,null,"z33","z33"]
["z34",null,null,null,null,null,null,"z34","z34"]
["z35",null,null,null,null,null,null,"z35","z35"]
["z36",null,null,null,null,null,null,"z36","z36"]
["z37",null,null,null,null,null,null,"z37","z37"]
["z38",null,null,null,null,null,null,"z38","z38"]
["z39",null,null,null,null,null,null,"z39","z39"]
["z40",null,null,null,null,null,null,"z40","z40"]
["z41",null,null,null,null,null,null,"z41","z41"]
["z42",null,null,null,null,null,null,"z42","z42"]
["z43",null,null,null,null,null,null,"z43","z43"]
["z44",null,null,null,null,null,null,"z44","z44"]
["z45",null,null,null,null,null,null,"z45","z45"]
["z46",null,null,null,null,null,null,"z46","z46"]
["z47",null,null,null,null,null,null,"z47","z47"]
["z48",null,null,null,null,null,null,"z48","z48"]
["z49",null,null,null,null,null,null,"z49","z49"]
["z50",null,null,null,null,null,null,"z50","z50"]
["z51",null,null,null,null,null,null,"z51","z51"]
["z52",null,null,null,null,null,null,"z52","z52"]
["z53",null,null,null,null,null,null,"z53","z53"]
["z54",null,null,null,null,null,null,"z54","z54"]
["z55",null,null,null,null,null,null,"z55","z55"]
["z56",null,null,null,null,null,null,"z56","z56"]
["z57",null,null,null,null,null,null,"z57","z57"]
["z58",null,null,null,null,null,null,"z58","z58"]
["z59",null,null,null,null,null,null,"z59","z59"]
["z60",null,null,null,null,null,null,"z60","z60"]
["z61",null,null,null,null,null,null,"z61","z61"]
["z62",null,null,null,null,null,null,"z62","z62"]
["z63",null,null,null,null,null,null,"z63","z63"]
["z64",null,null,null,null,null,null,"z64","z64"]
["z65",null,null,null,null,null,null,"z65","z65"]
["z66",null,null,null,null,null,null,"z66","z66"]
[{"$f":"TRIM(I68)","v":"z67"},null,null,null,null,null,null,"z67","z67"]
["z68",null,null,null,null,null,null,"z68","z68"]
["z69",null,null,null,null,null,null,"z69","z69"]
["z70",null,null,null,null,null,null,"z70","z70"]
["z71",null,null,null,null,null,null,"z71","z71"]
["z72",null,null,null,null,null,null,"z72","z72"]
["z73",null,null,null,null,null,null,"z73","z73"]
["z74",null,null,null,null,null,null,"z74","z74"]
["z75",null,null,null,null,null,null,"z75","z75"]
["z76",null,null,null,null,null,null,"z76","z76"]
["z77",null,null,null,null,null,null,"z77","z77"]
["z78",null,null,null,null,null,null,"z78","z78"]
["z79",null,null,null,null,null,null,"z79","z79"]
["z80",null,null,null,null,null,null,"z80","z80"]
["z81",null,null,null,null,null,null,"z81","z81"]
["z82",null,null,null,null,null,null,"z82","z82"]
["z83",null,null,null,null,null,null,"z83","z83"]
["z84",null,null,null,null,null,null,"z84","z84"]
["z85",null,null,null,null,null,null,"z85","z85"]
["z86",null,null,null,null,null,null,"z86","z86"]
["z87",null,null,null,null,null,null,"z87","z87"]
["z88",null,null,null,null,null,null,"z88","z88"]
["z89",null,null,null,null,null,null,"z89","z89"]
["z90",null,null,null,null,null,null,"z90","z90"]
["z91",null,null,null,null,null,null,"z91","z91"]
["z92",null,null,null,null,null,null,"z92","z92"]
["z93",null,null,null,null,null,null,"z93","z93"]
["z94",null,null,null,null,null,null,"z94","z94"]
["z95",null,null,null,null,null,null,"z95","z95"]
["z96",null,null,null,null,null,null,"z96","z96"]
["z97",null,null,null,null,null,null,"z97","z97"]
["z98",null,null,null,null,null,null,"z98","z98"]
["z"]
[]
[]
[]
[]
[]
[]
["Number","Links","Description","Goal","Standards","Outcome","Selection"]
["S.1.1.A","simp"," Clearly define construction limits from building perimeter, roads, utilities and stormwater detention facilities.",null,null,null,"yes",{"$f":"IF(G108=\"Y\",1)","v":false},null,null,{"$f":"IF(G108=\"N\",1)","v":false}]
["S.1.1.A",null,"A.  Within 40 feet of building perimeter, 5 feet from roads, walks and utility trenches; and 25 feet beyond storm water detention facilities and playing fields."]
["S.1.1.A+",null,"Baseline:","√","Baseline Achieved ?:","N",null,null,null,{"$f":"IF(AND(F110=\"Y\",OR(F111=\"N\",F111=\"n/a\")),1)","v":false}]
["S.1.1.A+",null,"Target:","n/a","Target Achieved ?:","n/a",null,null,{"$f":"IF(F111=\"Y\",1)","v":false}]
["S.1.1.A+",null,"Comments:","<Please provide explanation if strategy was not achieved or other comments as desired>"]
["S.1.1.B","simp","Avoid construction on land within a wildlife corridor such as a wetland or stream buffer",null,null,null,"yes",{"$f":"IF(G113=\"Y\",1)","v":false},null,null,{"$f":"IF(G113=\"N\",1)","v":false}]
["S.1.1.B","Seattle Municipal Code Title 25","B. See Seattle Municipal Code for specific requirements on allowable distance and buffer relative to project size."]
["S.1.1.B+",null,"Baseline:","meet code regardless of project size","Baseline Achieved ?:","N",null,null,null,{"$f":"IF(AND(F115=\"Y\",OR(F116=\"N\",F116=\"n/a\")),1)","v":false}]
["S.1.1.B+",null,"Target:","Do not disturb","Target Achieved ?:","N",null,null,{"$f":"IF(F116=\"Y\",1)","v":false}]
["S.1.1.B+",null,"Comments:","<Please provide explanation if strategy was not achieved or other comments as desired>"]
["S.1.1.C","simp","Maximize vegetated open space on site including pedestrian hardscape and/or recreational amenities that are vegetated",null,null,null,"yes",{"$f":"IF(G118=\"Y\",1)","v":false},null,null,{"$f":"IF(G118=\"N\",1)","v":false}]
["S.1.1.C",null,"C. Native/adapted or drought tolerant plants are encouraged."]
["S.1.1.C+",null,"Baseline:","25% of site area (excluding bldg footprint)","Baseline Achieved ?:","N",null,null,null,{"$f":"IF(AND(F120=\"Y\",OR(F121=\"N\",F121=\"n/a\")),1)","v":false}]
["S.1.1.C+",null,"Target:","50% of site area (excluding bldg footprint)","Target Achieved ?:","N",null,null,{"$f":"IF(F121=\"Y\",1)","v":false}]
["S.1.1.C+",null,"Comments:","<Please provide explanation if strategy was not achieved or other comments as desired>"]
["S.1.1.D","simp"," Limit use of turf grass to areas where required for programmatic reasons like playfields",null,null,null,"yes",{"$f":"IF(G123=\"Y\",1)","v":false},null,null,{"$f":"IF(G123=\"N\",1)","v":false}]
["S.1.1.D",null,"D.  Where turf is required, use a drought tolerant and low maintenance seed mix."]
["S.1.1.D+",null,"Baseline:","√","Baseline Achieved ?:","N",null,null,null,{"$f":"IF(AND(F125=\"Y\",OR(F126=\"N\",F126=\"n/a\")),1)","v":false}]
["S.1.1.D+",null,"Target:","n/a","Target Achieved ?:","n/a",null,null,{"$f":"IF(F126=\"Y\",1)","v":false}]
["S.1.1.D+",null,"Comments:","<Please provide explanation if strategy was not achieved or other comments as desired>"]
["S.1.1.E","simp","Do not disturb slopes greater than 15%.",null,null,null,"yes",{"$f":"IF(G128=\"Y\",1)","v":false},null,null,{"$f":"IF(G128=\"N\",1)","v":false}]
["S.1.1.E",null,"E.  Do not disturb slopes greater than 15%. "]
["S.1.1.E+",null,"Baseline:","√","Baseline Achieved ?:","N",null,null,null,{"$f":"IF(AND(F130=\"Y\",OR(F131=\"N\",F131=\"n/a\")),1)","v":false}]
["S.1.1.E+",null,"Target:","n/a","Target Achieved ?:","n/a",null,null,{"$f":"IF(F131=\"Y\",1)","v":false}]
["S.1.1.E+",null,"Comments:","<Please provide explanation if strategy was not achieved or other comments as desired>"]
["S.1.1.F","simp","Protect existing or restore native or adapted vegetation on previously disturbed sites",null,null,null,"yes",{"$f":"IF(G133=\"Y\",1)","v":false},null,null,{"$f":"IF(G133=\"N\",1)","v":false}]
["S.1.1.F",null,"   F.  Vegetated roof areas may be included. Similar to S.3.1.B. which focuses on plant selection for new landscape work and W.4.1.C. which focuses on irrigation water reduction."]
["S.1.1.F+",null,"Baseline:","25% of site area (excluding bldg footprint)","Baseline Achieved ?:","N",null,null,null,{"$f":"IF(AND(F135=\"Y\",OR(F136=\"N\",F136=\"n/a\")),1)","v":false}]
["S.1.1.F+",null,"Target:","30% of site area (excluding bldg footprint)","Target Achieved ?:","N",null,null,{"$f":"IF(F136=\"Y\",1)","v":false}]
["S.1.1.F+",null,"Comments:","<Please provide explanation if strategy was not achieved or other comments as desired>"]
["S.1.1.G","simp","Remediate environmentally hazardous material in soil and/or building",null,null,null,"yes",{"$f":"IF(G138=\"Y\",1)","v":false},null,null,{"$f":"IF(G138=\"N\",1)","v":false}]
["S.1.1.G","Asbestos NESHAP","G. Remediate whether or not required by code."]
["S.1.1.G+","EPA Asbestos Overview","Baseline:","Per NESHAP (National Emission Standard for Hazardous Air Pollutants) and AHERA (Asbestos Hazard Emergency Response Act) ","Baseline Achieved ?:","N",null,null,null,{"$f":"IF(AND(F140=\"Y\",OR(F141=\"N\",F141=\"n/a\")),1)","v":false}]
["S.1.1.G+","AHERA","Target:","n/a","Target Achieved ?:","n/a",null,null,{"$f":"IF(F141=\"Y\",1)","v":false}]
["S.1.1.G+",null,"Comments:","<Please provide explanation if strategy was not achieved or other comments as desired>"]
["S.2.1.A","simp","Design to avoid bird collisions by using fritted glass, an auto shutoff of night time lighting, or by avoiding highly reflective glass",null,null,null,"yes",{"$f":"IF(G143=\"Y\",1)","v":false},null,null,{"$f":"IF(G143=\"N\",1)","v":false}]
["S.2.1.A",null,"A. Also consider temporary measures, such as netting, bird decals and streamers, in problem areas during migration season."]
["S.2.1.A+",null,"Baseline:","n/a","Baseline Achieved ?:","n/a",null,null,null,{"$f":"IF(AND(F145=\"Y\",OR(F146=\"N\",F146=\"n/a\")),1)","v":false}]
["S.2.1.A+",null,"Target:","√","Target Achieved ?:","N",null,null,{"$f":"IF(F146=\"Y\",1)","v":false}]
["S.2.1.A+",null,"Comments:","<Please provide explanation if strategy was not achieved or other comments as desired>"]
["S.2.1.B","simp","Select light colored or open grid paving for pedestrian hardscape",null,null,null,"yes",{"$f":"IF(G148=\"Y\",1)","v":false},null,null,{"$f":"IF(G148=\"N\",1)","v":false}]
["S.2.1.B","Calculator","B.  Select paving with an SRI of 29 or higher to reduce heat island effect."]
["S.2.1.B+",null,"Baseline:","30% of hardscape","Baseline Achieved ?:","N",null,null,null,{"$f":"IF(AND(F150=\"Y\",OR(F151=\"N\",F151=\"n/a\")),1)","v":false}]
["S.2.1.B+",null,"Target:","50% of hardscape","Target Achieved ?:","N",null,null,{"$f":"IF(F151=\"Y\",1)","v":false}]
["S.2.1.B+",null,"Comments:","<Please provide explanation if strategy was not achieved or other comments as desired>"]
["S.2.1.C","simp","Provide shade for parking areas using trees, canopies, solar panels, vegetated roof areas or by locating parking underground",null,null,null,"yes",{"$f":"IF(G153=\"Y\",1)","v":false},null,null,{"$f":"IF(G153=\"N\",1)","v":false}]
["S.2.1.C","Calculator","C.  Shade through the use of tree canopies that are established within 5 years, light colored canopies with an SRI of 29 or higher, structures covered by solar panels, vegetated roof areas, or by locating parking areas underground. The effective shade coverage on the parking area shall be the arithmetic mean of the shade coverage calculated at 10am, noon, and 3pm on the summer solstice."]
["S.2.1.C+",null,"Baseline:","50% of total parking area","Baseline Achieved ?:","N",null,null,null,{"$f":"IF(AND(F155=\"Y\",OR(F156=\"N\",F156=\"n/a\")),1)","v":false}]
["S.2.1.C+",null,"Target:","80% of total parking area","Target Achieved ?:","N",null,null,{"$f":"IF(F156=\"Y\",1)","v":false}]
["S.2.1.C+","Seattle Master Tree List","Comments:","<Please provide explanation if strategy was not achieved or other comments as desired>"]
["S.2.2.A","simp","Limit trespass of exterior lighting over site boundary and upward into night sky by using shielded fixtures",null,null,null,"yes",{"$f":"IF(G158=\"Y\",1)","v":false},null,null,{"$f":"IF(G158=\"N\",1)","v":false}]
["S.2.2.A",null,"A. Only light areas as required for safety and comfort, suitable for that lighting zone (LZ)"]
["S.2.2.A+","Dark Sky Friendly Lighting Directory ","Baseline:","Sites in residential areas (LZ1): Design exterior lighting to produce a maximum initial illuminance value no greater than 0.10 horizontal and vertical foot-candles at the site boundary and no greater than 0.01 horizontal foot-candles 10 feet beyond the site boundary. No more than 2% of total initial designed fixture lumens are emitted at an angle of 90 degrees or higher from nadir (straight down).\nSites in neighborhood and commercial areas (LZ2) :Design exterior lighting to produce a maximum initial illuminance value no greater than 0.20 horizontal and vertical foot-candles at the site boundary and no greater than 0.01 horizontal foot-candles 15 feet beyond the site boundary. No more than 5% of total initial designed fixture lumens are emitted at an angle of 90 degrees or higher from nadir (straight down).\nSite in downtown areas (LZ3):Design exterior lighting to produce a maximum initial illuminance value no greater than 0.60 horizontal and vertical foot-candles at the site boundary and no greater than 0.01 horizontal foot-candles 15 feet beyond the site boundary. \nAlternately - source fixtures with the appropriate BUG (Backlight Uplight Glare) rating for the project Light Zone and placement","Baseline Achieved ?:","N",null,null,null,{"$f":"IF(AND(F160=\"Y\",OR(F161=\"N\",F161=\"n/a\")),1)","v":false}]
["S.2.2.A+",null,"Target:","n/a","Target Achieved ?:","n/a",null,null,{"$f":"IF(F161=\"Y\",1)","v":false}]
["S.2.2.A+",null,"Comments:","<Please provide explanation if strategy was not achieved or other comments as desired>"]
["S.2.3.A","simp","Align buildings so that major elevations face north and south",null,null,null,"yes",{"$f":"IF(G163=\"Y\",1)","v":false},null,null,{"$f":"IF(G163=\"N\",1)","v":false}]
["S.2.3.A",null,"A.  Limit east and west exposures."]
["S.2.3.A+",null,"Baseline:","North and south facing glazing is at least 50% greater than east and west facing glazing","Baseline Achieved ?:","N",null,null,null,{"$f":"IF(AND(F165=\"Y\",OR(F166=\"N\",F166=\"n/a\")),1)","v":false}]
["S.2.3.A+",null,"Target:","East-west axis of building is within 15 degrees of due east-west","Target Achieved ?:","N",null,null,{"$f":"IF(F166=\"Y\",1)","v":false}]
["S.2.3.A+",null,"Comments:","<Please provide explanation if strategy was not achieved or other comments as desired>"]
["S.2.4.A","simp","Avoid construction within environmentally critical areas",null,null,null,"yes",{"$f":"IF(G168=\"Y\",1)","v":false},null,null,{"$f":"IF(G168=\"N\",1)","v":false}]
["S.2.4.A",null,"A. Develop on appropriate sites. "]
["S.2.4.A+",null,"Baseline:","Develop on a greenfield site, parkland or agricultural land ONLY when the building's purpose is related to the use of the land.  Examples - park shelter on parkland, or agricultural building on agricultural land.","Baseline Achieved ?:","N",null,null,null,{"$f":"IF(AND(F170=\"Y\",OR(F171=\"N\",F171=\"n/a\")),1)","v":false}]
["S.2.4.A+",null,"Target:","Develop only 1) in an existing building envelope 2) on a greyfield or 3) on a brownfield.","Target Achieved ?:","N",null,null,{"$f":"IF(F171=\"Y\",1)","v":false}]
["S.2.4.A+",null,"Comments:","<Please provide explanation if strategy was not achieved or other comments as desired>"]
["S.2.4.B","simp","Avoid construction within 100 ft of a lake, river, stream or wetland buffers",null,null,null,"yes",{"$f":"IF(G173=\"Y\",1)","v":false},null,null,{"$f":"IF(G173=\"N\",1)","v":false}]
["S.2.4.B","Municipal Code 25.06 Floodplain Development","B. See Seattle Municipal Code (SMC) for specific buffer requirements which vary for wetlands and water ways.  The Land use code may require more than 100 foot buffer in some cases.  However while the SMC allows averaging of the buffer, this strategy requires no development within 100 feet, and does not allow averaging of the buffer."]
["S.2.4.B+","Municipal Code 25.09 Environmentally Critical Areas","Baseline:","Regardless of code exemption","Baseline Achieved ?:","N",null,null,null,{"$f":"IF(AND(F175=\"Y\",OR(F176=\"N\",F176=\"n/a\")),1)","v":false}]
["S.2.4.B+",null,"Target:","Do not disturb","Target Achieved ?:","N",null,null,{"$f":"IF(F176=\"Y\",1)","v":false}]
["S.2.4.B+",null,"Comments:","<Please provide explanation if strategy was not achieved or other comments as desired>"]
["S.3.1.A","simp","Protect existing trees intended to remain by providing temporary fence",null,null,null,"yes",{"$f":"IF(G178=\"Y\",1)","v":false},null,null,{"$f":"IF(G178=\"N\",1)","v":false}]
["S.3.1.A",null,"A.  Provide temporary fence around drip line prior to start of construction."]
["S.3.1.A+",null,"Baseline:","√","Baseline Achieved ?:","N",null,null,null,{"$f":"IF(AND(F180=\"Y\",OR(F181=\"N\",F181=\"n/a\")),1)","v":false}]
["S.3.1.A+",null,"Target:","n/a","Target Achieved ?:","n/a",null,null,{"$f":"IF(F181=\"Y\",1)","v":false}]
["S.3.1.A+",null,"Comments:","<Please provide explanation if strategy was not achieved or other comments as desired>"]
["S.3.1.B","simp","Select native or adapted vegetation for landscape",null,null,null,"yes",{"$f":"IF(G183=\"Y\",1)","v":false},null,null,{"$f":"IF(G183=\"N\",1)","v":false}]
["S.3.1.B",null," B.  Similar to   S.1.1.F. which is focused on site restoration of existing vegetation and W.4.1.C. which focuses on irrigation water reduction. "]
["S.3.1.B+",null,"Baseline:","50% of landscape area","Baseline Achieved ?:","N",null,null,null,{"$f":"IF(AND(F185=\"Y\",OR(F186=\"N\",F186=\"n/a\")),1)","v":false}]
["S.3.1.B+",null,"Target:","100% of landscape area","Target Achieved ?:","N",null,null,{"$f":"IF(F186=\"Y\",1)","v":false}]
["S.3.1.B+",null,"Comments:","<Please provide explanation if strategy was not achieved or other comments as desired>"]
["W.1.1.A","simp"," Provide a green roof.",null,null,null,"yes",{"$f":"IF(G188=\"Y\",1)","v":false},null,null,{"$f":"IF(G188=\"N\",1)","v":false}]
["W.1.1.A",null,"A. Provide a vegetated roof."]
["W.1.1.A+",null,"Baseline:","50% of roof area","Baseline Achieved ?:","N",null,null,null,{"$f":"IF(AND(F190=\"Y\",OR(F191=\"N\",F191=\"n/a\")),1)","v":false}]
["W.1.1.A+",null,"Target:","75% of roof area","Target Achieved ?:","N",null,null,{"$f":"IF(F191=\"Y\",1)","v":false}]
["W.1.1.A+",null,"Comments:","<Please provide explanation if strategy was not achieved or other comments as desired>"]
["W.1.1.B","simp","Maintain no net increase or decrease quantity of stormwater discharge leaving the site",null,null,null,"yes",{"$f":"IF(G193=\"Y\",1)","v":false},null,null,{"$f":"IF(G193=\"N\",1)","v":false}]
["W.1.1.B","Stormwater Code","B. Achieve no net increase of quantity of storm water discharge leaving the site.   Use an 90th percentile rain event as basis for analysis and design. Use rain infiltration features, capture and reuse as suitable for site conditions and use."]
["W.1.1.B+","Green Stormwater Infrastructure (SPU)","Baseline:","No increase in storm water.","Baseline Achieved ?:","N",null,null,null,{"$f":"IF(AND(F195=\"Y\",OR(F196=\"N\",F196=\"n/a\")),1)","v":false}]
["W.1.1.B+",null,"Target:","Reduce quantity of storm water leaving the site by 25%.","Target Achieved ?:","N",null,null,{"$f":"IF(F196=\"Y\",1)","v":false}]
["W.1.1.B+",null,"Comments:","<Please provide explanation if strategy was not achieved or other comments as desired>"]
["W.2.1.A","simp","Reduce potable water use for cooling tower make-up water.",null,null,null,"yes",{"$f":"IF(G198=\"Y\",1)","v":false},null,null,{"$f":"IF(G198=\"N\",1)","v":false}]
["W.2.1.A","Dept of Energy Cooling Tower BMPs","A. Reduce potable water use for cooling tower make-up water through improved chemical management and use of nonpotable water (e.g. air handler condensate, single pass cooling system water, properly treated greywater or rainwater)."]
["W.2.1.A+",null,"Baseline:","Install conductivity meter to monitor and manage chemical concentrations to reduce losses due to blowdown/makeup water.","Baseline Achieved ?:","N",null,null,null,{"$f":"IF(AND(F200=\"Y\",OR(F201=\"N\",F201=\"n/a\")),1)","v":false}]
["W.2.1.A+",null,"Target:","More than 25% of make-up water from nonpotable sources","Target Achieved ?:","N",null,null,{"$f":"IF(F201=\"Y\",1)","v":false}]
["W.2.1.A+",null,"Comments:","<Please provide explanation if strategy was not achieved or other comments as desired>"]
["W.2.2.A","simp"," Install low flow plumbing fixtures",null,null,null,"yes",{"$f":"IF(G203=\"Y\",1)","v":false},null,null,{"$f":"IF(G203=\"N\",1)","v":false}]
["W.2.2.A",null,"A. Install low flow plumbing fixtures including lavatory faucets, showerheads and kitchen sink faucets. "]
["W.2.2.A+",null,"Baseline:","Exceed Seattle Plumbing Code with 2.0 gpm kitchen sink and showerhead","Baseline Achieved ?:","N",null,null,null,{"$f":"IF(AND(F205=\"Y\",OR(F206=\"N\",F206=\"n/a\")),1)","v":false}]
["W.2.2.A+",null,"Target:","Exceed Seattle Plumbing Code with 1.75 gpm kitchen sink and showerhead plus 0.5 gpm lavatory w/auto sensor","Target Achieved ?:","N",null,null,{"$f":"IF(F206=\"Y\",1)","v":false}]
["W.2.2.A+",null,"Comments:","<Please provide explanation if strategy was not achieved or other comments as desired>"]
["W.2.2.B","simp"," Install low volume flush fixtures",null,null,null,"yes",{"$f":"IF(G208=\"Y\",1)","v":false},null,null,{"$f":"IF(G208=\"N\",1)","v":false}]
["W.2.2.B",null,"B. Install low volume flush fixtures for water closets and urinals."]
["W.2.2.B+",null,"Baseline:","Exceed Seattle Plumbing Code with dual flush or low flush WC: 1.28 gpf and urinal: 0.5 gpf.","Baseline Achieved ?:","N",null,null,null,{"$f":"IF(AND(F210=\"Y\",OR(F211=\"N\",F211=\"n/a\")),1)","v":false}]
["W.2.2.B+",null,"Target:","Exceed Seattle Plumbing Code with dual flush or low flush WC: 1.28/ and urinal: 0.125 gpf","Target Achieved ?:","N",null,null,{"$f":"IF(F211=\"Y\",1)","v":false}]
["W.2.2.B+",null,"Comments:","<Please provide explanation if strategy was not achieved or other comments as desired>"]
["W.2.2.C","simp","Install water efficient commercial food service equipment. ",null,null,null,"yes",{"$f":"IF(G213=\"Y\",1)","v":false},null,null,{"$f":"IF(G213=\"N\",1)","v":false}]
["W.2.2.C",null,"C. Specify water efficient commercial food service equipment including low flow pre-rinse spray valves and Energy Star rated equipment. "]
["W.2.2.C+",null,"Baseline:","Use pre-rinse spray valves which operate at 1.3 gpm or less; Provide hands free controls for all faucets in the food prep area (including hand wash sinks, pot fillers and washing sinks); Provide Energy Star Rated Commercial Dishwashers and Steam Cookers as required by SEC.","Baseline Achieved ?:","N",null,null,null,{"$f":"IF(AND(F215=\"Y\",OR(F216=\"N\",F216=\"n/a\")),1)","v":false}]
["W.2.2.C+",null,"Target:","In addition to baseline if in scope of work: 100% of eligible water using commercial equipment shall be Energy Star Rated (includes Combination Ovens, Ice Machines, and commercial clothes washers).","Target Achieved ?:","N",null,null,{"$f":"IF(F216=\"Y\",1)","v":false}]
["W.2.2.C+",null,"Comments:","<Please provide explanation if strategy was not achieved or other comments as desired>"]
["W.2.3.A","simp","Submeter high water use operations like irrigation or domestic hot water",null,null,null,"yes",{"$f":"IF(G218=\"Y\",1)","v":false},null,null,{"$f":"IF(G218=\"N\",1)","v":false}]
["W.2.3.A",null,"A. Provide submeters for high water use operations per code regardless of project size."]
["W.2.3.A+",null,"Baseline:","Irrigation","Baseline Achieved ?:","N",null,null,null,{"$f":"IF(AND(F220=\"Y\",OR(F221=\"N\",F221=\"n/a\")),1)","v":false}]
["W.2.3.A+",null,"Target:","Wet cooling towers, commercial kitchens, laundries, Domestic Hot Water (DHW) boilers","Target Achieved ?:","N",null,null,{"$f":"IF(F221=\"Y\",1)","v":false}]
["W.2.3.A+",null,"Comments:","<Please provide explanation if strategy was not achieved or other comments as desired>"]
["W.3.1.A","simp","Direct stormwater to pervious areas to remove 80% of total suspended solids",null,null,null,"yes",{"$f":"IF(G223=\"Y\",1)","v":false},null,null,{"$f":"IF(G223=\"N\",1)","v":false}]
["W.3.1.A",null,"A. Capture and treat stormwater run-off with biofiltration swales, rain gardens or a water quality vault."]
["W.3.1.A+",null,"Baseline:","√","Baseline Achieved ?:","N",null,null,null,{"$f":"IF(AND(F225=\"Y\",OR(F226=\"N\",F226=\"n/a\")),1)","v":false}]
["W.3.1.A+",null,"Target:","n/a","Target Achieved ?:","n/a",null,null,{"$f":"IF(F226=\"Y\",1)","v":false}]
["W.3.1.A+",null,"Comments:","<Please provide explanation if strategy was not achieved or other comments as desired>"]
["W.3.2.A","simp","Implement erosion control measures prior to land disturbance",null,null,null,"yes",{"$f":"IF(G228=\"Y\",1)","v":false},null,null,{"$f":"IF(G228=\"N\",1)","v":false}]
["W.3.2.A",null,"A. Implement measures per code regardless of project size, including temporary seeding, mulching, earth dike, silt fence, sediment trap or sediment basin . Similar to W.3.2.B. which focuses on maintenance rather than implementation."]
["W.3.2.A+",null,"Baseline:","√","Baseline Achieved ?:","N",null,null,null,{"$f":"IF(AND(F230=\"Y\",OR(F231=\"N\",F231=\"n/a\")),1)","v":false}]
["W.3.2.A+",null,"Target:","n/a","Target Achieved ?:","n/a",null,null,{"$f":"IF(F231=\"Y\",1)","v":false}]
["W.3.2.A+",null,"Comments:","<Please provide explanation if strategy was not achieved or other comments as desired>"]
["W.3.2.B","simp"," Enforce temporary erosion control measures for duration of construction.",null,null,null,"yes",{"$f":"IF(G233=\"Y\",1)","v":false},null,null,{"$f":"IF(G233=\"N\",1)","v":false}]
["W.3.2.B",null,"B. Enforce temporary erosion control measures for duration of construction. Similar to W.3.2.A. which focuses on implementation rather than maintenance."]
["W.3.2.B+",null,"Baseline:","√","Baseline Achieved ?:","N",null,null,null,{"$f":"IF(AND(F235=\"Y\",OR(F236=\"N\",F236=\"n/a\")),1)","v":false}]
["W.3.2.B+",null,"Target:","n/a","Target Achieved ?:","n/a",null,null,{"$f":"IF(F236=\"Y\",1)","v":false}]
["W.3.2.B+",null,"Comments:","<Please provide explanation if strategy was not achieved or other comments as desired>"]
["W.3.2.C","simp","Install permanent vegetation or cover site areas prior to removal of temporary erosion control measures",null,null,null,"yes",{"$f":"IF(G238=\"Y\",1)","v":false},null,null,{"$f":"IF(G238=\"N\",1)","v":false}]
["W.3.2.C",null,"C. Prior to removal of temporary erosion control measures, install permanent vegetation or cover site areas per code regardless of project size."]
["W.3.2.C+",null,"Baseline:","√","Baseline Achieved ?:","N",null,null,null,{"$f":"IF(AND(F240=\"Y\",OR(F241=\"N\",F241=\"n/a\")),1)","v":false}]
["W.3.2.C+",null,"Target:","n/a","Target Achieved ?:","n/a",null,null,{"$f":"IF(F241=\"Y\",1)","v":false}]
["W.3.2.C+",null,"Comments:","<Please provide explanation if strategy was not achieved or other comments as desired>"]
["W.3.2.D","simp","Do not use construction materials in roofing or site areas that contribute to waterway contamination via stormwater runoff",null,null,null,"yes",{"$f":"IF(G243=\"Y\",1)","v":false},null,null,{"$f":"IF(G243=\"N\",1)","v":false}]
["W.3.2.D",null,"D. Avoid using construction materials such as copper and zinc roof appurtenances, galvanized materials, treated lumber, parking lot coal tar, and pesticides."]
["W.3.2.D+",null,"Baseline:","√","Baseline Achieved ?:","N",null,null,null,{"$f":"IF(AND(F245=\"Y\",OR(F246=\"N\",F246=\"n/a\")),1)","v":false}]
["W.3.2.D+",null,"Target:","n/a","Target Achieved ?:","n/a",null,null,{"$f":"IF(F246=\"Y\",1)","v":false}]
["W.3.2.D+",null,"Comments:","<Please provide explanation if strategy was not achieved or other comments as desired>"]
["W.3.3.A","simp"," Provide above ground fuel tanks with secondary containment. ",null,null,null,"yes",{"$f":"IF(G248=\"Y\",1)","v":false},null,null,{"$f":"IF(G248=\"N\",1)","v":false}]
["W.3.3.A",null,"A. Provide above ground tanks with secondary containment. "]
["W.3.3.A+",null,"Baseline:","√","Baseline Achieved ?:","N",null,null,null,{"$f":"IF(AND(F250=\"Y\",OR(F251=\"N\",F251=\"n/a\")),1)","v":false}]
["W.3.3.A+",null,"Target:","n/a","Target Achieved ?:","n/a",null,null,{"$f":"IF(F251=\"Y\",1)","v":false}]
["W.3.3.A+",null,"Comments:","<Please provide explanation if strategy was not achieved or other comments as desired>"]
["W.3.3.B","simp","Provide leak detection system for tanks and piping",null,null,null,"yes",{"$f":"IF(G253=\"Y\",1)","v":false},null,null,{"$f":"IF(G253=\"N\",1)","v":false}]
["W.3.3.B",null,"B. Provide leak detection system with monitors and alarms for tanks and piping (includes fuel tanks)."]
["W.3.3.B+",null,"Baseline:","√","Baseline Achieved ?:","N",null,null,null,{"$f":"IF(AND(F255=\"Y\",OR(F256=\"N\",F256=\"n/a\")),1)","v":false}]
["W.3.3.B+",null,"Target:","n/a","Target Achieved ?:","n/a",null,null,{"$f":"IF(F256=\"Y\",1)","v":false}]
["W.3.3.B+",null,"Comments:","<Please provide explanation if strategy was not achieved or other comments as desired>"]
["W.3.3.C","simp","Place parking under structure",null,null,null,"yes",{"$f":"IF(G258=\"Y\",1)","v":false},null,null,{"$f":"IF(G258=\"N\",1)","v":false}]
["W.3.3.C",null,"C. Place parking under structure with oil/grease separator."]
["W.3.3.C+",null,"Baseline:","50% of parking","Baseline Achieved ?:","N",null,null,null,{"$f":"IF(AND(F260=\"Y\",OR(F261=\"N\",F261=\"n/a\")),1)","v":false}]
["W.3.3.C+",null,"Target:","100% of parking","Target Achieved ?:","N",null,null,{"$f":"IF(F261=\"Y\",1)","v":false}]
["W.3.3.C+",null,"Comments:","<Please provide explanation if strategy was not achieved or other comments as desired>"]
["W.4.1.A","simp","Provide high efficiency irrigation",null,null,null,"yes",{"$f":"IF(G263=\"Y\",1)","v":false},null,null,{"$f":"IF(G263=\"N\",1)","v":false}]
["W.4.1.A",null,"A. Provide high efficiency irrigation systems such as high efficiency head or drip irrigation to limit water evaporation."]
["W.4.1.A+",null,"Baseline:","√","Baseline Achieved ?:","N",null,null,null,{"$f":"IF(AND(F265=\"Y\",OR(F266=\"N\",F266=\"n/a\")),1)","v":false}]
["W.4.1.A+",null,"Target:","n/a","Target Achieved ?:","n/a",null,null,{"$f":"IF(F266=\"Y\",1)","v":false}]
["W.4.1.A+",null,"Comments:","<Please provide explanation if strategy was not achieved or other comments as desired>"]
["W.4.1.B","simp"," Collect rainwater or graywater for irrigation.",null,null,null,"yes",{"$f":"IF(G268=\"Y\",1)","v":false},null,null,{"$f":"IF(G268=\"N\",1)","v":false}]
["W.4.1.B",null,"B. Use nonpotable water for irrigation, including onsite rainwater or graywater or municipally supplied nonpotable water. "]
["W.4.1.B+",null,"Baseline:","50% of irrigation water","Baseline Achieved ?:","N",null,null,null,{"$f":"IF(AND(F270=\"Y\",OR(F271=\"N\",F271=\"n/a\")),1)","v":false}]
["W.4.1.B+",null,"Target:","100% of irrigation water","Target Achieved ?:","N",null,null,{"$f":"IF(F271=\"Y\",1)","v":false}]
["W.4.1.B+",null,"Comments:","<Please provide explanation if strategy was not achieved or other comments as desired>"]
["W.4.1.C","simp","Select plants that are native or adapted to minimize irrigation requirements",null,null,null,"yes",{"$f":"IF(G273=\"Y\",1)","v":false},null,null,{"$f":"IF(G273=\"N\",1)","v":false}]
["W.4.1.C",null,"C. Similar to S.1.1.F. which is focused on site restoration of existing vegetation and S.3.1.B. which is intended to promote natural habitat."]
["W.4.1.C+",null,"Baseline:","50% of landscape area","Baseline Achieved ?:","N",null,null,null,{"$f":"IF(AND(F275=\"Y\",OR(F276=\"N\",F276=\"n/a\")),1)","v":false}]
["W.4.1.C+",null,"Target:","100% of landscape area","Target Achieved ?:","N",null,null,{"$f":"IF(F276=\"Y\",1)","v":false}]
["W.4.1.C+",null,"Comments:","<Please provide explanation if strategy was not achieved or other comments as desired>"]
["W.5.1.A","simp","Provide on-site wastewater treatment infrastructure",null,null,null,"yes",{"$f":"IF(G278=\"Y\",1)","v":false},null,null,{"$f":"IF(G278=\"N\",1)","v":false}]
["W.5.1.A",null,"A. Provide on-site wastewater treatment infrastructure such as a living machine for wastewater treatment or graywater system for wastewater reuse."]
["W.5.1.A+",null,"Baseline:","Below grade piping for graywater","Baseline Achieved ?:","N",null,null,null,{"$f":"IF(AND(F280=\"Y\",OR(F281=\"N\",F281=\"n/a\")),1)","v":false}]
["W.5.1.A+",null,"Target:","Living machine","Target Achieved ?:","N",null,null,{"$f":"IF(F281=\"Y\",1)","v":false}]
["W.5.1.A+",null,"Comments:","<Please provide explanation if strategy was not achieved or other comments as desired>"]
["E.1.1.A","simp","Commission building energy systems.",null,null,null,"yes",{"$f":"IF(G283=\"Y\",1)","v":false},null,null,{"$f":"IF(G283=\"N\",1)","v":false}]
["E.1.1.A","Seattle Energy Code ","A. Seattle Energy Code requires all mechanical work and lighting controls be commissioned.  This strategy expands the requirement to include electrical systems.    "]
["E.1.1.A+",null,"Baseline:","Commission all mechanical and electrical work, regardless of project size, to meet the Seattle Energy Code.  ","Baseline Achieved ?:","N",null,null,null,{"$f":"IF(AND(F285=\"Y\",OR(F286=\"N\",F286=\"n/a\")),1)","v":false}]
["E.1.1.A+",null,"Target:","Increase Cx scope to include peer review of design and construction documents, specifications and submittals.  Cx to participate in operator training and provide post occupancy review between 6-18 months after occupancy.","Target Achieved ?:","N",null,null,{"$f":"IF(F286=\"Y\",1)","v":false}]
["E.1.1.A+",null,"Comments:","<Please provide explanation if strategy was not achieved or other comments as desired>"]
["E.1.2.A","simp","Provide demand control ventilation (DCV) to respond to variable occupancy loads.",null,null,null,"yes",{"$f":"IF(G288=\"Y\",1)","v":false},null,null,{"$f":"IF(G288=\"N\",1)","v":false}]
["E.1.2.A",null,"A. Provide demand control ventilation (DCV) to respond to varying occupancy loads."]
["E.1.2.A+",null,"Baseline:","Ventilation controls respond to occupancy levels in densely occupied spaces (25 people/1000 SF - i.e. conference rooms, training rooms, break rooms).","Baseline Achieved ?:","N",null,null,null,{"$f":"IF(AND(F290=\"Y\",OR(F291=\"N\",F291=\"n/a\")),1)","v":false}]
["E.1.2.A+",null,"Target:","Ventilation controls respond to occupancy in any space with varying occupancy (i.e. open and private offices).","Target Achieved ?:","N",null,null,{"$f":"IF(F291=\"Y\",1)","v":false}]
["E.1.2.A+",null,"Comments:","<Please provide explanation if strategy was not achieved or other comments as desired>"]
["E.1.2.B","simp","Provide building automation system",null,null,null,"yes",{"$f":"IF(G293=\"Y\",1)","v":false},null,null,{"$f":"IF(G293=\"N\",1)","v":false}]
["E.1.2.B","Seattle Energy Code ","B. Seattle Energy Codes requires a 7-day programmable thermostat as a minimum.  For buildings with a cooling load over 65 tons more complex control systems are required.  The system must be capable of trending and demand response setpoint adjustment.  This strategy requires a building automation system regardless of system complexity.  Controls can be expanded to include lighting and hot water."]
["E.1.2.B+",null,"Baseline:","Direct Digital Controls (DDC) for building HVAC.","Baseline Achieved ?:","N",null,null,null,{"$f":"IF(AND(F295=\"Y\",OR(F296=\"N\",F296=\"n/a\")),1)","v":false}]
["E.1.2.B+",null,"Target:","Expand DDC system to control lighting, and domestic hot water.","Target Achieved ?:","N",null,null,{"$f":"IF(F296=\"Y\",1)","v":false}]
["E.1.2.B+",null,"Comments:","<Please provide explanation if strategy was not achieved or other comments as desired>"]
["E.1.3.A","simp","Submeter all major energy end uses",null,null,null,"yes",{"$f":"IF(G298=\"Y\",1)","v":false},null,null,{"$f":"IF(G298=\"N\",1)","v":false}]
["E.1.3.A","Seattle Energy Code ","A. SEC requires all buildings over 20,000 SF to have energy metering for all major end uses. There are exceptions for existing buildings. This strategy encourages existing buildings to upgrade and for  buildings below the 20,000 SF threshold to meet the requirements of the code."]
["E.1.3.A+",null,"Baseline:","Install measurement devices with remote communication capability for each energy source regardless of project size.   ","Baseline Achieved ?:","N",null,null,null,{"$f":"IF(AND(F300=\"Y\",OR(F301=\"N\",F301=\"n/a\")),1)","v":false}]
["E.1.3.A+",null,"Target:","Install measurement devices with remote communication capability for each energy source AND end use regardless of project size.   See SEC Ch. 12 for end use definitions.","Target Achieved ?:","N",null,null,{"$f":"IF(F301=\"Y\",1)","v":false}]
["E.1.3.A+",null,"Comments:","<Please provide explanation if strategy was not achieved or other comments as desired>"]
["E.1.4.A","simp","Reduce carbon emissions from heating equipment.",null,null,null,"yes",{"$f":"IF(G303=\"Y\",1)","v":false},null,null,{"$f":"IF(G303=\"N\",1)","v":false}]
["E.1.4.A","Seattle Energy Code ","A. Use efficient warm air furnaces (includes the heating side of combination warm-air furnaces/air-condition units; duct furnaces and unit heaters). Consult Energy Star and AHRI for most efficient units available. "]
["E.1.4.A+",null,"Baseline:","Opt. 1 - Capacities less than 225,000 btu/h: Install natural gas fired heating equipment with an AFUE of 98% and/or oil fired heating equipment with and AFUE of 87% .                                                                                      Opt. 2 - Capacities of 225,000 btu/h or greater: Provide heating equipment with a minimum thermal efficiency of 82%. Note: New rating criteria is being developed for larger gas unitary equipment.  Consult Energy Star and AHRI for most efficient units available.","Baseline Achieved ?:","N",null,null,null,{"$f":"IF(AND(F305=\"Y\",OR(F306=\"N\",F306=\"n/a\")),1)","v":false}]
["E.1.4.A+",null,"Target:","Use electric heat pump equipment, no gas.","Target Achieved ?:","N",null,null,{"$f":"IF(F306=\"Y\",1)","v":false}]
["E.1.4.A+",null,"Comments:","<Please provide explanation if strategy was not achieved or other comments as desired>"]
["E.1.4.B","simp","Increase motor efficiency for fans and pumps",null,null,null,"yes",{"$f":"IF(G308=\"Y\",1)","v":false},null,null,{"$f":"IF(G308=\"N\",1)","v":false}]
["E.1.4.B","Seattle Energy Code ","B. Increase motor efficiency using variable speed drives"]
["E.1.4.B+",null,"Baseline:","Choose appropriate size and use variable speed drives for fans and pumps with a motor horsepower of 5 hp or larger.  Use electronically commutated motor on motors under 1 hp. Baseline is to comply with latest code even where exempt.","Baseline Achieved ?:","N",null,null,null,{"$f":"IF(AND(F310=\"Y\",OR(F311=\"N\",F311=\"n/a\")),1)","v":false}]
["E.1.4.B+",null,"Target:","n/a","Target Achieved ?:","n/a",null,null,{"$f":"IF(F311=\"Y\",1)","v":false}]
["E.1.4.B+",null,"Comments:","<Please provide explanation if strategy was not achieved or other comments as desired>"]
["E.1.4.C","simp","Use Energy Star equipment & appliances ",null,null,null,"yes",{"$f":"IF(G313=\"Y\",1)","v":false},null,null,{"$f":"IF(G313=\"N\",1)","v":false}]
["E.1.4.C",null,"C. Use Energy Star equipment & appliances (includes commercial food service equipment) for eligible equipment."]
["E.1.4.C+",null,"Baseline:","100% of Eligible Appliances; 50% of Eligible Equipment.","Baseline Achieved ?:","N",null,null,null,{"$f":"IF(AND(F315=\"Y\",OR(F316=\"N\",F316=\"n/a\")),1)","v":false}]
["E.1.4.C+",null,"Target:","100% Eligible Appliances; 75% Eligible Equipment.","Target Achieved ?:","N",null,null,{"$f":"IF(F316=\"Y\",1)","v":false}]
["E.1.4.C+",null,"Comments:","<Please provide explanation if strategy was not achieved or other comments as desired>"]
["E.1.4.D","simp","Use efficient cooling equipment",null,null,null,"yes",{"$f":"IF(G318=\"Y\",1)","v":false},null,null,{"$f":"IF(G318=\"N\",1)","v":false}]
["E.1.4.D","CEE","D. Use efficient cooling equipment per the most recent CEE specifications.."]
["E.1.4.D+","CEE Appendix A","Baseline:","Unitary Equipment:  Meet lowest Tier (1 or 2) of CEE Specification for Unitary AC;\nHeat Pumps: meet Tier 1 of CEE Specification;\nVariable Refrigerant Flow systems:  Meet Tier 1 of CEE Specification for VRF Multi-split AC or Heat Pump. For any equipment not listed in CEE specifications, use efficiency requirements of SEC.","Baseline Achieved ?:","N",null,null,null,{"$f":"IF(AND(F320=\"Y\",OR(F321=\"N\",F321=\"n/a\")),1)","v":false}]
["E.1.4.D+",null,"Target:","All equipment:  Meet highest applicable Tier of CEE Specification.","Target Achieved ?:","N",null,null,{"$f":"IF(F321=\"Y\",1)","v":false}]
["E.1.4.D+",null,"Comments:","<Please provide explanation if strategy was not achieved or other comments as desired>"]
["E.1.4.E","simp","Use efficient domestic water heating equipment ",null,null,null,"yes",{"$f":"IF(G323=\"Y\",1)","v":false},null,null,{"$f":"IF(G323=\"N\",1)","v":false}]
["E.1.4.E","Seattle Energy Code ","E. This strategy only applies to units that provide hot potable water.  Units which also provide space heat are categorized as boilers."]
["E.1.4.E+","Energy Star Commercial WH Criteria","Baseline:","Install Energy Star rated equipment for water heaters which are Energy Star eligible. All others meet most restrictive requirements either ASHRAE 90.1-2010 or latest SEC. ","Baseline Achieved ?:","N",null,null,null,{"$f":"IF(AND(F325=\"Y\",OR(F326=\"N\",F326=\"n/a\")),1)","v":false}]
["E.1.4.E+","Energy Star Residential WH Criteria","Target:","Use Heat Pump water heater with EF ≥ 2.0","Target Achieved ?:","N",null,null,{"$f":"IF(F326=\"Y\",1)","v":false}]
["E.1.4.E+",null,"Comments:","<Please provide explanation if strategy was not achieved or other comments as desired>"]
["E.1.4.F","simp","Use efficient boiler equipment",null,null,null,"yes",{"$f":"IF(G328=\"Y\",1)","v":false},null,null,{"$f":"IF(G328=\"N\",1)","v":false}]
["E.1.4.F","Seattle Energy Code ","F. A boiler supplies hot water or steam for space heating or a combination of space heating and domestic hot water."]
["E.1.4.F+",null,"Baseline:","Opt. 1 -  Capacities less than 300,000 Btu/h: Gas fired boilers to have a min. efficiency of 89% AFUE; oil fired boilers to have a minimum efficiency of 87% AFUE\nOpt. 2 -  Capacities of 300,000 Btu/h or higher: Gas fired boilers to have a minimum thermal efficiency (TE or Et) of 89%;  oil fired boilers to have a thermal efficiency of 85%","Baseline Achieved ?:","N",null,null,null,{"$f":"IF(AND(F330=\"Y\",OR(F331=\"N\",F331=\"n/a\")),1)","v":false}]
["E.1.4.F+",null,"Target:","Opt. 1 -  Capacities less than 300,000 Btu/h: Gas and oil fired boilers to have a min. efficiency of 90% AFUE\nOpt. 2 -  Capacities of 300,000 Btu/h or higher: Gas and oil fired boilers to have a minimum thermal efficiency (TE or Et) of 94% and a turndown ratio ≥ 5:1","Target Achieved ?:","N",null,null,{"$f":"IF(F331=\"Y\",1)","v":false}]
["E.1.4.F+",null,"Comments:","<Please provide explanation if strategy was not achieved or other comments as desired>"]
["E.2.1.A","simp","Upgrade envelope elements as work allows (windows, insulation, wall cavities)",null,null,null,"yes",{"$f":"IF(G333=\"Y\",1)","v":false},null,null,{"$f":"IF(G333=\"N\",1)","v":false}]
["E.2.1.A","Seattle Energy Code ","A. Upgrade windows, insulation and wall cavities per Seattle Energy Code as work allows."]
["E.2.1.A+",null,"Baseline:","For additions and alterations comply with Chapter 5 of latest SEC as applicable. \nFor new buildings comply with latest SEC envelope requirements.","Baseline Achieved ?:","N",null,null,null,{"$f":"IF(AND(F335=\"Y\",OR(F336=\"N\",F336=\"n/a\")),1)","v":false}]
["E.2.1.A+",null,"Target:","For new buildings, improve envelope components UA by 10% over new code.","Target Achieved ?:","N",null,null,{"$f":"IF(F336=\"Y\",1)","v":false}]
["E.2.1.A+",null,"Comments:","<Please provide explanation if strategy was not achieved or other comments as desired>"]
["E2.1.B","simp","Provide horizontal exterior shading devices for south windows.",null,null,null,"yes",{"$f":"IF(G338=\"Y\",1)","v":false},null,null,{"$f":"IF(G338=\"N\",1)","v":false}]
["E2.1.B",null,"B. Provide horizontal exterior shading devices for south windows."]
["E2.1.B+",null,"Baseline:","30% of windows shaded","Baseline Achieved ?:","N",null,null,null,{"$f":"IF(AND(F340=\"Y\",OR(F341=\"N\",F341=\"n/a\")),1)","v":false}]
["E2.1.B+",null,"Target:","60% of windows shaded","Target Achieved ?:","N",null,null,{"$f":"IF(F341=\"Y\",1)","v":false}]
["E2.1.B+",null,"Comments:","<Please provide explanation if strategy was not achieved or other comments as desired>"]
["E2.1.C","simp","Select light-colored roofing materials",null,null,null,"yes",{"$f":"IF(G343=\"Y\",1)","v":false},null,null,{"$f":"IF(G343=\"N\",1)","v":false}]
["E2.1.C","Calculator","C. Select light-colored roofing materials: For low slope roofs provide Solar Reflectance Index (SRI) of 78 or higher. For slopes greater than 2:12, select roofing materials with SRI of 29 or higher."]
["E2.1.C+",null,"Baseline:","75% of roof area (excluding equipment area).","Baseline Achieved ?:","N",null,null,null,{"$f":"IF(AND(F345=\"Y\",OR(F346=\"N\",F346=\"n/a\")),1)","v":false}]
["E2.1.C+",null,"Target:","100% of roof area (excluding equipment area).","Target Achieved ?:","N",null,null,{"$f":"IF(F346=\"Y\",1)","v":false}]
["E2.1.C+",null,"Comments:","<Please provide explanation if strategy was not achieved or other comments as desired>"]
["E.2.2.A","simp","Size lighting control zones as small as feasible.",null,null,null,"yes",{"$f":"IF(G348=\"Y\",1)","v":false},null,null,{"$f":"IF(G348=\"N\",1)","v":false}]
["E.2.2.A",null,"A. Size lighting control zones as small as feasible."]
["E.2.2.A+",null,"Baseline:","Regardless of project size or scope","Baseline Achieved ?:","N",null,null,null,{"$f":"IF(AND(F350=\"Y\",OR(F351=\"N\",F351=\"n/a\")),1)","v":false}]
["E.2.2.A+",null,"Target:","n/a","Target Achieved ?:","n/a",null,null,{"$f":"IF(F351=\"Y\",1)","v":false}]
["E.2.2.A+",null,"Comments:","<Please provide explanation if strategy was not achieved or other comments as desired>"]
["E.2.2.B","simp","Reduce lighting energy use through use of automatic lighting controls",null,null,null,"yes",{"$f":"IF(G353=\"Y\",1)","v":false},null,null,{"$f":"IF(G353=\"N\",1)","v":false}]
["E.2.2.B","Seattle Energy Code ","B. Reduce lighting energy use via daylight controls and occupancy sensors in spaces with intermittent use. "]
["E.2.2.B+",null,"Baseline:","Provide occupancy and daylight controls according to latest Energy Code.","Baseline Achieved ?:","N",null,null,null,{"$f":"IF(AND(F355=\"Y\",OR(F356=\"N\",F356=\"n/a\")),1)","v":false}]
["E.2.2.B+",null,"Target:","n/a","Target Achieved ?:","N",null,null,{"$f":"IF(F356=\"Y\",1)","v":false}]
["E.2.2.B+",null,"Comments:","<Please provide explanation if strategy was not achieved or other comments as desired>"]
["E.2.2.C","simp","Reduce lighting power density",null,null,null,"yes",{"$f":"IF(G358=\"Y\",1)","v":false},null,null,{"$f":"IF(G358=\"N\",1)","v":false}]
["E.2.2.C","Seattle Energy Code ","C. Reduce lighting power density  and supplement w/task lighting or daylighting."]
["E.2.2.C+",null,"Baseline:","Reduce lighting power density by 5%","Baseline Achieved ?:","N",null,null,null,{"$f":"IF(AND(F360=\"Y\",OR(F361=\"N\",F361=\"n/a\")),1)","v":false}]
["E.2.2.C+",null,"Target:","Comply with Jan 2018 standards listed in SEC","Target Achieved ?:","N",null,null,{"$f":"IF(F361=\"Y\",1)","v":false}]
["E.2.2.C+",null,"Comments:","<Please provide explanation if strategy was not achieved or other comments as desired>"]
["E.2.2.D","simp","Use efficient lighting fixtures",null,null,null,"yes",{"$f":"IF(G363=\"Y\",1)","v":false},null,null,{"$f":"IF(G363=\"N\",1)","v":false}]
["E.2.2.D",null,"D. Use efficient electric lighting."]
["E.2.2.D+",null,"Baseline:","Use lamps with high efficacy (Lumen/Watt) such as T8 or T5, or LED.  Use Energy Star CFL's and LEDs","Baseline Achieved ?:","N",null,null,null,{"$f":"IF(AND(F365=\"Y\",OR(F366=\"N\",F366=\"n/a\")),1)","v":false}]
["E.2.2.D+",null,"Target:","n/a","Target Achieved ?:","n/a",null,null,{"$f":"IF(F366=\"Y\",1)","v":false}]
["E.2.2.D+",null,"Comments:","<Please provide explanation if strategy was not achieved or other comments as desired>"]
["C.1.1.A","simp","Use low emission boilers and furnaces ",null,null,null,"yes",{"$f":"IF(G368=\"Y\",1)","v":false},null,null,{"$f":"IF(G368=\"N\",1)","v":false}]
["C.1.1.A","SCAQMD - 1146","A. Use low nitrogen oxides boilers and low carbon monoxide furnaces. Comply with current standard of South Coast Air Quality Management District Rule 1146 "]
["C.1.1.A+",null,"Baseline:","All capacities gaseous fuels: Emissions of Knox do not exceed 30 ppm\nAll capacities, non-gaseous fuels: Emissions of Knox do not exceed 40 ppm","Baseline Achieved ?:","N",null,null,null,{"$f":"IF(AND(F370=\"Y\",OR(F371=\"N\",F371=\"n/a\")),1)","v":false}]
["C.1.1.A+",null,"Target:","≤ 2 million Btu/h: NOx limit - 20 ppm\n> 2 million Btu/h: NOx limit -  9 ppm  ","Target Achieved ?:","N",null,null,{"$f":"IF(F371=\"Y\",1)","v":false}]
["C.1.1.A+",null,"Comments:","<Please provide explanation if strategy was not achieved or other comments as desired>"]
["C.1.2.A","simp","Phase out CFCs in existing buildings and replace with new equipment or refrigerants",null,null,null,"yes",{"$f":"IF(G373=\"Y\",1)","v":false},null,null,{"$f":"IF(G373=\"N\",1)","v":false}]
["C.1.2.A",null,"A. Replace CFCs in existing equipment with new refrigerants regardless of code or scope of work requirement."]
["C.1.2.A+",null,"Baseline:","Ozone Depletion Potential (ODP) ≤ 0.02 and Global Warming Potential (GWP) ≤ 1900 (R-407C, R-410A, R134A)","Baseline Achieved ?:","N",null,null,null,{"$f":"IF(AND(F375=\"Y\",OR(F376=\"N\",F376=\"n/a\")),1)","v":false}]
["C.1.2.A+",null,"Target:","Ozone Depletion Potential (ODP) = 0.02 and Global Warming Potential (GWP) < 150 (R-123, CO2, NH3, Propane)","Target Achieved ?:","N",null,null,{"$f":"IF(F376=\"Y\",1)","v":false}]
["C.1.2.A+",null,"Comments:","<Please provide explanation if strategy was not achieved or other comments as desired>"]
["C.1.2.B","simp","Provide leak detection and remote alarm where refrigerants are used",null,null,null,"yes",{"$f":"IF(G378=\"Y\",1)","v":false},null,null,{"$f":"IF(G378=\"N\",1)","v":false}]
["C.1.2.B","Seattle Mechanical Code ","B. Excludes appliances with less than 0.5 pounds of refrigerant. Seattle Mechanical Codes  limits the amount of refrigerant equipment can contain without being located either outside or in an enclosed machine room.  Machinery rooms are required to have refrigerant leak detection and alarms.  The primary intent of the code is to protect occupants from refrigerant leaks.  "]
["C.1.2.B+",null,"Baseline:","Regardless of project size","Baseline Achieved ?:","N",null,null,null,{"$f":"IF(AND(F380=\"Y\",OR(F381=\"N\",F381=\"n/a\")),1)","v":false}]
["C.1.2.B+",null,"Target:","n/a","Target Achieved ?:","n/a",null,null,{"$f":"IF(F381=\"Y\",1)","v":false}]
["C.1.2.B+",null,"Comments:","<Please provide explanation if strategy was not achieved or other comments as desired>"]
["C.1.2.C","simp","Select equipment with refrigerants that have low ozone depleting potential & low global warming potential",null,null,null,"yes",{"$f":"IF(G383=\"Y\",1)","v":false},null,null,{"$f":"IF(G383=\"N\",1)","v":false}]
["C.1.2.C",null,"C. Select new HVAC and refrigeration and fire suppression equipment with refrigerants that have low ozone depleting potential (ODP) & low global warming potential (GWP)."]
["C.1.2.C+",null,"Baseline:","Ozone Depletion Potential (ODP) = 0.02 and Global Warming Potential (GWP) < 150 (R-123, CO2, NH3, Propane)","Baseline Achieved ?:","N",null,null,null,{"$f":"IF(AND(F385=\"Y\",OR(F386=\"N\",F386=\"n/a\")),1)","v":false}]
["C.1.2.C+",null,"Target:","No refrigerants","Target Achieved ?:","N",null,null,{"$f":"IF(F386=\"Y\",1)","v":false}]
["C.1.2.C+",null,"Comments:","<Please provide explanation if strategy was not achieved or other comments as desired>"]
["C.2.1.A","simp","Provide on-site renewable energy",null,null,null,"yes",{"$f":"IF(G388=\"Y\",1)","v":false},null,null,{"$f":"IF(G388=\"N\",1)","v":false}]
["C.2.1.A","Seattle Energy Code ","A. Use on-site renewable energy, including photovoltaics, solar thermal, and wind."]
["C.2.1.A+",null,"Baseline:","Provide minimum watts per s.f. of conditioned space as indicated in code","Baseline Achieved ?:","N",null,null,null,{"$f":"IF(AND(F390=\"Y\",OR(F391=\"N\",F391=\"n/a\")),1)","v":false}]
["C.2.1.A+",null,"Target:","25% capacity increase over code requirement","Target Achieved ?:","N",null,null,{"$f":"IF(F391=\"Y\",1)","v":false}]
["C.2.1.A+",null,"Comments:","<Please provide explanation if strategy was not achieved or other comments as desired>"]
["C.3.1.A","simp","Limit parking capacity to code minimum",null,null,null,"yes",{"$f":"IF(G393=\"Y\",1)","v":false},null,null,{"$f":"IF(G393=\"N\",1)","v":false}]
["C.3.1.A",null,"A. Limit parking capacity to code. Where there is a minimum and maximum requirement, provide no more than the minimum. "]
["C.3.1.A+",null,"Baseline:","√","Baseline Achieved ?:","N",null,null,null,{"$f":"IF(AND(F395=\"Y\",OR(F396=\"N\",F396=\"n/a\")),1)","v":false}]
["C.3.1.A+",null,"Target:","n/a","Target Achieved ?:","n/a",null,null,{"$f":"IF(F396=\"Y\",1)","v":false}]
["C.3.1.A+",null,"Comments:","<Please provide explanation if strategy was not achieved or other comments as desired>"]
["C.3.1.B","simp","Provide secure bike parking and shower/changing rooms",null,null,null,"yes",{"$f":"IF(G398=\"Y\",1)","v":false},null,null,{"$f":"IF(G398=\"N\",1)","v":false}]
["C.3.1.B",null,"B. Provide secure bike parking for peak occupancy (FTEs + maximum visitors) and shower/changing rooms for FTEs. "]
["C.3.1.B+",null,"Baseline:"," bike parking for 5% of peak and showers for 0.5% of FTEs","Baseline Achieved ?:","N",null,null,null,{"$f":"IF(AND(F400=\"Y\",OR(F401=\"N\",F401=\"n/a\")),1)","v":false}]
["C.3.1.B+",null,"Target:","bike parking for 10% of peak and showers for 1% of FTEs","Target Achieved ?:","N",null,null,{"$f":"IF(F401=\"Y\",1)","v":false}]
["C.3.1.B+",null,"Comments:","<Please provide explanation if strategy was not achieved or other comments as desired>"]
["C.3.1.C","simp","Provide preferred carpool/vanpool parking",null,null,null,"yes",{"$f":"IF(G403=\"Y\",1)","v":false},null,null,{"$f":"IF(G403=\"N\",1)","v":false}]
["C.3.1.C",null,"C. Provide preferred carpool/vanpool parking spaces based on total parking spaces."]
["C.3.1.C+",null,"Baseline:","5% of total parking spaces","Baseline Achieved ?:","N",null,null,null,{"$f":"IF(AND(F405=\"Y\",OR(F406=\"N\",F406=\"n/a\")),1)","v":false}]
["C.3.1.C+",null,"Target:","10% of total parking spaces","Target Achieved ?:","N",null,null,{"$f":"IF(F406=\"Y\",1)","v":false}]
["C.3.1.C+",null,"Comments:","<Please provide explanation if strategy was not achieved or other comments as desired>"]
["C.3.2.A","simp","Provide preferred parking for low emitting/fuel efficient vehicles ",null,null,null,"yes",{"$f":"IF(G408=\"Y\",1)","v":false},null,null,{"$f":"IF(G408=\"N\",1)","v":false}]
["C.3.2.A","ACEEE","A. Locate preferred parking for low emitting/fuel efficient vehicles closest to the entrance exclusive of ADA. Eligible vehicles are classified as Zero Emission Vehicles by the California Air Resources Board or have achieved a minimum score of 45 on the American Council for an Energy Efficient Economy (ACEEE) annual vehicle rating guide."]
["C.3.2.A+",null,"Baseline:","5% of total parking spaces","Baseline Achieved ?:","N",null,null,null,{"$f":"IF(AND(F410=\"Y\",OR(F411=\"N\",F411=\"n/a\")),1)","v":false}]
["C.3.2.A+",null,"Target:","10% of total parking spaces","Target Achieved ?:","N",null,null,{"$f":"IF(F411=\"Y\",1)","v":false}]
["C.3.2.A+",null,"Comments:","<Please provide explanation if strategy was not achieved or other comments as desired>"]
["C.3.2.B","simp","Provide Level 2 electric vehicle charging stations (240v).",null,null,null,"yes",{"$f":"IF(G413=\"Y\",1)","v":false},null,null,{"$f":"IF(G413=\"N\",1)","v":false}]
["C.3.2.B",null,"B. Provide Level 2 electric vehicle charging stations (240v)."]
["C.3.2.B+",null,"Baseline:","1 per 100 spaces","Baseline Achieved ?:","N",null,null,null,{"$f":"IF(AND(F415=\"Y\",OR(F416=\"N\",F416=\"n/a\")),1)","v":false}]
["C.3.2.B+",null,"Target:","2 per 100 spaces","Target Achieved ?:","N",null,null,{"$f":"IF(F416=\"Y\",1)","v":false}]
["C.3.2.B+",null,"Comments:","<Please provide explanation if strategy was not achieved or other comments as desired>"]
["M.1.1.A","simp","Use materials manufactured within 500 miles of site.",null,null,null,"yes",{"$f":"IF(G418=\"Y\",1)","v":false},null,null,{"$f":"IF(G418=\"N\",1)","v":false}]
["M.1.1.A","calculator","A. Source materials manufactured within 500 miles of the project site."]
["M.1.1.A+",null,"Baseline:","20% cost of materials","Baseline Achieved ?:","N",null,null,null,{"$f":"IF(AND(F420=\"Y\",OR(F421=\"N\",F421=\"n/a\")),1)","v":false}]
["M.1.1.A+",null,"Target:","40% cost of materials","Target Achieved ?:","N",null,null,{"$f":"IF(F421=\"Y\",1)","v":false}]
["M.1.1.A+",null,"Comments:","<Please provide explanation if strategy was not achieved or other comments as desired>"]
["M.1.1.B","simp","Use materials harvested or extracted within 500 miles of site.",null,null,null,"yes",{"$f":"IF(G423=\"Y\",1)","v":false},null,null,{"$f":"IF(G423=\"N\",1)","v":false}]
["M.1.1.B","calculator","B. Source materials harvested or extracted within 500 miles of the project site."]
["M.1.1.B+",null,"Baseline:","5% cost of materials","Baseline Achieved ?:","N",null,null,null,{"$f":"IF(AND(F425=\"Y\",OR(F426=\"N\",F426=\"n/a\")),1)","v":false}]
["M.1.1.B+",null,"Target:","10% cost of materials","Target Achieved ?:","N",null,null,{"$f":"IF(F426=\"Y\",1)","v":false}]
["M.1.1.B+",null,"Comments:","<Please provide explanation if strategy was not achieved or other comments as desired>"]
["M.1.2.A","simp","Use wood from Forest Stewardship Council (FSC) sources",null,null,null,"yes",{"$f":"IF(G428=\"Y\",1)","v":false},null,null,{"$f":"IF(G428=\"N\",1)","v":false}]
["M.1.2.A","calculator","A.  Use wood from Forestry Stewardship Council (FSC) sources"]
["M.1.2.A+","FSC  ","Baseline:","20% cost of wood products","Baseline Achieved ?:","N",null,null,null,{"$f":"IF(AND(F430=\"Y\",OR(F431=\"N\",F431=\"n/a\")),1)","v":false}]
["M.1.2.A+",null,"Target:","50% cost of wood products","Target Achieved ?:","N",null,null,{"$f":"IF(F431=\"Y\",1)","v":false}]
["M.1.2.A+",null,"Comments:","<Please provide explanation if strategy was not achieved or other comments as desired>"]
["M.1.2.B","simp","Use bio-based products that meet the Sustainable Agriculture Network standard.",null,null,null,"yes",{"$f":"IF(G433=\"Y\",1)","v":false},null,null,{"$f":"IF(G433=\"N\",1)","v":false}]
["M.1.2.B","calculator","B. Materials include cork, linoleum, wheatgrass, bamboo, cellulose insulation, etc."]
["M.1.2.B+","Sustainable Agriculture Network","Baseline:","1% cost of materials","Baseline Achieved ?:","N",null,null,null,{"$f":"IF(AND(F435=\"Y\",OR(F436=\"N\",F436=\"n/a\")),1)","v":false}]
["M.1.2.B+",null,"Target:","2.5% cost of materials","Target Achieved ?:","N",null,null,{"$f":"IF(F436=\"Y\",1)","v":false}]
["M.1.2.B+",null,"Comments:","<Please provide explanation if strategy was not achieved or other comments as desired>"]
["M.2.1.A","simp","Implement a construction waste management plan to divert recyclable waste from the landfill",null,null,null,"yes",{"$f":"IF(G438=\"Y\",1)","v":false},null,null,{"$f":"IF(G438=\"N\",1)","v":false}]
["M.2.1.A","Waste Diversion Plan and Assessment permit form","A. Implement Construction Waste Management Plan. See SPU page regarding mandatory reporting requirements.  The SDCI Permit Form directory has a form for the required Plan. Materials must be taken to a Seattle certified facility. (List on SPU page)."]
["M.2.1.A+","SPU C&D Waste","Baseline:","75% waste diverted","Baseline Achieved ?:","N",null,null,null,{"$f":"IF(AND(F440=\"Y\",OR(F441=\"N\",F441=\"n/a\")),1)","v":false}]
["M.2.1.A+","King County C&D Recycling ","Target:","85% waste diverted","Target Achieved ?:","N",null,null,{"$f":"IF(F441=\"Y\",1)","v":false}]
["M.2.1.A+",null,"Comments:","<Please provide explanation if strategy was not achieved or other comments as desired>"]
["M.2.2.A","simp","Provide convenient and appropriately sized recycling and composting collection and storage",null,null,null,"yes",{"$f":"IF(G443=\"Y\",1)","v":false},null,null,{"$f":"IF(G443=\"N\",1)","v":false}]
["M.2.2.A",null,"A. Provide conveniently located and appropriately sized recycle collection & storage for paper, metal, cardboard, plastic and glass, and compost."]
["M.2.2.A+",null,"Baseline:","√","Baseline Achieved ?:","N",null,null,null,{"$f":"IF(AND(F445=\"Y\",OR(F446=\"N\",F446=\"n/a\")),1)","v":false}]
["M.2.2.A+",null,"Target:","Add collection for batteries, fluorescent lamps and e-waste.","Target Achieved ?:","N",null,null,{"$f":"IF(F446=\"Y\",1)","v":false}]
["M.2.2.A+",null,"Comments:","<Please provide explanation if strategy was not achieved or other comments as desired>"]
["M.3.1.A","simp","Retain non-structural interior elements of existing building ",null,null,null,"yes",{"$f":"IF(G448=\"Y\",1)","v":false},null,null,{"$f":"IF(G448=\"N\",1)","v":false}]
["M.3.1.A","calculator","A. Retain non-structural interior elements of existing building . Including finished flooring, finished ceiling, walls, casework and doors."]
["M.3.1.A+",null,"Baseline:","40% of surface area","Baseline Achieved ?:","N",null,null,null,{"$f":"IF(AND(F450=\"Y\",OR(F451=\"N\",F451=\"n/a\")),1)","v":false}]
["M.3.1.A+",null,"Target:","60% of surface area","Target Achieved ?:","N",null,null,{"$f":"IF(F451=\"Y\",1)","v":false}]
["M.3.1.A+",null,"Comments:","<Please provide explanation if strategy was not achieved or other comments as desired>"]
["M.3.1.B","simp","Retain structural components of existing building",null,null,null,"yes",{"$f":"IF(G453=\"Y\",1)","v":false},null,null,{"$f":"IF(G453=\"N\",1)","v":false}]
["M.3.1.B","calculator","B. Retain structural components of existing building, including roof, wall and floors but excluding windows."]
["M.3.1.B+",null,"Baseline:","50% of existing walls, floors and roof by surface area","Baseline Achieved ?:","N",null,null,null,{"$f":"IF(AND(F455=\"Y\",OR(F456=\"N\",F456=\"n/a\")),1)","v":false}]
["M.3.1.B+",null,"Target:","75% of existing walls, floors and roof by surface area","Target Achieved ?:","N",null,null,{"$f":"IF(F456=\"Y\",1)","v":false}]
["M.3.1.B+",null,"Comments:","<Please provide explanation if strategy was not achieved or other comments as desired>"]
["M.3.2.A","simp","Use demountable floor-to-ceiling partitions and non-demising walls",null,null,null,"yes",{"$f":"IF(G458=\"Y\",1)","v":false},null,null,{"$f":"IF(G458=\"N\",1)","v":false}]
["M.3.2.A",null,"A. Use demountable floor-to-ceiling partitions for interior non structural and non-demising walls in lieu of standard wall construction (gwb)."]
["M.3.2.A+",null,"Baseline:","30% of interior non-structural walls","Baseline Achieved ?:","N",null,null,null,{"$f":"IF(AND(F460=\"Y\",OR(F461=\"N\",F461=\"n/a\")),1)","v":false}]
["M.3.2.A+",null,"Target:","60% of interior non-structural walls","Target Achieved ?:","N",null,null,{"$f":"IF(F461=\"Y\",1)","v":false}]
["M.3.2.A+",null,"Comments:","<Please provide explanation if strategy was not achieved or other comments as desired>"]
["M.3.2.B","simp","Select building assemblies based on life-cycle cost analysis",null,null,null,"yes",{"$f":"IF(G463=\"Y\",1)","v":false},null,null,{"$f":"IF(G463=\"N\",1)","v":false}]
["M.3.2.B","LCCA Technical Resources at King County Green Tools","B. Select building assemblies based on life-cycle cost analysis and 15 year payback periods."]
["M.3.2.B+",null,"Baseline:","Use life cycle cost analysis to select major building components","Baseline Achieved ?:","N",null,null,null,{"$f":"IF(AND(F465=\"Y\",OR(F466=\"N\",F466=\"n/a\")),1)","v":false}]
["M.3.2.B+",null,"Target:","Use life cycle cost analysis to select foundation & floor, structural systems & walls, roof, envelope","Target Achieved ?:","N",null,null,{"$f":"IF(F466=\"Y\",1)","v":false}]
["M.3.2.B+",null,"Comments:","<Please provide explanation if strategy was not achieved or other comments as desired>"]
["M.3.2.C","simp","Select building assemblies based on life-cycle assessment",null,null,null,"yes",{"$f":"IF(G468=\"Y\",1)","v":false},null,null,{"$f":"IF(G468=\"N\",1)","v":false}]
["M.3.2.C","ASMI-Impact Estimator ","C. Use software to perform life cycle assessment.  Athena Sustainable Materials Institute (ASMI) and Solidworks CAD Sustainability Xpress add-on can help analyze buildings and assemblies.  US National Institute for Standards and Technology (NIST) Building for Environmental and Economic Sustainability (BEEs) offers analysis at the product level. "]
["M.3.2.C+","BEES","Baseline:","Use life cycle assessment software to select major building components","Baseline Achieved ?:","N",null,null,null,{"$f":"IF(AND(F470=\"Y\",OR(F471=\"N\",F471=\"n/a\")),1)","v":false}]
["M.3.2.C+",null,"Target:","Use life cycle assessment software to select foundation and floor, structural systems and walls, roof, envelope","Target Achieved ?:","N",null,null,{"$f":"IF(F471=\"Y\",1)","v":false}]
["M.3.2.C+",null,"Comments:","<Please provide explanation if strategy was not achieved or other comments as desired>"]
["M.3.2.D","simp","Use building materials that contain recycled content.",null,null,null,"yes",{"$f":"IF(G473=\"Y\",1)","v":false},null,null,{"$f":"IF(G473=\"N\",1)","v":false}]
["M.3.2.D","calculator","D. Calculation is based on total cost of building materials only, excluding labor and MEP. Post consumer content, already used by consumers and discarded, to be valued at 100% of proportionate cost. Pre-consumer content, waste from manufacturing reintroduced into the process, to be valued at 50% of proportionate cost."]
["M.3.2.D+",null,"Baseline:","5% total cost of bldg materials","Baseline Achieved ?:","N",null,null,null,{"$f":"IF(AND(F475=\"Y\",OR(F476=\"N\",F476=\"n/a\")),1)","v":false}]
["M.3.2.D+",null,"Target:","20% total cost of bldg materials","Target Achieved ?:","N",null,null,{"$f":"IF(F476=\"Y\",1)","v":false}]
["M.3.2.D+",null,"Comments:","<Please provide explanation if strategy was not achieved or other comments as desired>"]
["M.3.2.E","simp"," Re-use furniture and furnishings",null,null,null,"yes",{"$f":"IF(G478=\"Y\",1)","v":false},null,null,{"$f":"IF(G478=\"N\",1)","v":false}]
["M.3.2.E",null,"E. Use current replacement value to establish cost of re-used items."]
["M.3.2.E+",null,"Baseline:","30% of furniture and furnishings budget","Baseline Achieved ?:","N",null,null,null,{"$f":"IF(AND(F480=\"Y\",OR(F481=\"N\",F481=\"n/a\")),1)","v":false}]
["M.3.2.E+",null,"Target:","60% of furniture and furnishings budget","Target Achieved ?:","N",null,null,{"$f":"IF(F481=\"Y\",1)","v":false}]
["M.3.2.E+",null,"Comments:","<Please provide explanation if strategy was not achieved or other comments as desired>"]
["M.3.2.F","simp","Select well built furnishings for durability.",null,null,null,"yes",{"$f":"IF(G483=\"Y\",1)","v":false},null,null,{"$f":"IF(G483=\"N\",1)","v":false}]
["M.3.2.F",null,"F. Select well built furnishings for durability."]
["M.3.2.F+",null,"Baseline:","10 years","Baseline Achieved ?:","N",null,null,null,{"$f":"IF(AND(F485=\"Y\",OR(F486=\"N\",F486=\"n/a\")),1)","v":false}]
["M.3.2.F+",null,"Target:","20 years","Target Achieved ?:","N",null,null,{"$f":"IF(F486=\"Y\",1)","v":false}]
["M.3.2.F+",null,"Comments:","<Please provide explanation if strategy was not achieved or other comments as desired>"]
["IE.1.1.A","simp","Use low-emitting interior adhesives and sealants",null,null,null,"yes",{"$f":"IF(G488=\"Y\",1)","v":false},null,null,{"$f":"IF(G488=\"N\",1)","v":false}]
["IE.1.1.A","SCAQMD - 1168","A. Use low-emitting interior adhesives & sealants, i.e., inside the weather barrier."]
["IE.1.1.A+",null,"Baseline:","Meet South Coast Air Quality Management District Rule #1168, dated 1/7/2005","Baseline Achieved ?:","N",null,null,null,{"$f":"IF(AND(F490=\"Y\",OR(F491=\"N\",F491=\"n/a\")),1)","v":false}]
["IE.1.1.A+",null,"Target:","na","Target Achieved ?:","N",null,null,{"$f":"IF(F491=\"Y\",1)","v":false}]
["IE.1.1.A+",null,"Comments:","<Please provide explanation if strategy was not achieved or other comments as desired>"]
["IE.1.1.B","simp","Use low-emitting interior paints and coatings",null,null,null,"yes",{"$f":"IF(G493=\"Y\",1)","v":false},null,null,{"$f":"IF(G493=\"N\",1)","v":false}]
["IE.1.1.B","SCAQMD - 1113","B. Use low-emitting interior paints & coatings, i.e., inside the weather barrier."]
["IE.1.1.B+","Green Seal 11","Baseline:","Meet 2010 Green Seal GS-11 Third Edition or South Coast Air Quality Management District Rule 1113, dated 2/5/16","Baseline Achieved ?:","N",null,null,null,{"$f":"IF(AND(F495=\"Y\",OR(F496=\"N\",F496=\"n/a\")),1)","v":false}]
["IE.1.1.B+","UL GreenGuard Gold","Target:","Use products that are emissions tested and compliant with the California Department of Public Health (CDPH) Standard Method V1.1-2010. Examples of testing certifications that are compliant include:\nUL Greenguard Gold; \nSCS Indoor Advantage Gold;\nClearChem Declared (Berkeley Analytical);\nIntertek ETL Environmental VOC+;\nMaterials Analytical Services (MAS) Certified Green","Target Achieved ?:","N",null,null,{"$f":"IF(F496=\"Y\",1)","v":false}]
["IE.1.1.B+",null,"Comments:","<Please provide explanation if strategy was not achieved or other comments as desired>"]
["IE.1.1.C","simp","Use low-emitting  systems furniture and seating",null,null,null,"yes",{"$f":"IF(G498=\"Y\",1)","v":false},null,null,{"$f":"IF(G498=\"N\",1)","v":false}]
["IE.1.1.C","Healthier Products & Building Materials ","C. Use low-emitting  systems furniture & seating certified by large chamber emissions protocols for all new purchases."]
["IE.1.1.C+","Scientific Certification Systems Indoor Advantage Gold ","Baseline:","Green Guard or Indoor Advantage Gold  Certified","Baseline Achieved ?:","N",null,null,null,{"$f":"IF(AND(F500=\"Y\",OR(F501=\"N\",F501=\"n/a\")),1)","v":false}]
["IE.1.1.C+",null,"Target:","n/a","Target Achieved ?:","n/a",null,null,{"$f":"IF(F501=\"Y\",1)","v":false}]
["IE.1.1.C+",null,"Comments:","<Please provide explanation if strategy was not achieved or other comments as desired>"]
["IE.1.1.D","simp","Use wood and agrifiber products that contain no added urea formaldehyde",null,null,null,"yes",{"$f":"IF(G503=\"Y\",1)","v":false},null,null,{"$f":"IF(G503=\"N\",1)","v":false}]
["IE.1.1.D",null,"D. Use wood and agrifiber products that contain no added urea formaldehyde such as plywood, MDF, OSB."]
["IE.1.1.D+","CARB Composite Wood","Baseline:","CARB compliant for Ultra Low Emitting Formaldehyde","Baseline Achieved ?:","N",null,null,null,{"$f":"IF(AND(F505=\"Y\",OR(F506=\"N\",F506=\"n/a\")),1)","v":false}]
["IE.1.1.D+",null,"Target:","Labeled as containing No Added Urea Formaldehyde.","Target Achieved ?:","n/a",null,null,{"$f":"IF(F506=\"Y\",1)","v":false}]
["IE.1.1.D+",null,"Comments:","<Please provide explanation if strategy was not achieved or other comments as desired>"]
["IE.1.1.E","simp","Use low-emitting flooring systems",null,null,null,"yes",{"$f":"IF(G508=\"Y\",1)","v":false},null,null,{"$f":"IF(G508=\"N\",1)","v":false}]
["IE.1.1.E","CRI","E. Use low-emitting carpet, cushion and hardsurface flooring. Flooring adhesives to meet low emitting adhesives requirements. "]
["IE.1.1.E+","NSF/ANSI 140 ","Baseline:","Carpet, Pad and Adhesive: Carpet and Rug Institute's (CRI) Green Label Plus;                                                                                                 Hard surface Flooring:  Floorscore Certified (except for solid wood and mineral based flooring)","Baseline Achieved ?:","N",null,null,null,{"$f":"IF(AND(F510=\"Y\",OR(F511=\"N\",F511=\"n/a\")),1)","v":false}]
["IE.1.1.E+",null,"Target:","Carpet: NSF/ANSI 140 Gold","Target Achieved ?:","N",null,null,{"$f":"IF(F511=\"Y\",1)","v":false}]
["IE.1.1.E+",null,"Comments:","<Please provide explanation if strategy was not achieved or other comments as desired>"]
["IE.1.1.F","simp","Locate outdoor air intakes away from outdoor pollution sources",null,null,null,"yes",{"$f":"IF(G513=\"Y\",1)","v":false},null,null,{"$f":"IF(G513=\"N\",1)","v":false}]
["IE.1.1.F","Seattle Mechanical Code ","F. Seattle Mechanical Codes requires a minimum of 10 ft. horizontal separation between air intakes and any hazardous or noxious contaminant source. Contaminant sources are considered to be vents, streets, alleys, parking areas, and loading docks. (Exhaust from residential bathroom, kitchen and laundries are not considered hazardous and therefore smaller separations are required). This strategy increases the separation distance."]
["IE.1.1.F+",null,"Baseline:","10' from plumbing vents; 40' from parking areas and loading docks; no smoking within 25' of openings","Baseline Achieved ?:","N",null,null,null,{"$f":"IF(AND(F515=\"Y\",OR(F516=\"N\",F516=\"n/a\")),1)","v":false}]
["IE.1.1.F+",null,"Target:","Increase distance to 60' from parking areas and loading docks.  Do not allow smoking anywhere on the site.","Target Achieved ?:","N",null,null,{"$f":"IF(F516=\"Y\",1)","v":false}]
["IE.1.1.F+",null,"Comments:","<Please provide explanation if strategy was not achieved or other comments as desired>"]
["IE.1.1.G","simp","Use envelope consultant to incorporate design measures to minimize water intrusion.",null,null,null,"yes",{"$f":"IF(G518=\"Y\",1)","v":false},null,null,{"$f":"IF(G518=\"N\",1)","v":false}]
["IE.1.1.G",null,"G. Use envelope consultant to incorporate design measures to minimize water intrusion."]
["IE.1.1.G+",null,"Baseline:","Member of design team","Baseline Achieved ?:","N",null,null,null,{"$f":"IF(AND(F520=\"Y\",OR(F521=\"N\",F521=\"n/a\")),1)","v":false}]
["IE.1.1.G+",null,"Target:","3rd party consultant","Target Achieved ?:","N",null,null,{"$f":"IF(F521=\"Y\",1)","v":false}]
["IE.1.1.G+",null,"Comments:","<Please provide explanation if strategy was not achieved or other comments as desired>"]
["IE.1.2.A","simp","Provide thermal comfort controls to occupants",null,null,null,"yes",{"$f":"IF(G523=\"Y\",1)","v":false},null,null,{"$f":"IF(G523=\"N\",1)","v":false}]
["IE.1.2.A",null,"A.  Provide thermal comfort controls to occupants."]
["IE.1.2.A+",null,"Baseline:","1 control zone per orientation and for each multi-occupant space and provide adjustable window coverings","Baseline Achieved ?:","N",null,null,null,{"$f":"IF(AND(F525=\"Y\",OR(F526=\"N\",F526=\"n/a\")),1)","v":false}]
["IE.1.2.A+",null,"Target:","In addition, provide operable windows","Target Achieved ?:","N",null,null,{"$f":"IF(F526=\"Y\",1)","v":false}]
["IE.1.2.A+",null,"Comments:","<Please provide explanation if strategy was not achieved or other comments as desired>"]
["IE.1.2.B","simp","Implement thermal comfort survey",null,null,null,"yes",{"$f":"IF(G528=\"Y\",1)","v":false},null,null,{"$f":"IF(G528=\"N\",1)","v":false}]
["IE.1.2.B",null,"B. If project includes HVAC modifications, conduct thermal comfort survey. Survey to be based on 7pt scale format of  agree strongly, agree, agree somewhat, neutral, disagree somewhat, disagree, disagree strongly."]
["IE.1.2.B+",null,"Baseline:","Conduct survey. Implement corrective action plan if more than 20% of respondents provide negative feedback","Baseline Achieved ?:","N",null,null,null,{"$f":"IF(AND(F530=\"Y\",OR(F531=\"N\",F531=\"n/a\")),1)","v":false}]
["IE.1.2.B+",null,"Target:","Conduct comfort survey annually","Target Achieved ?:","N",null,null,{"$f":"IF(F531=\"Y\",1)","v":false}]
["IE.1.2.B+",null,"Comments:","<Please provide explanation if strategy was not achieved or other comments as desired>"]
["IE.1.3.A","simp","Provide appropriate daylight levels.",null,null,null,"yes",{"$f":"IF(G533=\"Y\",1)","v":false},null,null,{"$f":"IF(G533=\"N\",1)","v":false}]
["IE.1.3.A","Seattle Energy Code ","A.  Provide appropriate daylight levels."]
["IE.1.3.A+",null,"Baseline:","Baseline: For all interior opaque surfaces in the daylight zones provide a visible light reflectance value (LRV) of 80% for ceilings, 65% for walls over 56” in height. (LRV is readily available information from paint and ceiling tile manufacturers)","Baseline Achieved ?:","N",null,null,null,{"$f":"IF(AND(F535=\"Y\",OR(F536=\"N\",F536=\"n/a\")),1)","v":false}]
["IE.1.3.A+",null,"Target:","Target:  In addition to baseline requirements, meet an Effective Aperature criteria of at least 0.15 (Effective Aperature is the window to wall ratio multiplied by visible light transmittance)","Target Achieved ?:","N",null,null,{"$f":"IF(F536=\"Y\",1)","v":false}]
["IE.1.3.A+",null,"Comments:","<Please provide explanation if strategy was not achieved or other comments as desired>"]
["IE.1.3.B","simp","Install automatic daylight controls",null,null,null,"yes",{"$f":"IF(G538=\"Y\",1)","v":false},null,null,{"$f":"IF(G538=\"N\",1)","v":false}]
["IE.1.3.B","Seattle Energy Code ","B. Similarly to E2.2.B- Install automatic daylight controls within 15' of all perimeter glazing, regardless of code compliance threshold."]
["IE.1.3.B+",null,"Baseline:","Multi-Step Dimming","Baseline Achieved ?:","N",null,null,null,{"$f":"IF(AND(F540=\"Y\",OR(F541=\"N\",F541=\"n/a\")),1)","v":false}]
["IE.1.3.B+",null,"Target:","Continuous Dimming","Target Achieved ?:","N",null,null,{"$f":"IF(F541=\"Y\",1)","v":false}]
["IE.1.3.B+",null,"Comments:","<Please provide explanation if strategy was not achieved or other comments as desired>"]
["IE.1.3.C","simp","Maximize occupied floor area w/ access to daylight. ",null,null,null,"yes",{"$f":"IF(G543=\"Y\",1)","v":false},null,null,{"$f":"IF(G543=\"N\",1)","v":false}]
["IE.1.3.C",null,"C. Build full height walls at interior of floor and not at the perimeter so as to not obscure line of sight to windows. Minimum of 10 footcandles and maximum of 500 footcandles."]
["IE.1.3.C+",null,"Baseline:","50% of regularly occupied spaces are located within daylight zones and <=30% full height walls at perimeter","Baseline Achieved ?:","N",null,null,null,{"$f":"IF(AND(F545=\"Y\",OR(F546=\"N\",F546=\"n/a\")),1)","v":false}]
["IE.1.3.C+",null,"Target:","75% or more of regularly occupied spaces are located within daylight zones and 0 full height walls at perimeter","Target Achieved ?:","N",null,null,{"$f":"IF(F546=\"Y\",1)","v":false}]
["IE.1.3.C+",null,"Comments:","<Please provide explanation if strategy was not achieved or other comments as desired>"]
["IE.1.3.D","simp","Provide efficient task lighting at individual workstations in open office areas with limited lighting controls",null,null,null,"yes",{"$f":"IF(G548=\"Y\",1)","v":false},null,null,{"$f":"IF(G548=\"N\",1)","v":false}]
["IE.1.3.D",null,"D. Provide efficient LED task lighting fixtures.  Permanently mounted occupant sensing fixtures preferred, but not required."]
["IE.1.3.D+",null,"Baseline:","75% of workstations","Baseline Achieved ?:","N",null,null,null,{"$f":"IF(AND(F550=\"Y\",OR(F551=\"N\",F551=\"n/a\")),1)","v":false}]
["IE.1.3.D+",null,"Target:","90% of work stations","Target Achieved ?:","N",null,null,{"$f":"IF(F551=\"Y\",1)","v":false}]
["IE.1.3.D+",null,"Comments:","<Please provide explanation if strategy was not achieved or other comments as desired>"]
["IE.1.4.A","simp","Meet the reverberation time requirements for the room type(s)",null,null,null,"yes",{"$f":"IF(G553=\"Y\",1)","v":false},null,null,{"$f":"IF(G553=\"N\",1)","v":false}]
["IE.1.4.A","calculator","A.  Offices, conference rooms, teleconference rooms <0.6; open plan office without sound masking <0.8; open plan office with sound masking 0.8; courtroom unamplified <0.7; amplified <1; library <1. (Requirements are in T60 (sec) at 500Hz, 1000Hz and 2000 Hz)"]
["IE.1.4.A+",null,"Baseline:","Meet recommended requirements.","Baseline Achieved ?:","N",null,null,null,{"$f":"IF(AND(F555=\"Y\",OR(F556=\"N\",F556=\"n/a\")),1)","v":false}]
["IE.1.4.A+",null,"Target:","Implement recommendations of acoustical engineer for specific space configurations and needs","Target Achieved ?:","N",null,null,{"$f":"IF(F556=\"Y\",1)","v":false}]
["IE.1.4.A+",null,"Comments:","<Please provide explanation if strategy was not achieved or other comments as desired>"]
["IE.1.4.B","simp","Provide speech privacy between enclosed spaces.   ",null,null,null,"yes",{"$f":"IF(G558=\"Y\",1)","v":false},null,null,{"$f":"IF(G558=\"N\",1)","v":false}]
["IE.1.4.B",null,"B. Floor /ceiling assemblies shall meet the Barrier STC rating for the application -STC 45 between standard offices; STC 50 between executive offices, offices and conference rooms; STC 60 between mechanical equipment rooms and other occupied spaces."]
["IE.1.4.B+",null,"Baseline:","Design interior floor and ceiling assemblies to meet the above criteria when Seattle Building Code does not have a requirement for STC between spaces.","Baseline Achieved ?:","N",null,null,null,{"$f":"IF(AND(F560=\"Y\",OR(F561=\"N\",F561=\"n/a\")),1)","v":false}]
["IE.1.4.B+",null,"Target:","Conduct acoustic comfort survey after completion. Take corrective action if significant speech privacy issues exist.","Target Achieved ?:","N",null,null,{"$f":"IF(F561=\"Y\",1)","v":false}]
["IE.1.4.B+",null,"Comments:","<Please provide explanation if strategy was not achieved or other comments as desired>"]
["IE.1.4.C","simp","Mitigate noise from HVAC equipment & plumbing",null,null,null,"yes",{"$f":"IF(G563=\"Y\",1)","v":false},null,null,{"$f":"IF(G563=\"N\",1)","v":false}]
["IE.1.4.C",null,"C. Background noise levels (from equipment) should not exceed guidelines in ASHRAE 2011 HVAC Applications Chapter 48, Table 1 for applicable space types,  See guide book for additional details. Calculate or measure sound levels."]
["IE.1.4.C+",null,"Baseline:","√","Baseline Achieved ?:","N",null,null,null,{"$f":"IF(AND(F565=\"Y\",OR(F566=\"N\",F566=\"n/a\")),1)","v":false}]
["IE.1.4.C+",null,"Target:","n/a","Target Achieved ?:","N",null,null,{"$f":"IF(F566=\"Y\",1)","v":false}]
["IE.1.4.C+",null,"Comments:","<Please provide explanation if strategy was not achieved or other comments as desired>"]
["IE.1.5.A","simp","Implement job-site indoor air quality plan during construction",null,null,null,"yes",{"$f":"IF(G568=\"Y\",1)","v":false},null,null,{"$f":"IF(G568=\"N\",1)","v":false}]
["IE.1.5.A",null,"A.  Implement job-site indoor air quality (IAQ) plan during construction, regardless of code threshold."]
["IE.1.5.A+",null,"Baseline:","√","Baseline Achieved ?:","N",null,null,null,{"$f":"IF(AND(F570=\"Y\",OR(F571=\"N\",F571=\"n/a\")),1)","v":false}]
["IE.1.5.A+",null,"Target:","n/a","Target Achieved ?:","n/a",null,null,{"$f":"IF(F571=\"Y\",1)","v":false}]
["IE.1.5.A+",null,"Comments:","<Please provide explanation if strategy was not achieved or other comments as desired>"]
["IE.1.5.B","simp","Perform building flush out prior to occupancy.",null,null,null,"yes",{"$f":"IF(G573=\"Y\",1)","v":false},null,null,{"$f":"IF(G573=\"N\",1)","v":false}]
["IE.1.5.B","calculator","B. Flush out building with outside air prior to occupancy."]
["IE.1.5.B+",null,"Baseline:","3,500 CFM/SF at 60 degrees F and 60% humidity","Baseline Achieved ?:","N",null,null,null,{"$f":"IF(AND(F575=\"Y\",OR(F576=\"N\",F576=\"n/a\")),1)","v":false}]
["IE.1.5.B+",null,"Target:","14,000 CFM/SF at 60 degrees F and 60% humidity","Target Achieved ?:","N",null,null,{"$f":"IF(F576=\"Y\",1)","v":false}]
["IE.1.5.B+",null,"Comments:","<Please provide explanation if strategy was not achieved or other comments as desired>"]
["IE.1.6.A","simp","Design duct work and electric/cable runs for accessibility and flexibility",null,null,null,"yes",{"$f":"IF(G578=\"Y\",1)","v":false},null,null,{"$f":"IF(G578=\"N\",1)","v":false}]
["IE.1.6.A",null,"A. Use interstitial floors, raised floors or careful dropped ceiling or exposed ceiling design to allow for changes in room configurations"]
["IE.1.6.A+",null,"Baseline:","Carefully planned drop or exposed ceilings","Baseline Achieved ?:","N",null,null,null,{"$f":"IF(AND(F580=\"Y\",OR(F581=\"N\",F581=\"n/a\")),1)","v":false}]
["IE.1.6.A+",null,"Target:","Raised floor or interstitial floor system","Target Achieved ?:","N",null,null,{"$f":"IF(F581=\"Y\",1)","v":false}]
["IE.1.6.A+",null,"Comments:","<Please provide explanation if strategy was not achieved or other comments as desired>"]
["IE.1.6.B","simp","Provide sufficient volume of outside air",null,null,null,"yes",{"$f":"IF(G583=\"Y\",1)","v":false},null,null,{"$f":"IF(G583=\"N\",1)","v":false}]
["IE.1.6.B","Seattle Mechanical Code ","B. Provide sufficient volume of outside air in accordance with 2009 Seattle Mechanical Code and ASHRAE 62.1-2007"]
["IE.1.6.B+",null,"Baseline:","For new buildings, use ASHRAE 62.1-2007 VRP calculation or 2009 Seattle Mechanical Code to determine minimum outside air to each occupied space.","Baseline Achieved ?:","N",null,null,null,{"$f":"IF(AND(F585=\"Y\",OR(F586=\"N\",F586=\"n/a\")),1)","v":false}]
["IE.1.6.B+",null,"Target:","Provide permanently mounted outdoor air flow measurement device.  OR for Constant Volume air supply systems; provide a damper position feedback system.","Target Achieved ?:","N",null,null,{"$f":"IF(F586=\"Y\",1)","v":false}]
["IE.1.6.B+",null,"Comments:","<Please provide explanation if strategy was not achieved or other comments as desired>"]
["IE.1.6.C","simp","Provide effective zone ventilation distribution.",null,null,null,"yes",{"$f":"IF(G588=\"Y\",1)","v":false},null,null,{"$f":"IF(G588=\"N\",1)","v":false}]
["IE.1.6.C","Seattle Mechanical Code ","C. The effectiveness of the ventilation distribution is based on the configuration:  i.e.  Ceiling supply of warm air with a ceiling return is less effective than a ceiling supply  of warm air with a floor return.  In addition, the distribution effectiveness change on the operating condition of the system (heating or cooling).  The 2009 Seattle Mechanical Code and ASHRAE 62.1 take this into account in the minimum outside air requirement by applying a factor to less effective configurations. The less effective configurations require a higher volume of outside air which in turn increases energy use."]
["IE.1.6.C+",null,"Baseline:","Provide a system with a worst case operating condition ventilation distribution effectiveness (Ez) of at least 0.8 as determined by SMC Table 403.3.1.2.","Baseline Achieved ?:","N",null,null,null,{"$f":"IF(AND(F590=\"Y\",OR(F591=\"N\",F591=\"n/a\")),1)","v":false}]
["IE.1.6.C+",null,"Target:","Provide a system with a worst case operating condition ventilation distribution effectiveness (Ez) of at 1.0 as determined by SMC Table 403.3.1.2.","Target Achieved ?:","N",null,null,{"$f":"IF(F591=\"Y\",1)","v":false}]
["IE.1.6.C+",null,"Comments:","<Please provide explanation if strategy was not achieved or other comments as desired>"]
["IE.1.6.D","simp","Meet code ventilation requirements with natural ventilation or a combination of both mechanical and natural ventilation, regardless of project size.",null,null,null,"yes",{"$f":"IF(G593=\"Y\",1)","v":false},null,null,{"$f":"IF(G593=\"N\",1)","v":false}]
["IE.1.6.D",null,"D. Meet code ventilation requirements with natural ventilation or a combination of both mechanical and natural ventilation, regardless of project size."]
["IE.1.6.D+",null,"Baseline:","Incorporate operable windows to provide ventilation for areas within 25 feet of perimeter.  (Minimum requirement of 4% net open area of floor area within 25 feet  of window).","Baseline Achieved ?:","N",null,null,null,{"$f":"IF(AND(F595=\"Y\",OR(F596=\"N\",F596=\"n/a\")),1)","v":false}]
["IE.1.6.D+",null,"Target:","n/a","Target Achieved ?:","N",null,null,{"$f":"IF(F596=\"Y\",1)","v":false}]
["IE.1.6.D+",null,"Comments:","<Please provide explanation if strategy was not achieved or other comments as desired>"]
["z","*****","*****","*****","*****","*****","yes"]
["z","*****","*****","*****","*****","*****","yes"]
["z","*****","*****","*****","*****","*****","yes"]
["z","*****","*****","*****","*****","*****","yes"]
["z","*****","*****","*****","*****","*****","yes"]